{"text_format":"1","workbook":"xlsx","n_sheets":52,"sheets":["Start Page","FormsMenu","Cover","201Inst","201","202","203","204","204x","204Inst","205","205Inst","205A","206","207","208","209","210Inst","210","211","211Inst","213","213Inst","214","214Inst","214x","215","215Inst","215A","215AInst","218","218Inst","220","220Inst","221","221Inst","225","225Inst","ResourceTracking","EOCMeetings","IAP Order","Prob and Issues","PlanningP","VersionInfo","Tips","209Inst","208Inst","206Inst","202Inst","203Inst","205AInst","Master Resource List"],"not_rendered":{"charts":0,"images":24,"macros":1,"external_links":0,"defined_names":63,"comments":12,"pivot_tables":0},"unopened":[],"bounds":{"document_bytes":16777216,"sheet_cells":100000,"rows_first":2000,"rows_last":500,"rows_between":2000,"halvings":0,"cell_chars":16384,"cell_head_chars":4096},"cells_cut":0,"cells_raw":0,"read":"whole","date_system":"1900"}

{"sheet":"Start Page","index":0,"n_rows":28,"n_cols":17,"rows_kept":28,"cut":false,"hidden":false,"merged":[[2,1,6,13],[27,2,27,12],[16,6,16,8],[16,10,16,12],[11,11,11,12],[11,13,11,14],[13,11,13,12],[13,13,13,14],[12,16,13,17],[7,15,8,17],[14,13,14,14],[17,1,21,14],[24,1,26,13],[10,13,10,14],[12,13,12,14],[9,15,9,17],[15,13,15,14],[16,1,16,5],[9,13,9,14]]}
[]
[]
[null,"CMS (Center Management System) - ICS Support Forms and Resource Tracking Workbook"]
[]
[]
[]
[]
[null,null,null,null,null,null,null,"Version 1.1.4",null,null,null,null,null,null,null,"START HERE"]
[null,null,null,null,null,"Initial Support Documentation (ICS-201)"]
[null,null,null,null,null,null,null,null,null,null,null,null,null,"Incident Name:",null,"Proposed NIMS Update"]
[null,null,null,null,null,"Extended Support Forms Workbook",null,null,null,null,null,null,null,"Date From:",null,"2016-04-11"]
[null,null,null,null,null,null,null,null,null,null,null,null,null,"Date To:",null,"2016-04-11"]
[null,null,null,null,null,"Master Resource Worksheet",null,null,null,null,null,null,null,"Time From:",null,"06:00:00","*Note: Times must be in 00:00 format."]
[null,null,null,null,null,null,null,null,null,null,null,null,null,"Time To:",null,"06:00:00"]
[null,"NEW 5/24/2016",null,null,"© Mark Ethridge / Texas IMT (2016)",null,null,null,null,null,null,null,null,"Incident Number:",null,"N/A"]
[]
[null,"Download the latest version.",null,null,null,null,"Email Mark Ethridge",null,null,null,"Donate with PayPal"]
[null,"This workbook is a creation of Mark Ethridge with input from many others.  It may be freely distributed to anyone that wants to use it."]
[]
[]
[]
[]
[]
[]
[]
[]
[]
[null,null,"Note:  Not all of the worksheets are accessible from the buttons.  You may have to look at the tabs to find everything."]

{"sheet":"FormsMenu","index":1,"n_rows":21,"n_cols":18,"rows_kept":21,"cut":false,"hidden":false,"merged":[[6,12,6,13],[9,4,9,10],[20,4,20,10],[4,14,4,15],[7,12,7,13],[8,12,8,13],[14,15,14,19],[11,12,15,13],[19,4,19,10],[4,12,4,13],[5,12,5,13],[18,4,18,10],[13,4,13,10],[14,4,14,10],[15,4,15,10],[17,4,17,10],[1,3,1,11],[3,4,3,10],[4,4,4,10],[5,4,5,10],[16,4,16,10],[10,4,10,10],[11,4,11,10],[12,4,12,10],[6,4,6,10],[7,4,7,10],[8,4,8,10]]}
[]
[null,null,null,"2010 FEMA ICS Forms Workbook",null,null,null,null,null,null,null,null,null,{"$f":"'Start Page'!B15","v":"NEW 5/24/2016"},null,{"$f":"'Start Page'!E15","v":"© Mark Ethridge / Texas IMT (2016)"}]
[]
[null,null,null,null,"Support Objectives"]
[null,null,null,null,"Support Organizational Assignment List",null,null,null,null,null,null,null,"Incident Name",null,{"$f":"'Start Page'!P10","v":"Proposed NIMS Update"},null,null,{"$f":"O5","v":"Proposed NIMS Update"}]
[null,null,null,null,"Support Assignment List",null,null,null,null,null,null,null,"Date From",null,{"$f":"'Start Page'!P11","v":"2016-04-11"},null,null,{"$f":"O6","v":"2016-04-11"}]
[null,null,null,null,"Support Incident Radio Communications Plan",null,null,null,null,null,null,null,"Date To",null,{"$f":"'Start Page'!P12","v":"2016-04-11"},null,null,{"$f":"O7","v":42471}]
[null,null,null,null,"Communications List",null,null,null,null,null,null,null,"Time From",null,{"$f":"'Start Page'!P13","v":"06:00:00"},null,null,{"$f":"#REF!","v":{"$error":"#REF!"}}]
[null,null,null,null,"Support Medical Plan",null,null,null,null,null,null,null,"Time To",null,{"$f":"'Start Page'!P14","v":"06:00:00"},null,null,{"$f":"O8","v":"06:00:00"}]
[null,null,null,null,"Safety Message/Plan",null,null,null,null,null,null,null,"Incident Number",null,{"$f":"'Start Page'!P15","v":"N/A"},null,null,{"$f":"O9","v":0.25}]
[null,null,null,null,"Incident Status Summary"]
[null,null,null,null,"Resource Status Change"]
[null,null,null,null,"Incident Check-In List"]
[null,null,null,null,"General Message"]
[null,null,null,null,"Activity Log"]
[null,null,null,null,"Operational Planning Worksheet"]
[null,null,null,null,"Incident Action Plan Safety Analysis"]
[null,null,null,null,"Support Vehicle/Equipment Inventory"]
[null,null,null,null,"Air Operations Summary"]
[null,null,null,null,"Demobilization Check-Out"]
[null,null,null,null,"Incident Personnel Performance Rating"]

{"sheet":"Cover","index":2,"n_rows":14,"n_cols":7,"rows_kept":14,"cut":false,"hidden":false,"merged":[[13,1,13,2],[13,3,13,4],[13,6,13,7],[15,1,47,7],[1,2,2,6],[4,1,9,7],[11,2,11,6],[12,1,12,2],[12,3,12,4],[12,6,12,7]]}
[]
[null,null,"Support Plan"]
[]
[null,null,null,null,"for"]
[null,{"$f":"FormsMenu!O5","v":"Proposed NIMS Update"}]
[]
[]
[]
[]
[]
[]
[null,null,"Operational Period"]
[null,"Date From:",null,{"$f":"FormsMenu!O6","v":"2016-04-11"},null,"Date To:",{"$f":"FormsMenu!O7","v":"2016-04-11"}]
[null,"Time From:",null,{"$f":"FormsMenu!O8","v":"06:00:00"},null,"Time To:",{"$f":"FormsMenu!O9","v":"06:00:00"}]

{"sheet":"201Inst","index":3,"n_rows":47,"n_cols":3,"rows_kept":47,"cut":false,"hidden":true,"merged":[[4,0,4,2],[6,0,6,2],[8,0,8,2],[31,0,39,0],[19,0,20,0],[19,1,20,1],[17,0,18,0],[17,2,18,2],[40,0,46,0],[28,0,30,0],[28,2,30,2],[22,0,26,0],[22,2,26,2]]}
[]
["ICS 201"]
["Incident Briefing"]
[]
["Purpose.  The Incident Briefing (ICS 201) provides the Incident Commander (and the Command and General Staffs) with basic information regarding the incident situation and the resources allocated to the incident.  In addition to a briefing document, the ICS 201 also serves as an initial action worksheet.  It serves as a permanent record of the initial response to the incident."]
[]
["Preparation.  The briefing form is prepared by the Incident Commander for presentation to the incoming Incident Commander along with a more detailed oral briefing."]
[]
["Distribution.  Ideally, the ICS 201 is duplicated and distributed before the initial briefing of the Command and General Staffs or other responders as appropriate.  The “Map/Sketch” and “Current and Planned Actions, Strategies, and Tactics” sections (pages 1–2) of the briefing form are given to the Situation Unit, while the “Current Organization” and “Resource Summary” sections (pages 3–4) are given to the Resources Unit."]
[]
["Notes: "]
["·       The ICS 201 can serve as part of the initial Incident Action Plan (IAP)."]
["·       If additional pages are needed for any form page, use a blank ICS 201 and repaginate as needed."]
[]
["Block Number","Block Title","Instructions"]
[1,"Incident Name","Enter the name assigned to the incident."]
[2,"Incident Number","Enter the number assigned to the incident."]
[3,"Date/Time Initiated","Enter date initiated (month/day/year) and time initiated (using the 24-hour clock)."]
[null,"·       Date, Time"]
[4,"Map/Sketch (include sketch, showing the total area of operations, the incident site/area, impacted and threatened areas, overflight results, trajectories, impacted shorelines, or other graphics depicting situational status and resource assignment)","Show perimeter and other graphics depicting situational status, resource assignments, incident facilities, and other special information on a map/sketch or with attached maps.  Utilize commonly accepted ICS map symbology.  "]
[null,null,"If specific geospatial reference points are needed about the incident’s location or area outside the ICS organization at the incident, that information should be submitted on the Incident Status Summary (ICS 209)."]
[5,"Situation Summary (for briefings or transfer of command)","Self-explanatory."]
[6,"Prepared by","Enter the name, ICS position/title, and signature of the person preparing the form.  Enter date (month/day/year) and time prepared (24-hour clock)."]
[null,"·       Name"]
[null,"·       Position/Title"]
[null,"·       Signature"]
[null,"·       Date/Time"]
[7,"Current and Planned Objectives ","Enter the objectives used on the incident and note any specific problem areas."]
[8,"Current and Planned Actions, Strategies, and Tactics","Enter the current and planned actions, strategies, and tactics and time they may or did occur to attain the objectives.  If additional pages are needed, use a blank sheet or another ICS 201 (Page 2), and adjust page numbers accordingly. "]
[null,"·       Time"]
[null,"·       Actions"]
[9,"Current Organization (fill in additional organization as appropriate)","·       Enter on the organization chart the names of the individuals assigned to each position.  "]
[null,"·       Incident Commander(s)","·       Modify the chart as necessary, and add any lines/spaces needed for Command Staff Assistants, Agency Representatives, and the organization of each of the General Staff Sections."]
[null,"·       Liaison Officer","·       If Unified Command is being used, split the Incident Commander box."]
[null,"·       Safety Officer","·       Indicate agency for each of the Incident Commanders listed if Unified Command is being used."]
[null,"·       Public Information Officer"]
[null,"·       Planning Section Chief"]
[null,"·       Operations Section Chief"]
[null,"·       Finance/Administration Section Chief"]
[null,"·       Logistics Section Chief"]
[10,"Resource Summary","Enter the following information about the resources allocated to the incident.  If additional pages are needed, use a blank sheet or another ICS 201 (Page 4), and adjust page numbers accordingly."]
[null,"·       Resource","Enter the number and appropriate category, kind, or type of resource ordered."]
[null,"·       Resource Identifier","Enter the relevant agency designator and/or resource designator (if any)."]
[null,"·       Date/Time Ordered","Enter the date (month/day/year) and time (24-hour clock) the resource was ordered."]
[null,"·       ETA","Enter the estimated time of arrival (ETA) to the incident (use 24-hour clock)."]
[null,"·       Arrived","Enter an “X” or a checkmark upon arrival to the incident."]
[null,"·       Notes (location/ assignment/status)","Enter notes such as the assigned location of the resource and/or the actual assignment and status."]

{"sheet":"201","index":4,"n_rows":181,"n_cols":15,"rows_kept":181,"cut":false,"hidden":false,"merged":[[0,1,0,12],[0,13,0,23],[1,1,1,4],[1,5,1,8],[1,9,1,12],[2,1,2,4],[2,5,2,8],[59,14,67,16],[68,1,68,12],[49,1,49,5],[49,6,49,12],[51,1,51,12],[52,1,52,4],[52,5,52,8],[52,9,52,12],[3,1,5,12],[6,1,38,12],[39,1,39,12],[40,1,47,12],[40,14,48,16],[48,1,48,2],[48,3,48,5],[48,6,48,7],[48,10,48,12],[69,2,69,12],[70,2,70,12],[71,2,71,12],[72,2,72,12],[73,2,73,12],[74,2,74,12],[53,1,53,4],[53,5,53,8],[54,1,54,12],[55,1,67,12],[81,2,81,12],[82,2,82,12],[83,2,83,12],[84,2,84,12],[85,2,85,12],[86,2,86,12],[75,2,75,12],[76,2,76,12],[77,2,77,12],[78,2,78,12],[79,2,79,12],[80,2,80,12],[93,1,93,5],[93,6,93,12],[95,1,95,12],[96,1,96,4],[96,5,96,8],[96,9,96,12],[87,2,87,12],[88,2,88,12],[89,2,89,12],[90,2,90,12],[91,2,91,12],[92,1,92,2],[92,3,92,5],[92,6,92,7],[92,10,92,12],[137,1,137,5],[137,6,137,12],[139,1,139,12],[140,1,140,4],[140,5,140,8],[140,9,140,12],[97,1,97,4],[97,5,97,8],[98,1,98,12],[99,1,135,12],[136,1,136,2],[136,3,136,5],[136,6,136,7],[136,10,136,12],[144,1,144,2],[144,4,144,5],[144,8,144,12],[145,1,145,2],[145,4,145,5],[145,8,145,12],[141,1,141,4],[141,5,141,8],[142,1,142,12],[143,1,143,2],[143,4,143,5],[143,8,143,12],[148,1,148,2],[148,4,148,5],[148,8,148,12],[149,1,149,2],[149,4,149,5],[149,8,149,12],[146,1,146,2],[146,4,146,5],[146,8,146,12],[147,1,147,2],[147,4,147,5],[147,8,147,12],[152,1,152,2],[152,4,152,5],[152,8,152,12],[153,1,153,2],[153,4,153,5],[153,8,153,12],[150,1,150,2],[150,4,150,5],[150,8,150,12],[151,1,151,2],[151,4,151,5],[151,8,151,12],[156,1,156,2],[156,4,156,5],[156,8,156,12],[157,1,157,2],[157,4,157,5],[157,8,157,12],[154,1,154,2],[154,4,154,5],[154,8,154,12],[155,1,155,2],[155,4,155,5],[155,8,155,12],[160,1,160,2],[160,4,160,5],[160,8,160,12],[161,1,161,2],[161,4,161,5],[161,8,161,12],[158,1,158,2],[158,4,158,5],[158,8,158,12],[159,1,159,2],[159,4,159,5],[159,8,159,12],[164,1,164,2],[164,4,164,5],[164,8,164,12],[165,1,165,2],[165,4,165,5],[165,8,165,12],[162,1,162,2],[162,4,162,5],[162,8,162,12],[163,1,163,2],[163,4,163,5],[163,8,163,12],[168,1,168,2],[168,4,168,5],[168,8,168,12],[169,1,169,2],[169,4,169,5],[169,8,169,12],[166,1,166,2],[166,4,166,5],[166,8,166,12],[167,1,167,2],[167,4,167,5],[167,8,167,12],[172,1,172,2],[172,4,172,5],[172,8,172,12],[173,1,173,2],[173,4,173,5],[173,8,173,12],[170,1,170,2],[170,4,170,5],[170,8,170,12],[171,1,171,2],[171,4,171,5],[171,8,171,12],[176,1,176,2],[176,4,176,5],[176,8,176,12],[177,1,177,2],[177,4,177,5],[177,8,177,12],[174,1,174,2],[174,4,174,5],[174,8,174,12],[175,1,175,2],[175,4,175,5],[175,8,175,12],[180,1,180,5],[180,6,180,12],[178,1,178,2],[178,4,178,5],[178,8,178,12],[179,1,179,2],[179,3,179,5],[179,6,179,7],[179,10,179,12]]}
[null,"Support Incident Briefing (ICS 201)"]
[null,"1. Incident Name:",null,null,null,"2. Incident Number:",null,null,null,"3. Date/Time Initiated:"]
[null,{"$f":"'Start Page'!P10","v":"Proposed NIMS Update"},null,null,null,{"$f":"'Start Page'!P15","v":"N/A"},null,null,null,"Date:",null,"Time:"]
[null,"4. Map/Sketch (include sketch, showing the total area of operations, the incident site/area, impacted and threatened    areas, overflight results, trajectories, impacted shorelines, or other graphics depicting situational status and resource assignment):"]
[]
[]
[]
[]
[]
[]
[]
[]
[]
[]
[]
[]
[]
[]
[]
[]
[]
[]
[]
[]
[]
[]
[]
[]
[]
[]
[]
[]
[]
[]
[]
[]
[]
[]
[]
[null,"5. Situation Summary (for briefings or transfer of command):  "]
[null,null,null,null,null,null,null,null,null,null,null,null,null,null,"In Excel to add line break inside a cell, use the keys Alt+Enter.  \n\nUse your Numeric keypad to insert bullets.  Alt+7 or Alt+9.  Use the Numlock on a laptop"]
[]
[]
[]
[]
[]
[]
[]
[null,"6. Prepared by:",null,null,null,null,"Position Title: ",null,null,"Signature:"]
[null,"ICS 201, Page 3",null,null,null,null,"Date/Time: ___________________________________________________"]
[]
[null,"Support Incident Briefing (ICS 201)"]
[null,"1. Incident Name:",null,null,null,"2. Incident Number:",null,null,null,"3. Date/Time Initiated:"]
[null,{"$f":"B3","v":"Proposed NIMS Update"},null,null,null,{"$f":"F3","v":"N/A"},null,null,null,"Date:",{"$f":"K3","v":"00:00:00"},"Time:",{"$f":"M3","v":"00:00:00"}]
[null,"7. Current and Planned Objectives:"]
[]
[]
[]
[]
[null,null,null,null,null,null,null,null,null,null,null,null,null,null,"In Excel to add line break inside a cell, use the keys Alt+Enter.  \n\nUse your Numeric keypad to insert bullets.  Alt+7 or Alt+9.  Use the Numlock on a laptop"]
[]
[]
[]
[]
[]
[]
[]
[]
[null,"8. Current and Planned Support Actions and Strategies:"]
[null,"Time:","Actions:"]
[]
[]
[]
[]
[]
[]
[]
[]
[]
[]
[]
[]
[]
[]
[]
[]
[]
[]
[]
[]
[]
[]
[null,"6. Prepared by:",null,null,null,null,"Position Title: ",null,null,"Signature:"]
[null,"ICS 201, Page 3",null,null,null,null,"Date/Time: ___________________________________________________"]
[]
[null,"Support Incident Briefing (ICS 201)"]
[null,"1. Incident Name:",null,null,null,"2. Incident Number:",null,null,null,"3. Date/Time Initiated:"]
[null,{"$f":"B3","v":"Proposed NIMS Update"},null,null,null,{"$f":"F3","v":"N/A"},null,null,null,"Date:",{"$f":"K3","v":"00:00:00"},"Time:",{"$f":"M3","v":"00:00:00"}]
[null,"9. Current EOC Organization (fill in additional organization as appropriate):"]
[]
[]
[]
[]
[]
[]
[]
[]
[]
[]
[]
[]
[]
[]
[]
[]
[]
[]
[]
[]
[]
[]
[]
[]
[]
[]
[]
[]
[]
[]
[]
[]
[]
[]
[]
[]
[]
[null,"6. Prepared by:",null,null,null,null,"Position Title: ",null,null,"Signature:"]
[null,"ICS 201, Page 3",null,null,null,null,"Date/Time: ___________________________________________________"]
[]
[null,"Support Incident Briefing (ICS 201)"]
[null,"1. Incident Name:",null,null,null,"2. Incident Number:",null,null,null,"3. Date/Time Initiated:"]
[null,{"$f":"B3","v":"Proposed NIMS Update"},null,null,null,{"$f":"F3","v":"N/A"},null,null,null,"Date:",{"$f":"K3","v":"00:00:00"},"Time:",{"$f":"M3","v":"00:00:00"}]
[null,"10.  Resources Summary:"]
[null,"Resource",null,"Resource Identifier","Date/Time Ordered",null,"ETA"," Arrived","Notes (location/assignment/status)"]
[]
[]
[]
[]
[]
[]
[]
[]
[]
[]
[]
[]
[]
[]
[]
[]
[]
[]
[]
[]
[]
[]
[]
[]
[]
[]
[]
[]
[]
[]
[]
[]
[]
[]
[]
[null,"6. Prepared by:",null,null,null,null,"Position Title: ",null,null,"Signature:"]
[null,"ICS 201, Page 3",null,null,null,null,"Date/Time: ___________________________________________________"]

{"sheet":"202","index":5,"n_rows":44,"n_cols":16,"rows_kept":44,"cut":false,"hidden":false,"merged":[[10,15,18,16],[21,1,27,13],[29,1,32,13],[28,1,28,13],[47,1,47,13],[42,1,42,5],[42,12,42,13],[43,1,43,2],[43,3,43,5],[43,7,43,13],[42,6,42,10],[4,1,19,13],[34,6,34,13],[41,12,41,13],[36,1,36,7],[0,1,0,13],[1,1,1,5],[2,1,2,5],[1,6,1,10],[2,6,2,10],[3,1,3,13],[35,1,35,13],[33,1,33,13],[20,1,20,13],[41,8,41,10],[41,4,41,5],[41,6,41,7],[37,9,37,13],[38,9,38,13],[39,9,39,13],[40,9,40,13]]}
[null,"SUPPORT OBJECTIVES (ICS 202)"]
[null,"1. Incident Name:",null,null,null,null,"2.Operational Period: Date From:",null,null,null,null,{"$f":"Cover!D13","v":"2016-04-11"},"Date To:",{"$f":"Cover!G13","v":"2016-04-11"}]
[null,{"$f":"Cover!B5","v":"Proposed NIMS Update"},null,null,null,null,"Time From:",null,null,null,null,{"$f":"Cover!D14","v":"06:00:00"},"Time To:",{"$f":"Cover!G14","v":"06:00:00"}]
[null,"3. Support Objective(s) for incidents:"]
[]
[]
[]
[]
[]
[]
[null,null,null,null,null,null,null,null,null,null,null,null,null,null,null,"In Excel to add line break inside a cell, use the keys Alt+Enter.  \n\nUse your Numeric keypad to insert bullets.  Alt+7 or Alt+9.  Use the Numlock on a laptop."]
[]
[]
[]
[]
[]
[]
[]
[]
[]
[null,"4. Operational Period Support Emphasis:"]
[]
[]
[]
[]
[]
[]
[]
[null,"General Situational Awareness:"]
[]
[]
[]
[]
[null,"5. Incident Site Safety Plan Required?     Yes              No "]
[null,"     Approved Site Safety Plan(s) Located at:"]
[null,"6. Incident Action Plan (the items checked below are included in this Incident Action Plan):"]
[null,null,null,null,null,null,null,null,"    Other Attachments:"]
[]
[]
[]
[]
[null,"7. Prepared by:  Name: ______________________Position/Title: _________________ Signature:",null,null,null,null,"Position Title:",null,null,null,null,"Signature:"]
[null,"8. Approved by Agency Administrator:     Name:",null,null,null,null,null,null,null,null,null,"Signature:"]
[null,"ICS 202",null,"IAP Page __________",null,null,"Date/Time: ________________________________________________"]

{"sheet":"203","index":6,"n_rows":46,"n_cols":20,"rows_kept":46,"cut":false,"hidden":false,"merged":[[13,15,13,17],[22,11,22,14],[21,15,21,17],[26,9,26,10],[21,9,21,10],[22,15,22,17],[10,19,15,22],[8,9,8,17],[16,11,16,14],[16,15,16,17],[24,11,24,14],[24,15,24,17],[23,11,23,14],[12,15,12,17],[10,11,10,14],[10,15,10,17],[9,15,9,17],[9,11,9,14],[14,15,14,17],[11,11,11,14],[12,11,12,14],[18,15,18,17],[19,15,19,17],[19,11,19,14],[22,9,22,10],[18,9,18,10],[18,11,18,14],[43,14,43,17],[45,10,45,17],[43,10,43,11],[43,12,43,13],[28,15,28,17],[29,15,29,17],[30,11,30,14],[32,9,32,17],[40,11,40,17],[41,11,41,17],[38,11,38,17],[39,11,39,17],[31,9,31,10],[30,9,30,10],[29,9,29,10],[35,9,35,10],[31,11,31,14],[31,15,31,17],[29,11,29,14],[30,15,30,17],[36,9,36,17],[42,11,42,17],[28,9,28,10],[28,11,28,14],[1,15,1,16],[2,15,2,16],[4,15,4,17],[5,15,5,17],[3,9,3,17],[4,9,4,10],[5,9,5,10],[4,11,4,14],[5,11,5,14],[2,11,2,12],[1,11,1,12],[1,13,1,14],[2,13,2,14],[6,11,6,14],[7,11,7,14],[6,15,6,17],[7,15,7,17],[15,15,15,17],[11,15,11,17],[11,9,11,10],[27,15,27,17],[20,9,20,10],[17,9,17,10],[16,9,16,10],[19,9,19,10],[24,9,24,10],[23,9,23,10],[23,15,23,17],[26,15,26,17],[26,11,26,14],[25,15,25,17],[20,11,20,14],[21,11,21,14],[27,9,27,10],[25,9,25,10],[27,11,27,14],[25,11,25,14],[37,1,37,2],[37,3,37,8],[45,6,45,9],[43,8,43,9],[43,4,43,7],[38,3,38,8],[40,9,40,10],[43,1,43,3],[45,1,45,2],[45,3,45,4],[38,1,38,2],[39,1,39,2],[39,3,39,8],[40,3,40,8],[41,1,41,2],[41,3,41,8],[40,1,40,2],[39,9,39,10],[38,9,38,10],[37,9,37,10],[33,1,33,2],[33,3,33,8],[34,3,34,8],[34,1,34,2],[29,3,29,8],[30,1,30,8],[31,1,31,2],[31,3,31,8],[36,3,36,8],[36,1,36,2],[32,3,32,8],[32,1,32,2],[1,2,1,7],[1,8,1,10],[6,2,6,8],[6,9,6,10],[18,3,18,8],[20,3,20,8],[21,3,21,8],[28,3,28,8],[22,3,22,8],[23,3,23,8],[24,3,24,8],[25,3,25,8],[19,1,19,8],[21,1,21,2],[18,1,18,2],[20,1,20,2],[25,1,25,2],[24,1,24,2],[23,1,23,2],[22,1,22,2],[27,1,27,2],[26,1,26,2],[26,3,26,8],[27,3,27,8],[4,2,4,8],[5,2,5,8],[15,3,15,8],[11,1,11,8],[3,1,3,8],[2,1,2,7],[2,8,2,10],[7,2,7,8],[7,9,7,10],[12,1,12,2],[12,9,12,10],[13,9,13,10],[10,2,10,8],[8,2,8,8],[9,2,9,8],[9,9,9,10],[10,9,10,10],[17,3,17,8],[13,3,13,8],[14,3,14,8],[12,3,12,8],[16,3,16,8],[13,1,13,2],[14,1,14,2],[15,1,15,2],[16,1,16,2],[19,19,26,22],[17,15,17,17],[17,11,17,14],[20,15,20,17],[15,11,15,14],[14,11,14,14],[13,11,13,14],[42,3,42,8],[42,1,42,2],[42,9,42,10],[41,9,41,10],[34,9,34,10],[33,9,33,10],[35,11,35,17],[33,11,33,17],[34,11,34,17],[37,11,37,17],[17,1,17,2],[15,9,15,10],[14,9,14,10],[29,1,29,2],[28,1,28,2],[35,1,35,2],[35,3,35,8]]}
[null,null,"SUPPORT ORGANIZATION ASSIGNMENT LIST(ICS 203)"]
[null,"1. Incident Name:",null,null,null,null,null,null,"2. Operational Period:",null,null,"Date From:",null,{"$f":"Cover!D13","v":"2016-04-11"},null,"Date To:",null,{"$f":"Cover!G13","v":"2016-04-11"}]
[null,{"$f":"Cover!B5","v":"Proposed NIMS Update"},null,null,null,null,null,null,null,null,null,"Time From:",null,{"$f":"Cover!D14","v":"06:00:00"},null,"Time To:",null,{"$f":"Cover!G14","v":"06:00:00"}]
[null,"3. AA and/or EOC Support Staff:",null,null,null,null,null,null,null,"7. Support / Strategic Operations Section:"]
[null,"Agency Admin.","Big Boss",null,null,null,null,null,null,"Chief",null,"806-632-4251",null,null,null,"M. Ethridge"]
[null,"EMC/Center Director","A. Knowing",null,null,null,null,null,null,"Deputy",null,"806-555-5555",null,null,null,"T. Deputy"]
[null,"Disaster Chair","B. Schnider"]
[null,"Stenographer","B. Typist",null,null,null,null,null,null,"Staging Area"]
[null,"Safety Officer",null,null,null,null,null,null,null,"ESF, IMT, Department, Agency, Other Being Supported"]
[null,"Public Info. Officer",null,null,null,null,null,null,null,"ESF 4 Fire",null,"806-222-4242",null,null,null,"H. Smith"]
[null,"Liaison Officer",null,null,null,null,null,null,null,"ESF8",null,"214-234-5678",null,null,null,"S. Wilson",null,null,null,"NOTE: The Name in the left column of this section must match EXACTLY with BOX 3 on the 204 and the name in the Assignment column on the 205 for the info to populate."]
[null,"4. Agency/Organization Representatives:",null,null,null,null,null,null,null,"Public Works",null,"555-213-4352",null,null,null,"B. Dozer"]
[null,"Agency/Organization",null,"Name",null,null,null,null,null,"South Plains IMT",null,"444-321-9876",null,null,null,"C. Buck"]
[null,"Salvation Army",null,"William Help",null,null,null,null,null,"Methodist Hospital",null,"806-555-5555",null,null,null,"W. Hurt"]
[null,"Texas Baptist Men",null,"Henry Hopeful",null,null,null,null,null,15,null,null,null,null,null,"A"]
[null,null,null,null,null,null,null,null,null,16,null,null,null,null,null,"B"]
[null,null,null,null,null,null,null,null,null,17,null,null,null,null,null,"C"]
[null,null,null,null,null,null,null,null,null,18,null,null,null,null,null,"D"]
[null,null,null,null,null,null,null,null,null,19,null,null,null,null,null,"E"]
[null,"5. Information and Planning Section:",null,null,null,null,null,null,null,20,null,null,null,null,null,"F",null,null,null,"To alleviate Span Of Control issues in the Strategic Operations Section, those being supported may be organized using Divisions for Geographic Areas supported or Groups for Functional Assignmenst being supported.  Branches could also be used."]
[null,"Chief",null,null,null,null,null,null,null,21,null,null,null,null,null,"G"]
[null,"Deputy",null,null,null,null,null,null,null,22,null,null,null,null,null,"H"]
[null,"Resources Unit",null,null,null,null,null,null,null,23,null,null,null,null,null,"I"]
[null,"Situation Unit",null,null,null,null,null,null,null,24,null,null,null,null,null,"J"]
[null,"Documentation Unit",null,null,null,null,null,null,null,25,null,null,null,null,null,"K"]
[null,"Planning Support ",null,null,null,null,null,null,null,26,null,null,null,null,null,"L"]
[null,"Public Works",null,"S. James / 555-555-5512",null,null,null,null,null,27,null,null,null,null,null,"M"]
[null,"ESF 4",null,"B. Torch / 555-555-5543",null,null,null,null,null,28,null,null,null,null,null,"N"]
[null,null,null,null,null,null,null,null,null,29,null,null,null,null,null,"O"]
[null,null,null,null,null,null,null,null,null,30,null,null,null,null,null,"P"]
[null,"6. Logistics Section:",null,null,null,null,null,null,null,31,null,null,null,null,null,"Q"]
[null,"Chief",null,null,null,null,null,null,null,32,null,null,null,null,null,"R"]
[null,"Deputy",null,null,null,null,null,null,null,"Air Operations Branch"]
[null,"Logistics Support",null,null,null,null,null,null,null,"Air Ops Branch Dir.",null,"Air Plaine"]
[null,"City of Littlefield",null,"J. Gray / 555-555-5445"]
[null,"ESF 8",null,"K. North / 555-555-5567"]
[null,3,null,"c",null,null,null,null,null,"8. Finance Administration Section:"]
[null,4,null,"d",null,null,null,null,null,"Chief"]
[null,5,null,"e",null,null,null,null,null,"Deputy"]
[null,6,null,"f",null,null,null,null,null,"Finance Support"]
[null,7,null,"g"]
[null,8,null,"h"]
[null,9,null,"i"]
[null,"9. Prepared By:  Name:",null,null,null,null,null,null,"Position/Title",null,null,null,"Signature:"]
[]
[null,"ICS 203",null,"IAP Page",null,null,"Date/Time:"]

{"sheet":"204","index":7,"n_rows":47,"n_cols":31,"rows_kept":47,"cut":false,"hidden":false,"merged":[[42,22,48,27],[7,13,7,15],[7,16,7,19],[9,8,11,9],[32,4,32,20],[38,8,38,20],[44,4,44,8],[44,17,44,20],[44,15,44,16],[26,1,31,20],[25,1,25,20],[22,1,22,2],[44,1,44,3],[41,4,41,6],[39,4,39,6],[23,10,23,15],[22,16,22,20],[23,16,23,20],[23,1,23,2],[19,16,19,20],[20,1,20,2],[20,3,20,7],[20,8,20,9],[8,16,8,20],[7,1,7,4],[17,16,17,20],[17,10,17,15],[16,16,16,20],[18,10,18,15],[18,16,18,20],[19,10,19,15],[19,8,19,9],[19,1,19,2],[19,3,19,7],[16,10,16,15],[18,1,18,2],[18,3,18,7],[18,8,18,9],[17,8,17,9],[15,1,15,2],[16,1,16,2],[16,3,16,7],[16,8,16,9],[17,1,17,2],[17,3,17,7],[7,5,7,12],[9,16,11,20],[8,1,8,15],[14,8,14,9],[13,8,13,9],[13,3,13,7],[14,10,14,15],[14,16,14,20],[15,16,15,20],[15,10,15,15],[15,3,15,7],[10,1,11,2],[10,3,11,7],[2,14,2,15],[5,5,5,12],[4,5,4,12],[2,16,4,20],[2,1,3,5],[6,13,6,15],[3,14,3,15],[5,16,6,20],[4,1,4,4],[5,1,5,4],[6,1,6,4],[0,1,0,20],[1,1,1,5],[1,6,1,15],[3,6,3,8],[6,5,6,12],[5,13,5,15],[13,16,13,20],[13,10,13,15],[15,8,15,9],[12,1,12,2],[12,3,12,7],[12,8,12,9],[12,10,12,15],[12,16,12,20],[13,1,13,2],[14,1,14,2],[14,3,14,7],[1,16,1,20],[4,13,4,15],[2,6,2,8],[2,9,2,12],[3,9,3,12],[9,10,11,15],[9,1,9,7],[23,8,23,9],[24,8,24,9],[24,1,24,2],[22,3,22,7],[23,3,23,7],[36,22,38,27],[39,22,39,27],[21,1,21,2],[20,10,20,15],[20,16,20,20],[38,1,38,6],[21,8,21,9],[21,3,21,7],[32,1,32,3],[24,16,24,20],[24,10,24,15],[22,10,22,15],[21,16,21,20],[21,10,21,15],[23,23,31,25],[40,22,40,27],[37,1,37,20],[39,1,39,2],[39,8,39,20],[33,1,36,20],[1,23,4,25],[46,1,46,2],[42,1,42,2],[41,1,41,2],[40,1,40,2],[43,1,43,20],[46,3,46,5],[46,6,46,8],[40,8,40,20],[41,8,41,20],[46,12,46,20],[46,9,46,11],[42,4,42,6],[40,4,40,6],[44,9,44,11],[42,8,42,20],[44,12,44,14],[24,3,24,7],[22,8,22,9]]}
[null,"SUPPORT ASSIGNMENT LIST (204)"]
[null,"1. Incident Name:",null,null,null,null,"2. Operational Period:",null,null,null,null,null,null,null,null,null,"3,  ",null,null,null,null,null,null,"Spaces matter!  A space before or after, that you can't even see may be the difference in your information showing up or not."]
[null,{"$f":"Cover!B5","v":"Proposed NIMS Update"},null,null,null,null,"Date From:",null,null,{"$f":"Cover!D13","v":"2016-04-11"},null,null,null,"Date To:",{"$f":"Cover!G13","v":"2016-04-11"},null,"ESF, IMT, EOC, Department, or Agency being Supported"]
[null,null,null,null,null,null,"Time From:",null,null,{"$f":"Cover!D14","v":"06:00:00"},null,null,null,"Time To:",{"$f":"Cover!G14","v":"06:00:00"}]
[null,"4. Operations Personnel:",null,null,null,"Name",null,null,null,null,null,null,null,"Contact Number(s)"]
[null,"Support Operations Chief:",null,null,null,{"$f":"'203'!P5","v":"M. Ethridge"},null,null,null,null,null,null,null,{"$f":"IF(ISBLANK('203'!L5),\"\",'203'!L5)","v":"806-632-4251"},null,null,"ESF8"]
[null,"Deputy Support Chief",null,null,null,{"$f":"IF(ISBLANK('203'!P6),\"\",'203'!P6)","v":"T. Deputy"},null,null,null,null,null,null,null,{"$f":"IF(ISBLANK('203'!L6),\"\",'203'!L6)","v":"806-555-5555"},null,null,null,null,null,null,null,null,null,null,null,null,null,{"$f":"'203'!L9","v":0},{"$f":"'203'!L10","v":"806-222-4242"},{"$f":"'203'!P10","v":"H. Smith"}]
[null,"EOC, IMT, Agency Supported",null,null,null,{"$f":"IF(ISBLANK(E42),\"\",VLOOKUP(E42,AB10:AE32,4,FALSE))","v":"ESF8  /  S. Wilson"},null,null,null,null,null,null,null,{"$f":"IF(ISBLANK(E42),\"\",VLOOKUP(E42,AB10:AD32,2,FALSE))","v":"214-234-5678"},null,null,"Staging Area:",null,null,null,null,null,null,null,null,null,null,{"$f":"'203'!L17","v":0},{"$f":"'203'!L18","v":0},{"$f":"'203'!P18","v":"D"}]
[null,null,null,null,null,null,null,null,null,null,null,null,null,null,null,null,null,null,null,null,null,null,null,null,null,null,null,{"$f":"'203'!L25","v":0},{"$f":"'203'!L26","v":0},{"$f":"'203'!P26","v":"L"}]
[null,"5. Resources Assigned:",null,null,null,null,null,null,"# of Persons",null,"Contact e.g., (phone, pager, radio, frequency, etc.)",null,null,null,null,null,"Reporting Location, Special Equipment and Supplies, Remarks, Notes, Information",null,null,null,null,null,null,null,null,null,null,{"$f":"'203'!J10","v":"ESF 4 Fire"},{"$f":"'203'!L10","v":"806-222-4242"},{"$f":"'203'!P10","v":"H. Smith"},{"$f":"IF(ISBLANK($Q$6),\"\",CONCATENATE(AB10,\"  /  \",AD10))","v":"ESF 4 Fire  /  H. Smith"}]
[null,"Resource Identifier",null,"Leader",null,null,null,null,null,null,null,null,null,null,null,null,null,null,null,null,null,null,null,null,null,null,null,{"$f":"'203'!J11","v":"ESF8"},{"$f":"'203'!L11","v":"214-234-5678"},{"$f":"'203'!P11","v":"S. Wilson"},{"$f":"IF(ISBLANK($Q$6),\"\",CONCATENATE(AB11,\"  /  \",AD11))","v":"ESF8  /  S. Wilson"}]
[null,null,null,null,null,null,null,null,null,null,null,null,null,null,null,null,null,null,null,null,null,null,null,null,null,null,null,{"$f":"'203'!J12","v":"Public Works"},{"$f":"'203'!L12","v":"555-213-4352"},{"$f":"'203'!P12","v":"B. Dozer"},"Public Works  /  B. Dozer"]
[null,null,null,null,null,null,null,null,null,null,null,null,null,null,null,null,null,null,null,null,null,null,null,null,null,null,null,{"$f":"'203'!J13","v":"South Plains IMT"},{"$f":"'203'!L13","v":"444-321-9876"},{"$f":"'203'!P13","v":"C. Buck"},"South Plains IMT  /  C. Buck"]
[null,null,null,null,null,null,null,null,null,null,null,null,null,null,null,null,null,null,null,null,null,null,null,null,null,null,null,{"$f":"'203'!J14","v":"Methodist Hospital"},{"$f":"'203'!L14","v":"806-555-5555"},{"$f":"'203'!P14","v":"W. Hurt"},"Methodist Hospital  /  W. Hurt"]
[null,null,null,null,null,null,null,null,null,null,null,null,null,null,null,null,null,null,null,null,null,null,null,"NOTE: BLOCK 4. INFORMATION AND ",null,null,null,{"$f":"'203'!J15","v":15},{"$f":"'203'!L15","v":0},{"$f":"'203'!P15","v":"A"},"15  /  A"]
[null,null,null,null,null,null,null,null,null,null,null,null,null,null,null,null,null,null,null,null,null,null,null,"DATA IS AUTOMATICALLY POPULATED",null,null,null,{"$f":"'203'!J16","v":16},{"$f":"'203'!L16","v":0},{"$f":"'203'!P16","v":"B"},"16  /  B"]
[null,null,null,null,null,null,null,null,null,null,null,null,null,null,null,null,null,null,null,null,null,null,null,"FROM FORM 203",null,null,null,{"$f":"'203'!J17","v":17},{"$f":"'203'!L17","v":0},{"$f":"'203'!P17","v":"C"},"17  /  C"]
[null,null,null,null,null,null,null,null,null,null,null,null,null,null,null,null,null,null,null,null,null,null,null,null,null,null,null,{"$f":"'203'!J18","v":18},{"$f":"'203'!L18","v":0},{"$f":"'203'!P18","v":"D"},"18  /  D"]
[null,null,null,null,null,null,null,null,null,null,null,null,null,null,null,null,null,null,null,null,null,null,null,null,null,null,null,{"$f":"'203'!J19","v":19},{"$f":"'203'!L19","v":0},{"$f":"'203'!P19","v":"E"},"19  /  E"]
[null,null,null,null,null,null,null,null,null,null,null,null,null,null,null,null,null,null,null,null,null,null,null,null,null,null,null,{"$f":"'203'!J20","v":20},{"$f":"'203'!L20","v":0},{"$f":"'203'!P20","v":"F"},"20  /  F"]
[null,null,null,null,null,null,null,null,null,null,null,null,null,null,null,null,null,null,null,null,null,null,null,null,null,null,null,{"$f":"'203'!J21","v":21},{"$f":"'203'!L21","v":0},{"$f":"'203'!P21","v":"G"},"21  /  G"]
[null,null,null,null,null,null,null,null,null,null,null,null,null,null,null,null,null,null,null,null,null,null,null,null,null,null,null,{"$f":"'203'!J22","v":22},{"$f":"'203'!L22","v":0},{"$f":"'203'!P22","v":"H"},"22  /  H"]
[null,null,null,null,null,null,null,null,null,null,null,null,null,null,null,null,null,null,null,null,null,null,null,null,null,null,null,{"$f":"'203'!J23","v":23},{"$f":"'203'!L23","v":0},{"$f":"'203'!P23","v":"I"},"23  /  I"]
[null,null,null,null,null,null,null,null,null,null,null,null,null,null,null,null,null,null,null,null,null,null,null,"In Excel to add line break inside a cell, use the keys Alt+Enter.  \n\nUse your Numeric keypad to insert bullets.  Alt+7 or Alt+9.  Use the Numlock on a laptop",null,null,null,{"$f":"'203'!J24","v":24},{"$f":"'203'!L24","v":0},{"$f":"'203'!P24","v":"J"},"24  /  J"]
[null,null,null,null,null,null,null,null,null,null,null,null,null,null,null,null,null,null,null,null,null,null,null,null,null,null,null,{"$f":"'203'!J25","v":25},{"$f":"'203'!L25","v":0},{"$f":"'203'!P25","v":"K"},"25  /  K"]
[null,"6. Notes:",null,null,null,null,null,null,null,null,null,null,null,null,null,null,null,null,null,null,null,null,null,null,null,null,null,{"$f":"'203'!J26","v":26},{"$f":"'203'!L26","v":0},{"$f":"'203'!P26","v":"L"},"26  /  L"]
[null,null,null,null,null,null,null,null,null,null,null,null,null,null,null,null,null,null,null,null,null,null,null,null,null,null,null,{"$f":"'203'!J27","v":27},{"$f":"'203'!L27","v":0},{"$f":"'203'!P27","v":"M"},"27  /  M"]
[null,null,null,null,null,null,null,null,null,null,null,null,null,null,null,null,null,null,null,null,null,null,null,null,null,null,null,{"$f":"'203'!J28","v":28},{"$f":"'203'!L28","v":0},{"$f":"'203'!P28","v":"N"},"28  /  N"]
[null,null,null,null,null,null,null,null,null,null,null,null,null,null,null,null,null,null,null,null,null,null,null,null,null,null,null,{"$f":"'203'!J29","v":29},{"$f":"'203'!L29","v":0},{"$f":"'203'!P29","v":"O"},"29  /  O"]
[null,null,null,null,null,null,null,null,null,null,null,null,null,null,null,null,null,null,null,null,null,null,null,null,null,null,null,{"$f":"'203'!J30","v":30},{"$f":"'203'!L30","v":0},{"$f":"'203'!P30","v":"P"},"30  /  P"]
[null,null,null,null,null,null,null,null,null,null,null,null,null,null,null,null,null,null,null,null,null,null,null,null,null,null,null,{"$f":"'203'!J31","v":31},{"$f":"'203'!L31","v":0},{"$f":"'203'!P31","v":"Q"},"31  /  Q"]
[null,null,null,null,null,null,null,null,null,null,null,null,null,null,null,null,null,null,null,null,null,null,null,null,null,null,null,{"$f":"'203'!J32","v":32},{"$f":"'203'!L32","v":0},{"$f":"'203'!P32","v":"R"},{"$f":"IF(ISBLANK($Q$6),\"\",CONCATENATE(AB32,\"  /  \",AD32))","v":"32  /  R"}]
[null,"7. Special Instructions:"]
[]
[]
[]
[]
[null,"8. Communications (radio and/or phone contact numbers needed for this assignment):"]
[null,"   Name/Function                 Assignment                                   ",null,null,null,null,null,null,"Primary Contact: indicate cell, pager, or radio (frequency/system/channel)"]
[null,{"$f":"IF(ISBLANK('205'!H8),\"\",CONCATENATE('205'!D8,\"/\",'205'!E8))","v":"Coordination/TexFire 1"},null,"/",{"$f":"'205'!H8","v":"EOC"},null,null,null,{"$f":"IF(ISBLANK('205'!J8),'205'!P8,CONCATENATE(\"Ch:\",'205'!C8,\"  RX:\",'205'!J8,\"  TX:\",'205'!L8,\"  Tone:\",'205'!N8,\"  Mode:\",'205'!O8,\"  \",'205'!P8))","v":"Ch:234  RX:154.4450 W  TX:156.4450 w  Tone:88.5  Mode:A  806-632-4251"}]
[null,{"$f":"IF(ISBLANK('205'!H9),\"\",CONCATENATE('205'!D9,\"/\",'205'!E9))","v":"Support/Telephone"},null,"/",{"$f":"'205'!H9","v":"Logistics"},null,null,null,{"$f":"IF(ISBLANK('205'!J9),'205'!P9,CONCATENATE(\"Ch:\",'205'!C9,\"  RX:\",'205'!J9,\"  TX:\",'205'!L9,\"  Tone:\",'205'!N9,\"  Mode:\",'205'!O9,\"  \",'205'!P9))","v":"806-555-0000"}]
[null,{"$f":"IF(ISBLANK(E42),\"\",VLOOKUP(E42,'205'!A8:W28,23,FALSE))","v":"ESF8/Phone"},null,"/",{"$f":"Q6","v":"ESF8"},null,null,null,{"$f":"IF(ISBLANK(E42),\"\",VLOOKUP(E42,'205'!A8:V28,22,FALSE))","v":"555-555-9911"}]
[null,{"$f":"IF(ISBLANK(E43),\"\",VLOOKUP(E43,'205'!A8:W28,23,FALSE))","v":""},null,"/",null,null,null,null,{"$f":"IF(ISBLANK(E43),\"\",VLOOKUP(E43,'205'!A8:V28,22,FALSE))","v":""},null,null,null,null,null,null,null,null,null,null,null,null,null,"NOTE** One additional Communications line can be added by typing the name exactly as it is listed on the 205, into the shaded, blank Function Cell on the bottom of the 204."]
[]
[null,"9. Prepared by:  Name:",null,null,null,null,null,null,null,"Position/Title:",null,null,null,null,null,"Signature:"]
[]
[null,"ICS 204",null,"IAP Page",null,null,null,null,null,"Date/Time:"]

{"sheet":"204x","index":8,"n_rows":47,"n_cols":31,"rows_kept":47,"cut":false,"hidden":false,"merged":[[0,22,4,32],[2,16,4,20],[5,16,6,20],[35,16,35,20],[24,16,24,20],[25,16,25,20],[27,16,27,20],[28,16,28,20],[23,23,31,25],[7,16,7,19],[35,8,35,9],[22,10,22,15],[23,10,23,15],[24,10,24,15],[25,10,25,15],[26,10,26,15],[23,16,23,20],[33,10,33,15],[34,10,34,15],[35,10,35,15],[31,10,31,15],[32,10,32,15],[27,10,27,15],[28,10,28,15],[30,16,30,20],[31,16,31,20],[32,16,32,20],[29,16,29,20],[29,10,29,15],[30,10,30,15],[26,16,26,20],[33,16,33,20],[34,16,34,20],[35,1,35,2],[24,3,24,7],[25,3,25,7],[26,3,26,7],[27,3,27,7],[26,1,26,2],[27,1,27,2],[28,1,28,2],[32,3,32,7],[34,3,34,7],[33,1,33,2],[29,1,29,2],[30,1,30,2],[31,1,31,2],[28,3,28,7],[29,3,29,7],[30,3,30,7],[31,3,31,7],[33,3,33,7],[35,3,35,7],[42,22,48,27],[43,1,43,20],[44,1,44,3],[44,4,44,8],[44,9,44,11],[44,12,44,14],[44,15,44,16],[40,1,40,2],[40,4,40,6],[40,8,40,20],[40,22,40,27],[41,1,41,2],[41,4,41,6],[41,8,41,20],[41,22,41,27],[44,17,44,20],[46,1,46,2],[46,3,46,5],[46,6,46,8],[46,9,46,11],[46,12,46,20],[42,1,42,2],[42,4,42,6],[42,8,42,20],[36,22,38,27],[37,1,37,20],[38,1,38,6],[38,8,38,20],[39,1,39,2],[39,4,39,6],[39,8,39,20],[39,22,39,27],[36,1,36,20],[22,1,22,2],[23,1,23,2],[25,1,25,2],[24,1,24,2],[34,1,34,2],[22,3,22,7],[23,3,23,7],[22,16,22,20],[32,1,32,2],[29,8,29,9],[30,8,30,9],[31,8,31,9],[32,8,32,9],[33,8,33,9],[34,8,34,9],[22,8,22,9],[23,8,23,9],[24,8,24,9],[25,8,25,9],[26,8,26,9],[27,8,27,9],[28,8,28,9],[20,1,20,2],[20,3,20,7],[20,8,20,9],[20,10,20,15],[20,16,20,20],[21,1,21,2],[21,3,21,7],[21,8,21,9],[21,10,21,15],[21,16,21,20],[18,1,18,2],[18,3,18,7],[18,8,18,9],[18,10,18,15],[18,16,18,20],[19,1,19,2],[19,3,19,7],[19,8,19,9],[19,10,19,15],[19,16,19,20],[16,1,16,2],[16,3,16,7],[16,8,16,9],[16,10,16,15],[16,16,16,20],[17,1,17,2],[17,3,17,7],[17,8,17,9],[17,10,17,15],[17,16,17,20],[14,1,14,2],[14,3,14,7],[14,8,14,9],[14,10,14,15],[14,16,14,20],[15,1,15,2],[15,3,15,7],[15,8,15,9],[15,10,15,15],[15,16,15,20],[12,1,12,2],[12,3,12,7],[12,8,12,9],[12,10,12,15],[12,16,12,20],[13,1,13,2],[13,3,13,7],[13,8,13,9],[13,10,13,15],[13,16,13,20],[8,1,8,15],[8,16,8,20],[9,1,9,7],[9,8,11,9],[9,10,11,15],[9,16,11,20],[10,1,11,2],[10,3,11,7],[6,1,6,4],[6,5,6,12],[6,13,6,15],[7,1,7,4],[7,5,7,12],[7,13,7,15],[3,14,3,15],[4,1,4,4],[4,5,4,12],[4,13,4,15],[5,1,5,4],[5,5,5,12],[5,13,5,15],[0,1,0,20],[1,1,1,5],[1,6,1,15],[1,16,1,20],[2,1,3,5],[2,6,2,8],[2,9,2,12],[2,14,2,15],[3,6,3,8],[3,9,3,12]]}
[null,"SUPPORT ASSIGNMENT LIST (204x) Page 2 of Resources",null,null,null,null,null,null,null,null,null,null,null,null,null,null,null,null,null,null,null,null,"This page is for adding more resources to the support area that will not fit in the few lines on page 1 of the 204.  "]
[null,"1. Incident Name:",null,null,null,null,"2. Operational Period:",null,null,null,null,null,null,null,null,null,"3,  "]
[null,{"$f":"Cover!B5","v":"Proposed NIMS Update"},null,null,null,null,"Date From:",null,null,{"$f":"Cover!D13","v":"2016-04-11"},null,null,null,"Date To:",{"$f":"Cover!G13","v":"2016-04-11"},null,"ESF, IMT, EOC, Department, or Agency being Supported"]
[null,null,null,null,null,null,"Time From:",null,null,{"$f":"Cover!D14","v":"06:00:00"},null,null,null,"Time To:",{"$f":"Cover!G14","v":"06:00:00"}]
[null,"4. Operations Personnel:",null,null,null,"Name",null,null,null,null,null,null,null,"Contact Number(s)"]
[null,"Support Operations Chief:",null,null,null,{"$f":"'203'!P5","v":"M. Ethridge"},null,null,null,null,null,null,null,{"$f":"IF(ISBLANK('203'!L5),\"\",'203'!L5)","v":"806-632-4251"},null,null,"ESF8"]
[null,"Deputy Support Chief",null,null,null,{"$f":"IF(ISBLANK('203'!P6),\"\",'203'!P6)","v":"T. Deputy"},null,null,null,null,null,null,null,{"$f":"IF(ISBLANK('203'!L6),\"\",'203'!L6)","v":"806-555-5555"},null,null,null,null,null,null,null,null,null,null,null,null,null,{"$f":"'203'!L9","v":0},{"$f":"'203'!L10","v":"806-222-4242"},{"$f":"'203'!P10","v":"H. Smith"}]
[null,"EOC, IMT, Agency Supported",null,null,null,{"$f":"IF(ISBLANK(E42),\"\",VLOOKUP(E42,AB10:AE32,4,FALSE))","v":"ESF8  /  S. Wilson"},null,null,null,null,null,null,null,{"$f":"IF(ISBLANK(E42),\"\",VLOOKUP(E42,AB10:AD32,2,FALSE))","v":"214-234-5678"},null,null,"Staging Area:",null,null,null,null,null,null,null,null,null,null,{"$f":"'203'!L17","v":0},{"$f":"'203'!L18","v":0},{"$f":"'203'!P18","v":"D"}]
[null,null,null,null,null,null,null,null,null,null,null,null,null,null,null,null,null,null,null,null,null,null,null,null,null,null,null,{"$f":"'203'!L25","v":0},{"$f":"'203'!L26","v":0},{"$f":"'203'!P26","v":"L"}]
[null,"5. Resources Assigned:",null,null,null,null,null,null,"# of Persons",null,"Contact e.g., (phone, pager, radio, frequency, etc.)",null,null,null,null,null,"Reporting Location, Special Equipment and Supplies, Remarks, Notes, Information",null,null,null,null,null,null,null,null,null,null,{"$f":"'203'!J10","v":"ESF 4 Fire"},{"$f":"'203'!L10","v":"806-222-4242"},{"$f":"'203'!P10","v":"H. Smith"},{"$f":"IF(ISBLANK($Q$6),\"\",CONCATENATE(AB10,\"  /  \",AD10))","v":"ESF 4 Fire  /  H. Smith"}]
[null,"Resource Identifier",null,"Leader",null,null,null,null,null,null,null,null,null,null,null,null,null,null,null,null,null,null,null,null,null,null,null,{"$f":"'203'!J11","v":"ESF8"},{"$f":"'203'!L11","v":"214-234-5678"},{"$f":"'203'!P11","v":"S. Wilson"},{"$f":"IF(ISBLANK($Q$6),\"\",CONCATENATE(AB11,\"  /  \",AD11))","v":"ESF8  /  S. Wilson"}]
[null,null,null,null,null,null,null,null,null,null,null,null,null,null,null,null,null,null,null,null,null,null,null,null,null,null,null,{"$f":"'203'!J12","v":"Public Works"},{"$f":"'203'!L12","v":"555-213-4352"},{"$f":"'203'!P12","v":"B. Dozer"},"Public Works  /  B. Dozer"]
[null,null,null,null,null,null,null,null,null,null,null,null,null,null,null,null,null,null,null,null,null,null,null,null,null,null,null,{"$f":"'203'!J13","v":"South Plains IMT"},{"$f":"'203'!L13","v":"444-321-9876"},{"$f":"'203'!P13","v":"C. Buck"},"South Plains IMT  /  C. Buck"]
[null,null,null,null,null,null,null,null,null,null,null,null,null,null,null,null,null,null,null,null,null,null,null,null,null,null,null,{"$f":"'203'!J14","v":"Methodist Hospital"},{"$f":"'203'!L14","v":"806-555-5555"},{"$f":"'203'!P14","v":"W. Hurt"},"Methodist Hospital  /  W. Hurt"]
[null,null,null,null,null,null,null,null,null,null,null,null,null,null,null,null,null,null,null,null,null,null,null,"NOTE: BLOCK 4. INFORMATION AND",null,null,null,{"$f":"'203'!J15","v":15},{"$f":"'203'!L15","v":0},{"$f":"'203'!P15","v":"A"},"15  /  A"]
[null,null,null,null,null,null,null,null,null,null,null,null,null,null,null,null,null,null,null,null,null,null,null,"DATA IS AUTOMATICALLY POPULATED",null,null,null,{"$f":"'203'!J16","v":16},{"$f":"'203'!L16","v":0},{"$f":"'203'!P16","v":"B"},"16  /  B"]
[null,null,null,null,null,null,null,null,null,null,null,null,null,null,null,null,null,null,null,null,null,null,null,"FROM FORM 203",null,null,null,{"$f":"'203'!J17","v":17},{"$f":"'203'!L17","v":0},{"$f":"'203'!P17","v":"C"},"17  /  C"]
[null,null,null,null,null,null,null,null,null,null,null,null,null,null,null,null,null,null,null,null,null,null,null,null,null,null,null,{"$f":"'203'!J18","v":18},{"$f":"'203'!L18","v":0},{"$f":"'203'!P18","v":"D"},"18  /  D"]
[null,null,null,null,null,null,null,null,null,null,null,null,null,null,null,null,null,null,null,null,null,null,null,null,null,null,null,{"$f":"'203'!J19","v":19},{"$f":"'203'!L19","v":0},{"$f":"'203'!P19","v":"E"},"19  /  E"]
[null,null,null,null,null,null,null,null,null,null,null,null,null,null,null,null,null,null,null,null,null,null,null,null,null,null,null,{"$f":"'203'!J20","v":20},{"$f":"'203'!L20","v":0},{"$f":"'203'!P20","v":"F"},"20  /  F"]
[null,null,null,null,null,null,null,null,null,null,null,null,null,null,null,null,null,null,null,null,null,null,null,null,null,null,null,{"$f":"'203'!J21","v":21},{"$f":"'203'!L21","v":0},{"$f":"'203'!P21","v":"G"},"21  /  G"]
[null,null,null,null,null,null,null,null,null,null,null,null,null,null,null,null,null,null,null,null,null,null,null,null,null,null,null,{"$f":"'203'!J22","v":22},{"$f":"'203'!L22","v":0},{"$f":"'203'!P22","v":"H"},"22  /  H"]
[null,null,null,null,null,null,null,null,null,null,null,null,null,null,null,null,null,null,null,null,null,null,null,null,null,null,null,{"$f":"'203'!J23","v":23},{"$f":"'203'!L23","v":0},{"$f":"'203'!P23","v":"I"},"23  /  I"]
[null,null,null,null,null,null,null,null,null,null,null,null,null,null,null,null,null,null,null,null,null,null,null,"In Excel to add line break inside a cell, use the keys Alt+Enter.  \n\nUse your Numeric keypad to insert bullets.  Alt+7 or Alt+9.  Use the Numlock on a laptop",null,null,null,{"$f":"'203'!J24","v":24},{"$f":"'203'!L24","v":0},{"$f":"'203'!P24","v":"J"},"24  /  J"]
[null,null,null,null,null,null,null,null,null,null,null,null,null,null,null,null,null,null,null,null,null,null,null,null,null,null,null,{"$f":"'203'!J25","v":25},{"$f":"'203'!L25","v":0},{"$f":"'203'!P25","v":"K"},"25  /  K"]
[null,null,null,null,null,null,null,null,null,null,null,null,null,null,null,null,null,null,null,null,null,null,null,null,null,null,null,{"$f":"'203'!J26","v":26},{"$f":"'203'!L26","v":0},{"$f":"'203'!P26","v":"L"},"26  /  L"]
[null,null,null,null,null,null,null,null,null,null,null,null,null,null,null,null,null,null,null,null,null,null,null,null,null,null,null,{"$f":"'203'!J27","v":27},{"$f":"'203'!L27","v":0},{"$f":"'203'!P27","v":"M"},"27  /  M"]
[null,null,null,null,null,null,null,null,null,null,null,null,null,null,null,null,null,null,null,null,null,null,null,null,null,null,null,{"$f":"'203'!J28","v":28},{"$f":"'203'!L28","v":0},{"$f":"'203'!P28","v":"N"},"28  /  N"]
[null,null,null,null,null,null,null,null,null,null,null,null,null,null,null,null,null,null,null,null,null,null,null,null,null,null,null,{"$f":"'203'!J29","v":29},{"$f":"'203'!L29","v":0},{"$f":"'203'!P29","v":"O"},"29  /  O"]
[null,null,null,null,null,null,null,null,null,null,null,null,null,null,null,null,null,null,null,null,null,null,null,null,null,null,null,{"$f":"'203'!J30","v":30},{"$f":"'203'!L30","v":0},{"$f":"'203'!P30","v":"P"},"30  /  P"]
[null,null,null,null,null,null,null,null,null,null,null,null,null,null,null,null,null,null,null,null,null,null,null,null,null,null,null,{"$f":"'203'!J31","v":31},{"$f":"'203'!L31","v":0},{"$f":"'203'!P31","v":"Q"},"31  /  Q"]
[null,null,null,null,null,null,null,null,null,null,null,null,null,null,null,null,null,null,null,null,null,null,null,null,null,null,null,{"$f":"'203'!J32","v":32},{"$f":"'203'!L32","v":0},{"$f":"'203'!P32","v":"R"},{"$f":"IF(ISBLANK($Q$6),\"\",CONCATENATE(AB32,\"  /  \",AD32))","v":"32  /  R"}]
[]
[]
[]
[]
[null,"NOTE*****For Notes and Special Instructions                                refer to page 1 of this 204.*****"]
[null,"8. Communications (radio and/or phone contact numbers needed for this assignment):"]
[null,"   Name/Function                 Assignment                                   ",null,null,null,null,null,null,"Primary Contact: indicate cell, pager, or radio (frequency/system/channel)"]
[null,{"$f":"IF(ISBLANK('205'!H8),\"\",CONCATENATE('205'!D8,\"/\",'205'!E8))","v":"Coordination/TexFire 1"},null,"/",{"$f":"'205'!H8","v":"EOC"},null,null,null,{"$f":"IF(ISBLANK('205'!J8),'205'!P8,CONCATENATE(\"Ch:\",'205'!C8,\"  RX:\",'205'!J8,\"  TX:\",'205'!L8,\"  Tone:\",'205'!N8,\"  Mode:\",'205'!O8,\"  \",'205'!P8))","v":"Ch:234  RX:154.4450 W  TX:156.4450 w  Tone:88.5  Mode:A  806-632-4251"}]
[null,{"$f":"IF(ISBLANK('205'!H9),\"\",CONCATENATE('205'!D9,\"/\",'205'!E9))","v":"Support/Telephone"},null,"/",{"$f":"'205'!H9","v":"Logistics"},null,null,null,{"$f":"IF(ISBLANK('205'!J9),'205'!P9,CONCATENATE(\"Ch:\",'205'!C9,\"  RX:\",'205'!J9,\"  TX:\",'205'!L9,\"  Tone:\",'205'!N9,\"  Mode:\",'205'!O9,\"  \",'205'!P9))","v":"806-555-0000"}]
[null,{"$f":"IF(ISBLANK(E42),\"\",VLOOKUP(E42,'205'!A8:W28,23,FALSE))","v":"ESF8/Phone"},null,"/",{"$f":"Q6","v":"ESF8"},null,null,null,{"$f":"IF(ISBLANK(E42),\"\",VLOOKUP(E42,'205'!A8:V28,22,FALSE))","v":"555-555-9911"}]
[null,{"$f":"IF(ISBLANK(E43),\"\",VLOOKUP(E43,'205'!A8:W28,23,FALSE))","v":""},null,"/",null,null,null,null,{"$f":"IF(ISBLANK(E43),\"\",VLOOKUP(E43,'205'!A8:V28,22,FALSE))","v":""},null,null,null,null,null,null,null,null,null,null,null,null,null,"NOTE** One additional Communications line can be added by typing the name exactly as it is listed on the 205, into the shaded, blank Function Cell on the bottom of the 204."]
[]
[null,"9. Prepared by:  Name:",null,null,null,null,null,null,null,"Position/Title:",null,null,null,null,null,"Signature:"]
[]
[null,"ICS 204",null,"IAP Page",null,null,"2 of 2",null,null,"Date/Time:"]

{"sheet":"204Inst","index":9,"n_rows":47,"n_cols":6,"rows_kept":47,"cut":false,"hidden":true,"merged":[[37,0,41,0],[5,5,7,6],[42,0,46,0],[42,2,46,2],[3,0,3,2],[5,0,5,2],[7,0,7,2],[28,0,33,0],[29,1,30,1],[16,0,18,0],[16,2,18,2],[19,0,22,0],[23,0,27,0],[23,2,27,2]]}
["ICS 204"]
["Assignment List"]
[]
["Purpose.  The Assignment List(s) (ICS 204) informs Division and Group supervisors of incident assignments.  Once the Command and General Staffs agree to the assignments, the assignment information is given to the appropriate Divisions and Groups."]
[]
["Preparation.  The ICS 204 is normally prepared by the Resources Unit, using guidance from the Incident Objectives (ICS 202), Operational Planning Worksheet (ICS 215), and the Operations Section Chief.  It must be approved by the Incident Commander, but may be reviewed and initialed by the Planning Section Chief and Operations Section Chief as well.",null,null,null,null,"This Button returns to the original 204 not a copy that you have made."]
[]
["Distribution.  The ICS 204 is duplicated and attached to the ICS 202 and given to all recipients as part of the Incident Action Plan (IAP).  In some cases, assignments may be communicated via radio/telephone/fax.  All completed original forms must be given to the Documentation Unit."]
[]
["Notes:"]
["·       The ICS 204 details assignments at Division and Group levels and is part of the IAP."]
["·       Multiple pages/copies can be used if needed."]
["·       If additional pages are needed, use a blank ICS 204 and repaginate as needed."]
[]
["Block Number","Block Title","Instructions"]
[1,"Incident Name","Enter the name assigned to the incident."]
[2,"Operational Period","Enter the start date (month/day/year) and time (using the 24-hour clock) and end date and time for the operational period to which the form applies."]
[null,"·       Date and Time From"]
[null,"·       Date and Time To"]
[3,"Branch","This block is for use in a large IAP for reference only."]
[null,"Division","Write the alphanumeric abbreviation for the Branch, Division, Group, and Staging Area (e.g., “Branch 1,” “Division D,” “Group 1A”) in large letters for easy referencing."]
[null,"Group"]
[null,"Staging Area"]
[4,"Operations Personnel","Enter the name and contact numbers of the Operations Section Chief, applicable Branch Director(s), and Division/Group Supervisor(s)."]
[null,"·       Name, Contact Number(s)"]
[null,"–      Operations Section Chief"]
[null,"–      Branch Director"]
[null,"–      Division/Group Supervisor"]
[5,"Resources Assigned","Enter the following information about the resources assigned to the Division or Group for this period:"]
[null,"·       Resource Identifier","The identifier is a unique way to identify a resource (e.g., ENG-13,"]
[null,null,"IA-SCC-413).  If the resource has been ordered but no identification has been received, use TBD (to be determined)."]
[null,"·       Leader","Enter resource leader’s name."]
[null,"·       # of Persons","Enter total number of persons for the resource assigned, including the leader."]
[null,"·       Contact (e.g., phone, pager, radio frequency, etc.)","Enter primary means of contacting the leader or contact person (e.g., radio, phone, pager, etc.).  Be sure to include the area code when listing a phone number."]
[null,"·       Reporting Location, Special Equipment and Supplies, Remarks, Notes, Information","Provide special notes or directions specific to this resource.  If required, add notes to indicate:  (1) specific location/time where the resource should report or be dropped off/picked up; (2) special equipment and supplies that will be used or needed; (3) whether or not the resource received briefings; (4) transportation needs; or (5) other information."]
[6,"Work Assignments","Provide a statement of the tactical objectives to be achieved within the operational period by personnel assigned to this Division or Group."]
[7,"Special Instructions","Enter a statement noting any safety problems, specific precautions to be exercised, dropoff or pickup points, or other important information."]
[8,"Communications (radio and/or phone contact numbers needed for this assignment)","Enter specific communications information (including emergency numbers) for this Branch/Division/Group."]
[null,"·       Name/Function","If radios are being used, enter function (command, tactical, support, etc.), frequency, system, and channel from the Incident Radio Communications Plan (ICS 205)."]
[null,"·       Primary Contact:  indicate cell, pager, or radio (frequency/system/channel)","Phone and pager numbers should include the area code and any satellite phone specifics."]
[null,null,"In light of potential IAP distribution, use sensitivity when including cell phone number."]
[null,null,"Add a secondary contact (phone number or radio) if needed."]
[9,"Prepared by","Enter the name, ICS position, and signature of the person preparing the form.  Enter date (month/day/year) and time prepared (24-hour clock).  "]
[null,"·       Name"]
[null,"·       Position/Title"]
[null,"·       Signature"]
[null,"·       Date/Time"]

{"sheet":"205","index":10,"n_rows":32,"n_cols":23,"rows_kept":32,"cut":false,"hidden":false,"merged":[[18,4,18,6],[18,7,18,8],[18,11,18,12],[18,15,18,16],[19,15,19,16],[19,11,19,12],[19,7,19,8],[19,4,19,6],[29,18,37,20],[25,4,25,6],[25,7,25,8],[25,11,25,12],[25,15,25,16],[24,4,24,6],[24,7,24,8],[24,11,24,12],[24,15,24,16],[27,4,27,6],[27,7,27,8],[27,11,27,12],[27,15,27,16],[26,4,26,6],[26,7,26,8],[26,11,26,12],[5,1,6,1],[5,2,6,2],[5,3,6,3],[0,1,0,16],[1,12,1,16],[4,1,4,16],[1,1,1,5],[2,1,3,5],[2,7,2,11],[1,6,1,11],[2,15,2,16],[3,15,3,16],[3,7,3,11],[7,15,7,16],[5,14,6,14],[5,4,6,6],[5,7,6,8],[5,9,6,9],[5,10,6,10],[5,15,6,16],[7,7,7,8],[7,11,7,12],[5,11,6,12],[5,13,6,13],[7,4,7,6],[10,15,10,16],[9,4,9,6],[9,7,9,8],[9,11,9,12],[9,15,9,16],[10,4,10,6],[10,7,10,8],[10,11,10,12],[8,4,8,6],[8,15,8,16],[8,7,8,8],[8,11,8,12],[12,4,12,6],[12,7,12,8],[12,11,12,12],[12,15,12,16],[11,4,11,6],[11,7,11,8],[11,11,11,12],[11,15,11,16],[14,4,14,6],[14,7,14,8],[14,11,14,12],[14,15,14,16],[13,4,13,6],[13,7,13,8],[13,11,13,12],[13,15,13,16],[16,4,16,6],[16,7,16,8],[16,11,16,12],[16,15,16,16],[15,4,15,6],[15,7,15,8],[15,11,15,12],[15,15,15,16],[23,4,23,6],[23,7,23,8],[23,11,23,12],[23,15,23,16],[17,4,17,6],[17,7,17,8],[17,11,17,12],[17,15,17,16],[20,4,20,6],[20,7,20,8],[20,11,20,12],[20,15,20,16],[21,4,21,6],[21,7,21,8],[21,11,21,12],[21,15,21,16],[26,15,26,16],[31,1,31,5],[28,1,28,16],[29,1,29,16],[30,1,30,6],[30,8,30,11],[30,13,30,16],[31,10,31,16],[22,4,22,6],[22,7,22,8],[22,11,22,12],[22,15,22,16]]}
[null,"SUPPORT RADIO COMMUNICATIONS PLAN (ICS 205)"]
[null,"1. Incident Name:",null,null,null,null,"2. Date/Time Prepared:",null,null,null,null,null,"3. Operational Period:"]
[null,{"$f":"Cover!B5","v":"Proposed NIMS Update"},null,null,null,null,"Date: ",null,null,null,null,null,"Date From:",{"$f":"Cover!D13","v":"2016-04-11"},"Date To:",{"$f":"Cover!G13","v":"2016-04-11"}]
[null,null,null,null,null,null,"Time:  ",null,null,null,null,null,"Time From:",{"$f":"Cover!D14","v":"06:00:00"},"Time To:",{"$f":"Cover!G14","v":"06:00:00"}]
[null,"4. Basic Radio Channel Use:"]
[null,"Zone Grp.","Ch #","Function","Channel Name/Trunked Radio System Talkgroup",null,null,"Assignment (Div/Group/etc.)",null,"RX Freq   N or W","RX Tone/NAC","TX Freq   N or W",null,"TX Tone/NAC","Mode         (A, D, or M)","Remarks"]
[]
[{"$f":"H8","v":"EOC"},null,234,"Coordination","TexFire 1",null,null,"EOC",null,"154.4450 W",88.5,"156.4450 w",null,88.5,"A","806-632-4251",null,null,null,{"$f":"D8","v":"Coordination"},{"$f":"E8","v":"TexFire 1"},{"$f":"IF(ISBLANK('205'!J8),'205'!P8,CONCATENATE(\"Ch:\",'205'!C8,\"  RX:\",'205'!J8,\"  TX:\",'205'!L8,\"  Tone:\",'205'!N8,\"  Mode:\",'205'!O8,\"  \",'205'!P8))","v":"Ch:234  RX:154.4450 W  TX:156.4450 w  Tone:88.5  Mode:A  806-632-4251"},{"$f":"CONCATENATE(D8,\"/\",E8)","v":"Coordination/TexFire 1"}]
[{"$f":"H9","v":"Logistics"},null,6,"Support","Telephone",null,null,"Logistics",null,null,null,null,null,null,null,"806-555-0000",null,null,null,{"$f":"D9","v":"Support"},"Telephone",{"$f":"IF(ISBLANK('205'!J9),'205'!P9,CONCATENATE(\"Ch:\",'205'!C9,\"  RX:\",'205'!J9,\"  TX:\",'205'!L9,\"  Tone:\",'205'!N9,\"  Mode:\",'205'!O9,\"  \",'205'!P9))","v":"806-555-0000"},{"$f":"CONCATENATE(D9,\"/\",E9)","v":"Support/Telephone"}]
["Div B",null,null,"ESF 4 Fire","Cell Phone",null,null,"Div B",null,null,null,null,null,null,null,"555-666-7777",null,null,null,"ESF 4 Fire","Cell Phone",{"$f":"IF(ISBLANK('205'!J10),'205'!P10,CONCATENATE(\"Ch:\",'205'!C10,\"  RX:\",'205'!J10,\"  TX:\",'205'!L10,\"  Tone:\",'205'!N10,\"  Mode:\",'205'!O10,\"  \",'205'!P10))","v":"555-666-7777"},"ESF 4 Fire/Cell Phone"]
["LE","A",4,null,"Future Use",null,null,"LE",null,"22N",33,"44 W",null,"TBD","D",null,null,null,null,0,"Future Use",{"$f":"IF(ISBLANK('205'!J11),'205'!P11,CONCATENATE(\"Ch:\",'205'!C11,\"  RX:\",'205'!J11,\"  TX:\",'205'!L11,\"  Tone:\",'205'!N11,\"  Mode:\",'205'!O11,\"  \",'205'!P11))","v":"Ch:4  RX:22N  TX:44 W  Tone:TBD  Mode:D  "},"/Future Use"]
["Public Works",null,3,"Tactical","Talk 3",null,null,"Public Works",null,"800.0150 N",null,"800.0150 N",null,null,"M ",null,null,null,null,"Tactical","Talk 3",{"$f":"IF(ISBLANK('205'!J12),'205'!P12,CONCATENATE(\"Ch:\",'205'!C12,\"  RX:\",'205'!J12,\"  TX:\",'205'!L12,\"  Tone:\",'205'!N12,\"  Mode:\",'205'!O12,\"  \",'205'!P12))","v":"Ch:3  RX:800.0150 N  TX:800.0150 N  Tone:  Mode:M   "},"Tactical/Talk 3"]
["EMS Group",null,null,"Dispatch","MED 2",null,null,"EMS Group",null,"700.005 N",null,"700,010 N",null,null,"D",null,null,null,null,"Dispatch","MED 2",{"$f":"IF(ISBLANK('205'!J13),'205'!P13,CONCATENATE(\"Ch:\",'205'!C13,\"  RX:\",'205'!J13,\"  TX:\",'205'!L13,\"  Tone:\",'205'!N13,\"  Mode:\",'205'!O13,\"  \",'205'!P13))","v":"Ch:  RX:700.005 N  TX:700,010 N  Tone:  Mode:D  "},"Dispatch/MED 2"]
["Div Z","X",7,"Master","Tester",null,null,"Div Z",null,"100.100 W",124.7,"100.6000 W",null,124.7,"A","None",null,null,null,"Master","Tester",{"$f":"IF(ISBLANK('205'!J14),'205'!P14,CONCATENATE(\"Ch:\",'205'!C14,\"  RX:\",'205'!J14,\"  TX:\",'205'!L14,\"  Tone:\",'205'!N14,\"  Mode:\",'205'!O14,\"  \",'205'!P14))","v":"Ch:7  RX:100.100 W  TX:100.6000 W  Tone:124.7  Mode:A  None"},"Master/Tester"]
["East",null,null,"Staging Area",null,null,null,"East",null,null,null,null,null,null,null,"555-1234",null,null,null,"Staging Area",0,{"$f":"IF(ISBLANK('205'!J15),'205'!P15,CONCATENATE(\"Ch:\",'205'!C15,\"  RX:\",'205'!J15,\"  TX:\",'205'!L15,\"  Tone:\",'205'!N15,\"  Mode:\",'205'!O15,\"  \",'205'!P15))","v":"555-1234"},"Staging Area/"]
["ESF8",null,null,"ESF8","Phone",null,null,"ESF8",null,null,null,null,null,null,null,"555-555-9911",null,null,null,"ESF8","Phone",{"$f":"IF(ISBLANK('205'!J16),'205'!P16,CONCATENATE(\"Ch:\",'205'!C16,\"  RX:\",'205'!J16,\"  TX:\",'205'!L16,\"  Tone:\",'205'!N16,\"  Mode:\",'205'!O16,\"  \",'205'!P16))","v":"555-555-9911"},"ESF8/Phone"]
[{"$f":"H17","v":0},null,null,null,null,null,null,null,null,null,null,null,null,null,null,null,null,null,null,0,0,{"$f":"IF(ISBLANK('205'!J17),'205'!P17,CONCATENATE(\"Ch:\",'205'!C17,\"  RX:\",'205'!J17,\"  TX:\",'205'!L17,\"  Tone:\",'205'!N17,\"  Mode:\",'205'!O17,\"  \",'205'!P17))","v":0},"/"]
[0,null,null,null,null,null,null,null,null,null,null,null,null,null,null,null,null,null,null,0,0,{"$f":"IF(ISBLANK('205'!J18),'205'!P18,CONCATENATE(\"Ch:\",'205'!C18,\"  RX:\",'205'!J18,\"  TX:\",'205'!L18,\"  Tone:\",'205'!N18,\"  Mode:\",'205'!O18,\"  \",'205'!P18))","v":0},"/"]
[0,null,null,null,null,null,null,null,null,null,null,null,null,null,null,null,null,null,null,{"$f":"D19","v":0},{"$f":"E19","v":0},{"$f":"IF(ISBLANK('205'!J19),'205'!P19,CONCATENATE(\"Ch:\",'205'!C19,\"  RX:\",'205'!J19,\"  TX:\",'205'!L19,\"  Tone:\",'205'!N19,\"  Mode:\",'205'!O19,\"  \",'205'!P19))","v":0},"/"]
[0,null,null,null,null,null,null,null,null,null,null,null,null,null,null,null,null,null,null,0,0,{"$f":"IF(ISBLANK('205'!J20),'205'!P20,CONCATENATE(\"Ch:\",'205'!C20,\"  RX:\",'205'!J20,\"  TX:\",'205'!L20,\"  Tone:\",'205'!N20,\"  Mode:\",'205'!O20,\"  \",'205'!P20))","v":0},"/"]
[0,null,null,null,null,null,null,null,null,null,null,null,null,null,null,null,null,null,null,0,0,{"$f":"IF(ISBLANK('205'!J21),'205'!P21,CONCATENATE(\"Ch:\",'205'!C21,\"  RX:\",'205'!J21,\"  TX:\",'205'!L21,\"  Tone:\",'205'!N21,\"  Mode:\",'205'!O21,\"  \",'205'!P21))","v":0},"/"]
[0,null,null,null,null,null,null,null,null,null,null,null,null,null,null,null,null,null,null,0,0,{"$f":"IF(ISBLANK('205'!J22),'205'!P22,CONCATENATE(\"Ch:\",'205'!C22,\"  RX:\",'205'!J22,\"  TX:\",'205'!L22,\"  Tone:\",'205'!N22,\"  Mode:\",'205'!O22,\"  \",'205'!P22))","v":0},"/"]
[0,null,null,null,null,null,null,null,null,null,null,null,null,null,null,null,null,null,null,0,0,{"$f":"IF(ISBLANK('205'!J23),'205'!P23,CONCATENATE(\"Ch:\",'205'!C23,\"  RX:\",'205'!J23,\"  TX:\",'205'!L23,\"  Tone:\",'205'!N23,\"  Mode:\",'205'!O23,\"  \",'205'!P23))","v":0},"/"]
[0,null,null,null,null,null,null,null,null,null,null,null,null,null,null,null,null,null,null,0,0,{"$f":"IF(ISBLANK('205'!J24),'205'!P24,CONCATENATE(\"Ch:\",'205'!C24,\"  RX:\",'205'!J24,\"  TX:\",'205'!L24,\"  Tone:\",'205'!N24,\"  Mode:\",'205'!O24,\"  \",'205'!P24))","v":0},"/"]
[0,null,null,null,null,null,null,null,null,null,null,null,null,null,null,null,null,null,null,0,0,{"$f":"IF(ISBLANK('205'!J25),'205'!P25,CONCATENATE(\"Ch:\",'205'!C25,\"  RX:\",'205'!J25,\"  TX:\",'205'!L25,\"  Tone:\",'205'!N25,\"  Mode:\",'205'!O25,\"  \",'205'!P25))","v":0},"/"]
[0,null,null,null,null,null,null,null,null,null,null,null,null,null,null,null,null,null,null,0,0,{"$f":"IF(ISBLANK('205'!J26),'205'!P26,CONCATENATE(\"Ch:\",'205'!C26,\"  RX:\",'205'!J26,\"  TX:\",'205'!L26,\"  Tone:\",'205'!N26,\"  Mode:\",'205'!O26,\"  \",'205'!P26))","v":0},"/"]
[0,null,null,null,null,null,null,null,null,null,null,null,null,null,null,null,null,null,null,0,0,{"$f":"IF(ISBLANK('205'!J27),'205'!P27,CONCATENATE(\"Ch:\",'205'!C27,\"  RX:\",'205'!J27,\"  TX:\",'205'!L27,\"  Tone:\",'205'!N27,\"  Mode:\",'205'!O27,\"  \",'205'!P27))","v":0},"/"]
[0,null,null,null,null,null,null,null,null,null,null,null,null,null,null,null,null,null,null,0,0,{"$f":"IF(ISBLANK('205'!J28),'205'!P28,CONCATENATE(\"Ch:\",'205'!C28,\"  RX:\",'205'!J28,\"  TX:\",'205'!L28,\"  Tone:\",'205'!N28,\"  Mode:\",'205'!O28,\"  \",'205'!P28))","v":0},"/"]
[null,"5. Special Instructions:"]
[null,"\n\n*****For medical emergencies tune your radio to EMS Group ( RX-700.0005 N, TX-700.010 N) and call for ambulance.",null,null,null,null,null,null,null,null,null,null,null,null,null,null,null,null,"In Excel to add line break inside a cell, use the keys Alt+Enter.  \n\nUse your Numeric keypad to insert bullets.  Alt+7 or Alt+9.  Use the Numlock on a laptop"]
[null,"6. Prepared by (Communications Unit Leader):  Name:",null,null,null,null,null,"Name:",null,null,null,null,"Signature:"]
[null,"ICS 205 ",null,null,null,null,"IAP Page",null,null,"Date/Time:   "]

{"sheet":"205Inst","index":11,"n_rows":41,"n_cols":3,"rows_kept":41,"cut":false,"hidden":true,"merged":[[20,0,28,0],[36,0,40,0],[36,2,40,2],[4,0,4,2],[6,0,6,2],[8,0,8,2],[11,0,11,2],[17,0,19,0],[17,2,19,2]]}
[]
["ICS 205"]
["Incident Radio Communications Plan"]
[]
["Purpose.  The Incident Radio Communications Plan (ICS 205) provides information on all radio frequency or trunked radio system talkgroup assignments for each operational period.  The plan is a summary of information obtained about available radio frequencies or talkgroups and the assignments of those resources by the Communications Unit Leader for use by incident responders.  Information from the Incident Radio Communications Plan on frequency or talkgroup assignments is normally placed on the Assignment List (ICS 204)."]
[]
["Preparation.  The ICS 205 is prepared by the Communications Unit Leader and given to the Planning Section Chief for inclusion in the Incident Action Plan.  "]
[]
["Distribution.  The ICS 205 is duplicated and attached to the Incident Objectives (ICS 202) and given to all recipients as part of the Incident Action Plan (IAP).  All completed original forms must be given to the Documentation Unit.  Information from the ICS 205 is placed on Assignment Lists."]
[]
["Notes: "]
["·       The ICS 205 is used to provide, in one location, information on all radio frequency assignments down to the Division/Group level for each operational period."]
["·       The ICS 205 serves as part of the IAP."]
[]
["Block Number","Block Title","Instructions"]
[1,"Incident Name","Enter the name assigned to the incident."]
[2,"Date/Time Prepared","Enter date prepared (month/day/year) and time prepared (using the 24-hour clock)."]
[3,"Operational Period","Enter the start date (month/day/year) and time (using the 24-hour clock) and end date and time for the operational period to which the form applies."]
[null,"·       Date and Time From"]
[null,"·       Date and Time To"]
[4,"Basic Radio Channel Use","Enter the following information about radio channel use:"]
[null,"Zone Group"]
[null,"Channel Number","Use at the Communications Unit Leader’s discretion.  Channel Number (Ch #) may equate to the channel number for incident radios that are programmed or cloned for a specific Communications Plan, or it may be used just as a reference line number on the ICS 205 document."]
[null,"Function","Enter the Net function each channel or talkgroup will be used for (Command, Tactical, Ground-to-Air, Air-to-Air, Support, Dispatch)."]
[null,"Channel Name/Trunked Radio System Talkgroup","Enter the nomenclature or commonly used name for the channel or talkgroup."]
[null,"Assignment","Enter the name of the ICS Branch/Division/Group/Section to which this channel/talkgroup will assigned."]
[null,"RX (Receive) Frequency","Enter the Receive Frequency (RX Freq) as the mobile or portable subscriber would be programmed using xxx.xxxx out to four decimal places, followed by an “N” designating narrowband or a “W” designating wideband emissions."]
[null,"(N or W)","The name of the specific trunked radio system with which the talkgroup is associated may be entered across all fields on the ICS 205 normally used for conventional channel programming information."]
[null,"RX Tone/NAC","Enter the Receive Continuous Tone Coded Squelch System (CTCSS) subaudible tone (RX Tone) or Network Access Code (RX NAC) for the receive frequency as the mobile or portable subscriber would be programmed."]
[]
["Block Number","Block Title","Instructions"]
[4,"TX (Transmit) Frequency (N or W)","Enter the Transmit Frequency (TX Freq) as the mobile or portable subscriber would be programmed using xxx.xxxx out to four decimal places, followed by an “N” designating narrowband or a “W” designating wideband emissions."]
["(continued)","TX Tone/NAC","Enter the Transmit Continuous Tone Coded Squelch System (CTCSS) subaudible tone (TX Tone) or Network Access Code (TX NAC) for the transmit frequency as the mobile or portable subscriber would be programmed."]
[null,"Mode (A, D, or M)","Enter “A” for analog operation, “D” for digital operation, or “M” for mixed mode operation."]
[null,"Remarks","Enter miscellaneous information concerning repeater locations, information concerning patched channels or talkgroups using links or gateways, etc."]
[5,"Special Instructions","Enter any special instructions (e.g., using cross-band repeaters, secure-voice, encoders, private line (PL) tones, etc.) or other emergency communications needs).  If needed, also include any special instructions for handling an incident within an incident."]
[6,"Prepared by","Enter the name and signature of the person preparing the form, typically the Communications Unit Leader.  Enter date (month/day/year) and time prepared (24-hour clock)."]
[null,"(Communications Unit Leader)"]
[null,"·       Name"]
[null,"·       Signature"]
[null,"·       Date/Time"]

{"sheet":"205A","index":12,"n_rows":42,"n_cols":10,"rows_kept":42,"cut":false,"hidden":false,"merged":[[32,2,32,3],[33,2,33,3],[30,2,30,3],[31,2,31,3],[28,2,28,3],[29,2,29,3],[12,2,12,3],[13,2,13,3],[22,2,22,3],[23,2,23,3],[20,2,20,3],[21,2,21,3],[14,2,14,3],[15,2,15,3],[26,2,26,3],[27,2,27,3],[24,2,24,3],[25,2,25,3],[18,2,18,3],[19,2,19,3],[16,2,16,3],[17,2,17,3],[41,1,41,2],[40,1,40,3],[38,2,38,3],[39,2,39,3],[36,2,36,3],[37,2,37,3],[34,2,34,3],[35,2,35,3],[17,6,17,9],[38,6,38,9],[37,6,37,9],[36,6,36,9],[36,4,36,5],[37,4,37,5],[38,4,38,5],[39,4,39,5],[34,4,34,5],[35,4,35,5],[24,4,24,5],[25,4,25,5],[26,4,26,5],[27,4,27,5],[28,4,28,5],[29,4,29,5],[40,8,40,9],[40,5,40,6],[21,6,21,9],[20,6,20,9],[25,6,25,9],[24,6,24,9],[23,6,23,9],[22,6,22,9],[29,6,29,9],[28,6,28,9],[33,6,33,9],[32,6,32,9],[31,6,31,9],[30,6,30,9],[32,4,32,5],[33,4,33,5],[39,6,39,9],[19,4,19,5],[20,4,20,5],[21,4,21,5],[16,6,16,9],[19,6,19,9],[18,6,18,9],[27,6,27,9],[26,6,26,9],[35,6,35,9],[34,6,34,9],[0,1,0,9],[7,4,7,5],[6,4,6,5],[15,4,15,5],[14,4,14,5],[13,4,13,5],[12,4,12,5],[11,4,11,5],[10,4,10,5],[9,4,9,5],[8,4,8,5],[4,1,5,1],[4,2,5,3],[8,2,8,3],[9,2,9,3],[6,2,6,3],[7,2,7,3],[10,2,10,3],[11,2,11,3],[41,6,41,9],[1,1,1,4],[2,1,2,4],[3,1,3,9],[4,4,5,5],[4,6,4,9],[5,6,5,9],[6,6,6,9],[7,6,7,9],[14,6,14,9],[15,6,15,9],[8,6,8,9],[9,6,9,9],[10,6,10,9],[11,6,11,9],[12,6,12,9],[13,6,13,9],[30,4,30,5],[31,4,31,5],[22,4,22,5],[23,4,23,5],[16,4,16,5],[17,4,17,5],[18,4,18,5]]}
[null,"SUPPORT COMMUNICATIONS LIST (ICS 205A)"]
[null,"1. Incident Name:  ",null,null,null,"2. Operational Period:","Date From:",{"$f":"Cover!D13","v":"2016-04-11"},"Date To:",{"$f":"Cover!G13","v":"2016-04-11"}]
[null,{"$f":"Cover!B5","v":"Proposed NIMS Update"},null,null,null,null,"Time From:",{"$f":"Cover!D14","v":"06:00:00"},"Time To:",{"$f":"Cover!G14","v":"06:00:00"}]
[null,"3. Basic Local Communications Information:"]
[null,"Support Group","Position Assigned",null,"Name",null,"Method(s) of Contact"]
[null,null,null,null,null,null,"(radio frequency, phone, pager, cell, etc.)"]
[]
[]
[]
[]
[]
[]
[]
[]
[]
[]
[]
[]
[]
[]
[]
[]
[]
[]
[]
[]
[]
[]
[]
[]
[]
[]
[]
[]
[]
[]
[]
[]
[]
[]
[null,"4. Prepared by:",null,null,"Name:",null,null,"Signature:"]
[null,"ICS 205A",null,"IAP Page",null,"Date/Time:   "]

{"sheet":"206","index":13,"n_rows":33,"n_cols":17,"rows_kept":33,"cut":false,"hidden":false,"merged":[[28,16,36,18],[25,8,25,9],[25,12,25,13],[24,8,24,9],[26,8,26,9],[0,1,0,14],[32,1,32,2],[29,1,29,14],[26,2,26,4],[26,5,26,7],[26,12,26,13],[25,2,25,4],[25,5,25,7],[20,1,20,14],[21,1,23,1],[19,1,19,3],[19,4,19,8],[19,9,19,12],[19,13,19,14],[21,5,23,7],[21,8,22,10],[21,11,23,11],[21,12,23,13],[23,8,23,9],[17,1,17,3],[17,4,17,8],[17,9,17,12],[17,13,17,14],[18,1,18,3],[18,4,18,8],[18,9,18,12],[18,13,18,14],[14,1,14,14],[15,1,15,3],[15,4,15,8],[15,9,15,12],[15,13,15,14],[16,1,16,3],[16,4,16,8],[16,9,16,12],[16,13,16,14],[12,1,12,3],[12,4,12,8],[12,9,12,12],[12,13,12,14],[13,1,13,3],[13,4,13,8],[13,9,13,12],[13,13,13,14],[10,1,10,3],[10,4,10,8],[10,9,10,12],[10,13,10,14],[11,1,11,3],[11,4,11,8],[11,9,11,12],[11,13,11,14],[8,1,8,3],[8,4,8,8],[8,9,8,12],[8,13,8,14],[9,1,9,3],[9,4,9,8],[9,9,9,12],[9,13,9,14],[6,1,6,3],[6,4,6,8],[6,9,6,12],[6,13,6,14],[7,1,7,3],[7,4,7,8],[7,9,7,12],[7,13,7,14],[1,1,1,6],[4,1,5,3],[4,4,5,8],[4,9,5,12],[1,7,1,9],[1,11,1,12],[2,7,2,9],[2,11,2,12],[2,1,2,6],[3,1,3,14],[4,13,4,14],[5,13,5,14],[32,6,32,7],[32,8,32,14],[27,1,27,14],[28,1,28,14],[30,11,30,14],[30,5,30,6],[30,7,30,9],[30,1,30,4],[32,4,32,5],[21,2,23,4],[31,11,31,14],[31,7,31,9],[31,5,31,6],[31,1,31,4],[21,14,23,14],[24,12,24,13],[24,2,24,4],[24,5,24,7]]}
[null,"SUPPORT MEDICAL PLAN (ICS 206)"]
[null,"1. Incident Name:  ",null,null,null,null,null,"2. Operational Period:",null,null,"Date From:",{"$f":"Cover!D13","v":"2016-04-11"},null,"Date To:",{"$f":"Cover!G13","v":"2016-04-11"}]
[null,{"$f":"Cover!B5","v":"Proposed NIMS Update"},null,null,null,null,null,null,null,null,"Time From:",{"$f":"Cover!D14","v":"06:00:00"},null,"Time To:",{"$f":"Cover!G14","v":"06:00:00"}]
[null,"3. Medical Aid Stations:"]
[null,"Name",null,null,"Location",null,null,null,null,"Contact Number(s)",null,null,null,"Paramedics"]
[null,null,null,null,null,null,null,null,null,null,null,null,null,"on Site?"]
[]
[]
[]
[]
[]
[null," "]
[]
[]
[null,"4. Transportation (indicate air or ground):"]
[null,"Ambulance Service",null,null,"Location",null,null,null,null,"Contact Number(s)",null,null,null,"Level of Service"]
[]
[]
[]
[]
[null,"5. Hospitals:"]
[null,"Hospital Name","Address,                    Latitude & Longitude               if Helipad",null,null,"Contact Number(s)/ Frequency",null,null,"Travel Time",null,null,"Trauma Center","Burn Center",null,"Helipad"]
[]
[null,null,null,null,null,null,null,null,"Air",null,"Ground"]
[]
[]
[]
[null,"6. Special Medical Emergency Procedures:"]
[null,null,null,null,null,null,null,null,null,null,null,null,null,null,null,null,"In Excel to add line break inside a cell, use the keys Alt+Enter.  \n\nUse your Numeric keypad to insert bullets.  Alt+7 or Alt+9.  Use the Numlock on a laptop"]
[null,"       Check box if aviation assets are utilized for rescue.  If assets are used, coordinate with Air Operations."]
[null,"7. Prepared by (Medical Unit Leader):",null,null,null,"Name:",null,null,null,null,"Signature:"]
[null,"8. Approved by (Safety Officer):",null,null,null,"Name:",null,null,null,null,"Signature:"]
[null,"ICS 206",null,"IAP Page",null,null,"Date/Time:   "]

{"sheet":"207","index":14,"n_rows":45,"n_cols":35,"rows_kept":45,"cut":false,"hidden":false,"merged":[[41,26,41,29],[38,1,38,8],[37,21,37,25],[37,26,37,29],[43,1,43,8],[37,9,37,17],[38,9,38,17],[39,9,39,17],[39,1,39,8],[40,9,40,17],[41,9,41,17],[42,9,42,17],[42,1,42,8],[43,26,43,29],[42,21,42,25],[43,21,43,25],[40,1,40,8],[41,1,41,8],[40,26,40,29],[35,21,36,29],[38,21,38,25],[43,9,43,17],[44,9,44,17],[42,26,42,29],[39,21,39,25],[40,21,40,25],[41,21,41,25],[8,1,10,5],[30,16,30,17],[21,24,21,25],[22,24,22,25],[24,24,24,25],[25,24,25,25],[25,16,25,17],[22,20,22,21],[24,20,24,21],[25,20,25,21],[27,20,27,21],[14,27,14,30],[13,4,13,7],[13,15,13,18],[13,21,13,24],[24,1,24,2],[11,34,17,35],[0,1,0,4],[1,1,1,2],[0,5,0,9],[1,4,1,5],[1,6,1,8],[1,9,1,10],[8,12,8,16],[2,1,2,2],[2,4,2,5],[2,6,2,8],[2,9,2,10],[2,16,2,23],[5,17,5,21],[7,23,7,26],[8,23,8,26],[7,12,7,16],[10,23,10,26],[11,12,11,16],[11,23,11,26],[10,12,10,16],[14,4,14,7],[14,15,14,18],[14,21,14,24],[25,1,25,2],[27,1,27,2],[28,1,28,2],[30,1,30,2],[31,1,31,2],[18,5,18,6],[21,5,21,6],[22,5,22,6],[17,1,17,2],[21,1,21,2],[18,1,18,2],[22,1,22,2],[17,5,17,6],[30,5,30,6],[31,5,31,6],[17,9,17,12],[28,8,28,9],[21,8,21,9],[22,8,22,9],[24,8,24,9],[25,8,25,9],[18,9,18,12],[21,12,21,13],[22,12,22,13],[30,20,30,21],[21,28,21,29],[31,16,31,17],[33,5,33,6],[34,5,34,6],[24,5,24,6],[27,5,27,6],[25,5,25,6],[28,5,28,6],[27,8,27,9],[27,12,27,13],[28,12,28,13],[28,16,28,17],[22,28,22,29],[27,24,27,25],[28,24,28,25],[24,12,24,13],[25,12,25,13],[27,16,27,17],[33,1,33,2],[34,1,34,2],[37,1,37,8],[1,16,1,23],[4,17,4,21],[24,28,24,29],[25,28,25,29],[27,28,27,29],[28,28,28,29],[21,20,21,21],[28,20,28,21],[24,16,24,17],[13,27,13,30],[17,20,17,21],[17,24,17,25],[18,20,18,21],[18,24,18,25],[17,28,17,29],[18,28,18,29],[31,20,31,21],[17,16,17,17],[18,16,18,17],[21,16,21,17],[22,16,22,17]]}
[null,"Incident Name",null,null,null,{"$f":"IF(FormsMenu!O5=0,\"\",FormsMenu!O5)","v":"Proposed NIMS Update"}]
[null,"Date From",null,null,{"$f":"IF('Start Page'!P11=0,\"\",'Start Page'!P11)","v":"2016-04-11"},null,"Time From",null,null,{"$f":"IF('Start Page'!P13=0,\"\",'Start Page'!P13)","v":"06:00:00"},null,null,null,null,null,null,"Agency Administrator and/or EOC Staff"]
[null,"Date To",null,null,{"$f":"IF('Start Page'!P12=0,\"\",'Start Page'!P12)","v":"2016-04-11"},null,"Time To",null,null,{"$f":"IF('Start Page'!P14=0,\"\",'Start Page'!P14)","v":"06:00:00"},null,null,null,null,null,null,{"$f":"IF(ISBLANK('203'!C5),,CONCATENATE('203'!C5,\"   \",'203'!C6,\"   \",'203'!C7,\"   \",'203'!C8))","v":"Big Boss   A. Knowing   B. Schnider   B. Typist"}]
[]
[]
[]
[]
[null,null,null,null,null,null,null,null,null,null,null,null,"Safety",null,null,null,null,null,null,null,null,null,null,"Public Information"]
[null,"**Reporting lines are not correct if Branches are used.",null,null,null,null,null,null,null,null,null,null,{"$f":"IF('203'!C9=0,\"\",'203'!C9)","v":""},null,null,null,null,null,null,null,null,null,null,{"$f":"IF('203'!C10=0,\"\",'203'!C10)","v":""}]
[]
[null,null,null,null,null,null,null,null,null,null,null,null,"Liaison",null,null,null,null,null,null,null,null,null,null,"Human Resources"]
[null,null,null,null,null,null,null,null,null,null,null,null,{"$f":"IF('203'!C11=0,\"\",'203'!C11)","v":""},null,null,null,null,null,null,null,null,null,null,null,null,null,null,null,null,null,null,null,null,null,"NOTE: Most of the information on the 207 is filled in from the 203."]
[]
[null,null,null,null,"Support Ops Chief",null,null,null,null,null,null,null,null,null,null,"Support Planning Chief",null,null,null,null,null,"Support Logs Chief",null,null,null,null,null,"Support Finance Chief"]
[null,null,null,null,{"$f":"IF('203'!P5=0,\"\",'203'!P5)","v":"M. Ethridge"},null,null,null,null,null,null,null,null,null,null,{"$f":"IF('203'!D21=0,\"\",'203'!D21)","v":""},null,null,null,null,null,{"$f":"IF('203'!D32=0,\"\",'203'!D32)","v":""},null,null,null,null,null,{"$f":"IF('203'!L38=0,\"\",'203'!L38)","v":""}]
[]
[]
[null,{"$f":"IF(ISBLANK('203'!J10),\"Support\",'203'!J10)","v":"ESF 4 Fire"},null,null,null,{"$f":"IF(ISBLANK('203'!J11),\"Support\",'203'!J11)","v":"ESF8"},null,null,null,"Air Ops Branch",null,null,null,null,null,null,"RESL",null,null,null,{"$f":"IF(ISBLANK('203'!B35),\"Support\",'203'!B35)","v":"City of Littlefield"},null,null,null,{"$f":"IF(ISBLANK('203'!B36),\"Support\",'203'!B36)","v":"ESF 8"}]
[null,{"$f":"IF(ISBLANK('203'!J10),\"\",'203'!P10)","v":"H. Smith"},null,null,null,{"$f":"IF(ISBLANK('203'!J11),\"\",'203'!P11)","v":"S. Wilson"},null,null,null,{"$f":"'203'!L34","v":"Air Plaine"},null,null,null,null,null,null,{"$f":"'203'!D23","v":0},null,null,null,{"$f":"IF(ISBLANK('203'!B35),\"\",'203'!D35)","v":"J. Gray / 555-555-5445"},null,null,null,{"$f":"IF(ISBLANK('203'!B36),\"\",'203'!D36)","v":"K. North / 555-555-5567"}]
[]
[]
[null,{"$f":"IF(ISBLANK('203'!J12),\"Support\",'203'!J12)","v":"Public Works"},null,null,null,{"$f":"IF(ISBLANK('203'!J13),\"Support\",'203'!J13)","v":"South Plains IMT"},null,null,{"$f":"IF($J$18=\"Air Ops Branch\",\"Support\",'203'!J23)","v":"Support"},null,null,null,{"$f":"IF($J$18=\"Air Ops Branch\",\"Attack\",'203'!J24)","v":"Attack"},null,null,null,"SITL",null,null,null,{"$f":"IF(ISBLANK('203'!B37),\"Support\",'203'!B37)","v":3},null,null,null,{"$f":"IF(ISBLANK('203'!B38),\"Support\",'203'!B38)","v":4}]
[null,{"$f":"IF(ISBLANK('203'!P12),\"\",'203'!P12)","v":"B. Dozer"},null,null,null,{"$f":"IF(ISBLANK('203'!J13),\"\",'203'!P13)","v":"C. Buck"},null,null,null,null,null,null,null,null,null,null,{"$f":"'203'!D24","v":0},null,null,null,{"$f":"IF(ISBLANK('203'!B37),\"\",'203'!D37)","v":"c"},null,null,null,{"$f":"IF(ISBLANK('203'!B38),\"\",'203'!D38)","v":"d"}]
[]
[null,{"$f":"IF(ISBLANK('203'!J14),\"Support\",'203'!J14)","v":"Methodist Hospital"},null,null,null,{"$f":"IF(ISBLANK('203'!J15),\"Support\",'203'!J15)","v":15},null,null,{"$f":"IF($J$18=\"Air Ops Branch\",\"Helibase\",'203'!J25)","v":"Helibase"},null,null,null,{"$f":"IF($J$18=\"Air Ops Branch\",\"Heli Cord\",'203'!J26)","v":"Heli Cord"},null,null,null,"DOCL",null,null,null,{"$f":"IF(ISBLANK('203'!B39),\"Support\",'203'!B39)","v":5},null,null,null,{"$f":"IF(ISBLANK('203'!B40),\"Support\",'203'!B40)","v":6}]
[null,{"$f":"IF(ISBLANK('203'!P14),\"\",'203'!P14)","v":"W. Hurt"},null,null,null,{"$f":"IF(ISBLANK('203'!J15),\"\",'203'!P15)","v":"A"},null,null,null,null,null,null,null,null,null,null,{"$f":"'203'!D25","v":0},null,null,null,{"$f":"IF(ISBLANK('203'!B39),\"\",'203'!D39)","v":"e"},null,null,null,{"$f":"IF(ISBLANK('203'!B40),\"\",'203'!D40)","v":"f"}]
[]
[null,{"$f":"IF(ISBLANK('203'!J16),\"Support\",'203'!J16)","v":16},null,null,null,{"$f":"IF(ISBLANK('203'!J17),\"Support\",'203'!J17)","v":17},null,null,{"$f":"IF($J$18=\"Air Ops Branch\",\"Fixed Wng\",'203'!J27)","v":"Fixed Wng"},null,null,null,{"$f":"IF($J$18=\"Air Ops Branch\",\"Air Tanker\",'203'!J28)","v":"Air Tanker"},null,null,null,null,null,null,null,{"$f":"IF(ISBLANK('203'!B41),\"Support\",'203'!B41)","v":7},null,null,null,{"$f":"IF(ISBLANK('203'!B42),\"Support\",'203'!B42)","v":8}]
[null,{"$f":"IF(ISBLANK('203'!J16),\"\",'203'!P16)","v":"B"},null,null,null,{"$f":"IF(ISBLANK('203'!J17),\"\",'203'!P17)","v":"C"},null,null,null,null,null,null,null,null,null,null,null,null,null,null,{"$f":"IF(ISBLANK('203'!B41),\"\",'203'!D41)","v":"g"},null,null,null,{"$f":"IF(ISBLANK('203'!B42),\"\",'203'!D42)","v":"h"}]
[]
[null,{"$f":"IF(ISBLANK('203'!J18),\"Support\",'203'!J18)","v":18},null,null,null,{"$f":"IF(ISBLANK('203'!J19),\"Support\",'203'!J19)","v":19},null,null,null,null,null,null,null,null,null,null,null,null,null,null,{"$f":"IF(ISBLANK('203'!B43),\"Support\",'203'!B43)","v":9}]
[null,{"$f":"IF(ISBLANK('203'!J18),\"\",'203'!P18)","v":"D"},null,null,null,{"$f":"IF(ISBLANK('203'!J19),\"\",'203'!P19)","v":"E"},null,null,null,null,null,null,null,null,null,null,null,null,null,null,{"$f":"IF(ISBLANK('203'!B43),\"\",'203'!D43)","v":"i"}]
[]
[null,{"$f":"IF(ISBLANK('203'!J20),\"Support\",'203'!J20)","v":20},null,null,null,{"$f":"IF(ISBLANK('203'!J21),\"Support\",'203'!J21)","v":21}]
[null,{"$f":"IF(ISBLANK('203'!J20),\"\",'203'!P20)","v":"F"},null,null,null,{"$f":"IF(ISBLANK('203'!J21),\"\",'203'!P21)","v":"G"}]
[null,null,null,null,null,null,null,null,null,null,null,null,null,null,null,null,null,null,null,null,null,"Agency Representatives"]
[]
[null,"Other Support Operations",null,null,null,null,null,null,null,"Other Support Operations",null,null,null,null,null,null,null,null,null,null,null,"Agency",null,null,null,null,"Name"]
[null,"Area And Leader",null,null,null,null,null,null,null,"Area And Leader",null,null,null,null,null,null,null,null,null,null,null,{"$f":"IF('203'!B14=0,\"\",'203'!B14)","v":"Salvation Army"},null,null,null,null,{"$f":"IF('203'!D14=0,\"\",'203'!D14)","v":"William Help"}]
[null,{"$f":"CONCATENATE('203'!J22,\" / \",'203'!P22)","v":"22 / H"},null,null,null,null,null,null,null,{"$f":"CONCATENATE('203'!J27,\" / \",'203'!P27)","v":"27 / M"},null,null,null,null,null,null,null,null,null,null,null,{"$f":"IF('203'!B15=0,\"\",'203'!B15)","v":"Texas Baptist Men"},null,null,null,null,{"$f":"IF('203'!D15=0,\"\",'203'!D15)","v":"Henry Hopeful"}]
[null,{"$f":"CONCATENATE('203'!J23,\" / \",'203'!P23)","v":"23 / I"},null,null,null,null,null,null,null,{"$f":"CONCATENATE('203'!J28,\" / \",'203'!P28)","v":"28 / N"},null,null,null,null,null,null,null,null,null,null,null,{"$f":"IF('203'!B16=0,\"\",'203'!B16)","v":""},null,null,null,null,{"$f":"IF('203'!D16=0,\"\",'203'!D16)","v":""}]
[null,{"$f":"CONCATENATE('203'!J24,\" / \",'203'!P24)","v":"24 / J"},null,null,null,null,null,null,null,{"$f":"CONCATENATE('203'!J29,\" / \",'203'!P29)","v":"29 / O"},null,null,null,null,null,null,null,null,null,null,null,{"$f":"IF('203'!B17=0,\"\",'203'!B17)","v":""},null,null,null,null,{"$f":"IF('203'!D17=0,\"\",'203'!D17)","v":""}]
[null,{"$f":"CONCATENATE('203'!J25,\" / \",'203'!P25)","v":"25 / K"},null,null,null,null,null,null,null,{"$f":"CONCATENATE('203'!J30,\" / \",'203'!P30)","v":"30 / P"},null,null,null,null,null,null,null,null,null,null,null,{"$f":"IF('203'!B18=0,\"\",'203'!B18)","v":""},null,null,null,null,{"$f":"IF('203'!D18=0,\"\",'203'!D18)","v":""}]
[null,{"$f":"CONCATENATE('203'!J26,\" / \",'203'!P26)","v":"26 / L"},null,null,null,null,null,null,null,{"$f":"CONCATENATE('203'!J31,\" / \",'203'!P31)","v":"31 / Q"},null,null,null,null,null,null,null,null,null,null,null,{"$f":"IF('203'!B19=0,\"\",'203'!B19)","v":""},null,null,null,null,{"$f":"IF('203'!D19=0,\"\",'203'!D19)","v":""}]
[null,null,null,null,null,null,null,null,null,{"$f":"CONCATENATE('203'!J32,\" / \",'203'!P32)","v":"32 / R"}]

{"sheet":"208","index":15,"n_rows":17,"n_cols":16,"rows_kept":17,"cut":false,"hidden":false,"merged":[[5,15,13,17],[1,7,1,8],[3,1,3,13],[4,1,12,13],[16,1,16,3],[16,6,16,7],[16,8,16,13],[13,6,13,13],[14,1,14,5],[14,6,14,13],[0,1,0,13],[13,1,13,4],[15,10,15,13],[15,6,15,7],[15,4,15,5],[1,10,1,11],[2,10,2,11],[1,1,1,6],[2,1,2,6],[2,7,2,8]]}
[null,"SAFETY MESSAGE/PLAN (ICS 208)"]
[null,"1. Incident Name:",null,null,null,null,null,"2. Operational Period:",null,"Date From:",{"$f":"Cover!D13","v":"2016-04-11"},null,"Date To:",{"$f":"Cover!G13","v":"2016-04-11"}]
[null,{"$f":"Cover!B5","v":"Proposed NIMS Update"},null,null,null,null,null,null,null,"Time From:",{"$f":"Cover!D14","v":"06:00:00"},null,"Time To:",{"$f":"Cover!G14","v":"06:00:00"}]
[null,"3. Safety Message/Expanded Safety Message, Safety Plan, Site Safety Plan:"]
[]
[null,null,null,null,null,null,null,null,null,null,null,null,null,null,null,"In Excel to add line break inside a cell, use the keys Alt+Enter.  \n\nUse your Numeric keypad to insert bullets.  Alt+7 or Alt+9.  Use the Numlock on a laptop"]
[]
[]
[]
[]
[]
[]
[]
[null,"4. Site Safety Plan Required?"]
[null,"     Approved Site Safety Plan(s) Located At:"]
[null,"5. Prepared By:",null,"Name:",null,null,"Position/Title:",null,null,"Signature:"]
[null,"  ICS 208",null,null,"IAP Page",null,"Date/Time:"]

{"sheet":"209","index":16,"n_rows":159,"n_cols":29,"rows_kept":159,"cut":false,"hidden":false,"merged":[[57,28,65,30],[105,28,113,30],[119,24,120,24],[155,14,155,15],[155,16,155,17],[155,18,155,19],[155,20,155,21],[155,22,155,23],[153,14,153,15],[153,16,153,17],[153,18,153,19],[153,20,153,21],[154,18,154,19],[154,20,154,21],[154,22,154,23],[153,22,153,23],[152,18,152,19],[152,20,152,21],[152,22,152,23],[151,14,151,15],[151,16,151,17],[151,18,151,19],[151,20,151,21],[151,22,151,23],[155,2,155,3],[155,4,155,5],[155,6,155,7],[155,8,155,9],[155,10,155,11],[155,12,155,13],[154,12,154,13],[154,14,154,15],[154,16,154,17],[154,2,154,3],[154,4,154,5],[154,6,154,7],[154,8,154,9],[154,10,154,11],[153,2,153,3],[153,4,153,5],[153,6,153,7],[153,8,153,9],[153,10,153,11],[153,12,153,13],[152,12,152,13],[152,14,152,15],[152,16,152,17],[152,2,152,3],[152,4,152,5],[152,6,152,7],[152,8,152,9],[152,10,152,11],[151,2,151,3],[151,4,151,5],[151,6,151,7],[151,8,151,9],[151,10,151,11],[151,12,151,13],[150,12,150,13],[150,14,150,15],[150,16,150,17],[150,2,150,3],[150,4,150,5],[150,6,150,7],[150,8,150,9],[150,10,150,11],[149,2,149,3],[149,4,149,5],[149,6,149,7],[149,8,149,9],[149,10,149,11],[147,12,147,13],[150,18,150,19],[150,20,150,21],[150,22,150,23],[149,14,149,15],[149,16,149,17],[149,18,149,19],[149,20,149,21],[149,22,149,23],[149,12,149,13],[148,14,148,15],[148,16,148,17],[148,18,148,19],[148,20,148,21],[148,22,148,23],[147,14,147,15],[147,16,147,17],[147,18,147,19],[147,20,147,21],[147,22,147,23],[146,12,146,13],[146,14,146,15],[146,16,146,17],[146,18,146,19],[146,20,146,21],[146,22,146,23],[145,14,145,15],[145,16,145,17],[145,18,145,19],[145,20,145,21],[145,22,145,23],[145,12,145,13],[146,2,146,3],[146,4,146,5],[146,6,146,7],[146,8,146,9],[146,10,146,11],[145,2,145,3],[145,4,145,5],[145,6,145,7],[145,8,145,9],[145,10,145,11],[144,12,144,13],[144,14,144,15],[144,16,144,17],[144,18,144,19],[144,20,144,21],[144,22,144,23],[143,14,143,15],[143,16,143,17],[143,18,143,19],[143,20,143,21],[143,22,143,23],[143,12,143,13],[144,2,144,3],[144,4,144,5],[144,6,144,7],[144,8,144,9],[144,10,144,11],[143,2,143,3],[143,4,143,5],[143,6,143,7],[143,8,143,9],[143,10,143,11],[142,12,142,13],[142,14,142,15],[142,16,142,17],[142,18,142,19],[142,20,142,21],[142,22,142,23],[141,14,141,15],[141,16,141,17],[141,18,141,19],[141,20,141,21],[141,22,141,23],[141,12,141,13],[142,2,142,3],[142,4,142,5],[142,6,142,7],[142,8,142,9],[142,10,142,11],[141,2,141,3],[141,4,141,5],[141,6,141,7],[141,8,141,9],[141,10,141,11],[140,12,140,13],[140,14,140,15],[140,16,140,17],[140,18,140,19],[140,20,140,21],[140,22,140,23],[139,14,139,15],[139,16,139,17],[139,18,139,19],[139,20,139,21],[139,22,139,23],[139,12,139,13],[140,2,140,3],[140,4,140,5],[140,6,140,7],[140,8,140,9],[140,10,140,11],[139,2,139,3],[139,4,139,5],[139,6,139,7],[139,8,139,9],[139,10,139,11],[138,20,138,21],[137,8,137,9],[137,10,137,11],[138,22,138,23],[137,14,137,15],[137,16,137,17],[137,18,137,19],[137,20,137,21],[137,22,137,23],[138,2,138,3],[138,4,138,5],[138,6,138,7],[138,8,138,9],[138,10,138,11],[138,12,138,13],[138,14,138,15],[138,16,138,17],[138,18,138,19],[136,22,136,23],[135,14,135,15],[135,16,135,17],[135,18,135,19],[135,20,135,21],[135,22,135,23],[136,2,136,3],[136,4,136,5],[136,6,136,7],[136,8,136,9],[136,10,136,11],[135,2,135,3],[135,4,135,5],[135,6,135,7],[135,8,135,9],[135,10,135,11],[135,12,135,13],[136,12,136,13],[136,14,136,15],[136,16,136,17],[136,18,136,19],[136,20,136,21],[134,12,134,13],[134,14,134,15],[134,16,134,17],[134,18,134,19],[134,20,134,21],[134,22,134,23],[133,14,133,15],[133,16,133,17],[133,18,133,19],[133,20,133,21],[133,22,133,23],[133,12,133,13],[134,2,134,3],[134,4,134,5],[134,6,134,7],[134,8,134,9],[134,10,134,11],[133,2,133,3],[133,4,133,5],[133,6,133,7],[133,8,133,9],[133,10,133,11],[132,12,132,13],[132,14,132,15],[132,16,132,17],[132,18,132,19],[132,20,132,21],[132,22,132,23],[131,14,131,15],[131,16,131,17],[131,18,131,19],[131,20,131,21],[131,22,131,23],[131,12,131,13],[132,2,132,3],[132,4,132,5],[132,6,132,7],[132,8,132,9],[132,10,132,11],[131,2,131,3],[131,4,131,5],[131,6,131,7],[131,8,131,9],[131,10,131,11],[130,12,130,13],[130,14,130,15],[130,16,130,17],[130,18,130,19],[130,20,130,21],[130,22,130,23],[129,14,129,15],[129,16,129,17],[129,18,129,19],[129,20,129,21],[129,22,129,23],[129,12,129,13],[130,2,130,3],[130,4,130,5],[130,6,130,7],[130,8,130,9],[130,10,130,11],[129,2,129,3],[129,4,129,5],[129,6,129,7],[129,8,129,9],[129,10,129,11],[128,12,128,13],[128,14,128,15],[128,16,128,17],[128,18,128,19],[128,20,128,21],[128,22,128,23],[127,14,127,15],[127,16,127,17],[127,18,127,19],[127,20,127,21],[127,22,127,23],[127,12,127,13],[128,2,128,3],[128,4,128,5],[128,6,128,7],[128,8,128,9],[128,10,128,11],[127,2,127,3],[127,4,127,5],[127,6,127,7],[127,8,127,9],[127,10,127,11],[126,12,126,13],[126,14,126,15],[126,16,126,17],[126,18,126,19],[126,20,126,21],[124,16,124,17],[126,22,126,23],[125,14,125,15],[125,16,125,17],[125,18,125,19],[125,20,125,21],[125,22,125,23],[125,12,125,13],[124,22,124,23],[124,12,124,13],[124,14,124,15],[124,18,124,19],[124,20,124,21],[125,2,125,3],[125,4,125,5],[125,6,125,7],[125,8,125,9],[125,10,125,11],[124,4,124,5],[124,6,124,7],[124,8,124,9],[124,10,124,11],[126,2,126,3],[126,4,126,5],[126,6,126,7],[126,8,126,9],[126,10,126,11],[21,28,24,33],[26,28,30,33],[9,28,11,33],[12,28,15,33],[16,28,19,33],[56,23,56,26],[27,1,27,26],[11,2,11,7],[11,18,11,26],[10,18,10,26],[15,18,15,26],[14,18,14,22],[48,23,48,25],[47,14,47,22],[48,14,48,22],[47,8,47,10],[49,23,49,25],[47,11,47,13],[49,14,49,22],[50,8,50,10],[51,8,51,10],[44,8,44,10],[54,1,54,13],[44,1,44,7],[3,24,3,26],[4,24,4,26],[5,24,5,26],[3,14,5,19],[6,20,6,26],[13,18,13,26],[3,2,4,5],[5,20,5,23],[4,20,4,23],[3,20,3,23],[5,2,5,5],[3,6,5,13],[7,1,8,5],[7,6,8,9],[8,25,8,26],[6,14,6,19],[7,14,8,19],[7,20,7,24],[8,20,8,24],[7,25,7,26],[7,10,8,13],[6,6,6,9],[12,18,12,26],[10,1,10,17],[55,1,61,13],[55,23,55,26],[97,1,97,5],[97,6,97,26],[68,23,68,26],[66,23,66,26],[63,23,63,26],[71,23,71,26],[72,23,72,26],[80,1,80,26],[79,1,79,7],[74,2,74,26],[75,2,75,26],[76,2,76,26],[77,2,77,26],[78,1,78,5],[78,6,78,26],[79,8,79,26],[91,6,91,26],[113,12,113,26],[110,1,110,9],[110,10,110,26],[112,1,112,26],[99,1,99,26],[109,1,109,7],[109,8,109,26],[113,1,113,2],[113,3,113,11],[107,1,107,12],[107,13,107,26],[102,1,102,26],[103,1,103,26],[104,1,104,26],[101,1,101,26],[108,15,108,26],[105,1,105,26],[106,1,106,15],[106,16,106,26],[133,1,134,1],[129,1,130,1],[116,1,116,2],[125,1,126,1],[131,1,132,1],[123,1,124,1],[127,1,128,1],[0,1,0,26],[38,1,38,26],[83,1,83,26],[1,14,1,19],[1,1,1,2],[46,23,46,25],[46,8,46,10],[46,11,46,13],[6,10,6,13],[6,1,6,5],[64,23,64,26],[56,14,56,22],[69,23,69,26],[65,24,65,26],[61,23,61,26],[62,23,62,26],[47,23,47,25],[1,3,1,13],[1,20,1,26],[2,14,2,19],[2,20,2,26],[2,6,2,13],[2,1,2,5],[145,1,146,1],[145,26,146,26],[141,26,142,26],[143,1,144,1],[143,26,144,26],[137,26,138,26],[139,1,140,1],[139,26,140,26],[137,12,137,13],[137,2,137,3],[137,4,137,5],[137,6,137,7],[133,26,134,26],[135,1,136,1],[135,26,136,26],[131,26,132,26],[141,1,142,1],[137,1,138,1],[158,10,158,26],[147,1,148,1],[147,26,148,26],[149,1,150,1],[149,26,150,26],[157,1,157,26],[158,1,158,3],[158,4,158,9],[151,26,152,26],[151,1,152,1],[153,26,154,26],[156,1,156,26],[153,1,154,1],[148,2,148,3],[148,4,148,5],[148,6,148,7],[148,8,148,9],[148,10,148,11],[147,2,147,3],[147,4,147,5],[147,6,147,7],[147,8,147,9],[147,10,147,11],[148,12,148,13],[129,26,130,26],[125,26,126,26],[127,26,128,26],[118,25,120,25],[121,1,122,1],[122,18,122,19],[118,26,120,26],[119,8,120,9],[119,10,120,11],[119,2,120,3],[119,4,120,5],[119,6,120,7],[121,18,121,19],[121,2,121,3],[121,4,121,5],[121,6,121,7],[121,8,121,9],[121,10,121,11],[121,12,121,13],[121,20,121,21],[121,22,121,23],[119,16,120,17],[121,26,122,26],[121,14,121,15],[123,26,124,26],[121,16,121,17],[122,14,122,15],[122,16,122,17],[122,20,122,21],[122,22,122,23],[123,2,123,3],[123,4,123,5],[123,6,123,7],[123,8,123,9],[123,10,123,11],[123,12,123,13],[122,2,122,3],[122,4,122,5],[122,6,122,7],[122,8,122,9],[122,10,122,11],[122,12,122,13],[123,14,123,15],[123,16,123,17],[123,18,123,19],[123,20,123,21],[123,22,123,23],[124,2,124,3],[116,21,116,26],[117,1,117,26],[118,1,120,1],[118,2,118,24],[116,3,116,13],[95,2,95,26],[96,2,96,26],[44,14,44,22],[50,1,50,7],[51,1,51,7],[49,1,49,7],[49,8,49,10],[48,1,48,7],[48,8,48,10],[52,1,52,7],[53,8,53,10],[53,1,53,7],[52,8,52,10],[91,1,91,5],[65,14,65,23],[68,14,68,22],[54,23,54,26],[52,23,52,25],[111,1,111,26],[48,11,48,13],[49,11,49,13],[46,1,46,7],[46,14,46,22],[115,1,115,26],[119,18,120,19],[119,20,120,21],[119,22,120,23],[119,12,120,13],[119,14,120,15],[81,1,81,2],[84,1,84,2],[81,12,81,26],[81,3,81,11],[84,3,84,13],[98,1,98,26],[93,2,93,26],[86,1,86,26],[87,2,87,26],[94,2,94,26],[100,1,100,26],[108,1,108,14],[47,1,47,7],[116,14,116,20],[15,2,15,17],[31,1,31,26],[33,23,33,25],[33,19,33,22],[33,1,34,12],[34,23,34,25],[35,23,35,25],[37,1,37,2],[37,3,37,11],[36,13,36,18],[32,1,32,26],[33,13,33,18],[34,13,34,18],[35,13,35,18],[35,19,35,22],[30,1,30,26],[37,12,37,26],[35,1,36,12],[36,19,36,22],[36,23,36,25],[34,19,34,22],[29,1,29,26],[23,1,23,2],[23,3,23,7],[12,1,12,4],[12,5,12,17],[11,12,11,17],[13,1,13,17],[20,8,21,19],[22,1,22,2],[22,3,22,7],[22,20,22,26],[22,8,22,19],[18,1,18,7],[17,1,17,7],[17,20,17,26],[17,8,17,19],[18,20,18,26],[14,8,14,11],[14,12,14,17],[18,8,18,19],[14,2,14,7],[19,8,19,19],[20,20,20,26],[21,20,21,26],[19,1,19,7],[20,1,21,7],[19,20,19,26],[23,20,23,26],[23,8,23,19],[24,1,24,19],[25,1,25,19],[26,1,26,26],[25,20,25,26],[24,20,24,26],[41,14,41,22],[41,11,41,13],[41,8,41,10],[39,14,39,19],[43,8,43,10],[45,14,45,22],[39,20,39,26],[42,14,42,25],[42,1,42,10],[42,11,42,13],[39,1,39,2],[39,3,39,13],[41,23,41,25],[41,1,41,7],[45,23,45,25],[45,1,45,7],[43,11,43,13],[44,11,44,13],[45,11,45,13],[45,8,45,10],[40,1,40,7],[44,23,44,25],[43,23,43,25],[43,14,43,22],[43,1,43,7],[53,23,53,25],[50,23,50,25],[51,23,51,25],[50,11,50,13],[51,11,51,13],[50,14,50,22],[51,14,51,22],[53,14,53,22],[53,11,53,13],[52,11,52,13],[52,14,52,22],[54,14,54,22],[55,14,55,22],[67,23,67,26],[60,23,60,26],[57,23,57,26],[58,23,58,26],[59,23,59,26],[70,23,70,26],[66,14,66,22],[67,14,67,22],[73,1,73,26],[58,14,58,22],[59,14,59,22],[57,14,57,22],[92,1,92,26],[85,1,85,18],[84,14,84,19],[84,20,84,26],[88,2,88,26],[60,14,60,22],[64,1,72,13],[71,14,71,22],[61,14,61,22],[62,14,62,22],[63,14,63,22],[64,14,64,22],[70,14,70,22],[69,14,69,22],[72,14,72,22],[62,1,63,13],[89,2,89,26],[90,2,90,26]]}
[null,"Incident Status Summary (ICS 209)"]
[null,"*1. Incident Name:",null,{"$f":"Cover!B5","v":"Proposed NIMS Update"},null,null,null,null,null,null,null,null,null,null,"2. Incident Number:",null,null,null,null,null,{"$f":"FormsMenu!O10","v":"N/A"}]
[null,"*3. Report Version (check   one box on left):",null,null,null,null,"*4. Incident Commander(s) & Agency or Organization:",null,null,null,null,null,null,null,"5. Incident Management Organization:",null,null,null,null,null,"*6. Incident Start Date/Time:"]
[null,"       ","Rpt #               (if used):",null,null,null,null,null,null,null,null,null,null,null,null,null,null,null,null,null,"Date:   "]
[null,null,null,null,null,null,null,null,null,null,null,null,null,null,null,null,null,null,null,null,"Time:   "]
[null,null,null,null,null,null,null,null,null,null,null,null,null,null,null,null,null,null,null,null,"Time Zone:   "]
[null,"7. Current Incident Size or Area Involved (use unit label – e.g., “sq mi,” “city block”):",null,null,null,null,"8. Percent (%) Contained or Completed:",null,null,null,"*9. Incident Definition:",null,null,null,"10. Incident Complexity Level:",null,null,null,null,null,"*11. For Time Period: "]
[null,null,null,null,null,null,null,null,null,null,null,null,null,null,null,null,null,null,null,null,"From Date/Time:   ",null,null,null,null,null,null,null,"ITEM 10. INCIDENT COMPLEXITY"]
[null,null,null,null,null,null,null,null,null,null,null,null,null,null,null,null,null,null,null,null,"To Date/Time:   "]
[null,"Approval & Routing Information",null,null,null,null,null,null,null,null,null,null,null,null,null,null,null,null,null,null,null,null,null,null,null,null,null,null,"TYPE 5-  1-2 RESOURCES, UP TO 6 PERSONNEL, LOCAL RESOURCES, USUALLY 1 OP PERIOD, WRITTEN IAP NOT REQUIRED."]
[null,"*12. Prepared By:",null,null,null,null,null,null,null,null,null,null,null,null,null,null,null,null,"*13. Date/Time Submitted:"]
[null,"Print Name:",null,null,null,null,null,null,"ICS Position:",null,null,null,null,null,null,null,null,null,"Time Zone:"]
[null,"Date/Time Prepared:  ",null,null,null,null,null,null,null,null,null,null,null,null,null,null,null,null,null,null,null,null,null,null,null,null,null,null,"TYPE 4-  RESOURCES VARY FROM SINGLE TO MULTIPLE TASK FORCES OR STRIKE TEAMS, PRIMARILY LOCAL RESOURCES, USUALLY 1 OP PERIOD, WRITTEN IAP NOT REQUIRED BUT DOCUMENTED OPERATIONAL BRIEFING COMPLETED."]
[null,"*14. Approved By:",null,null,null,null,null,null,null,null,null,null,null,null,null,null,null,null,"*15. Primary Location, Organization, or"]
[null,"Print Name:",null,null,null,null,null,null,"ICS Position:",null,null,null,null,null,null,null,null,null,"Agency Sent To:"]
[null,"Signature:   "]
[null,"Incident Location Information",null,null,null,null,null,null,null,null,null,null,null,null,null,null,null,null,null,null,null,null,null,null,null,null,null,null,"TYPE 3-  SOME OR ALL COMMAND STAFF ACTIVATED, RESOURCES VARY FROM SEVERAL RESOURCES TO SEVERAL TASK FORCES OR STRIKE TEAMS, LOCAL & NON-LOCAL RESOURCES, MULTIPLE OP PERIODS, WRITTEN IAP MAY BE REQUIRED FOR EA OP PERIOD; MAY NEED STAGING AREA & INCIDENT BASE."]
[null,"*16. State:  ",null,null,null,null,null,null,"*17. County/Parish/Borough:",null,null,null,null,null,null,null,null,null,null,null,"*18. City:"]
[]
[null,"19. Unit or Other:",null,null,null,null,null,null,"*20. Incident Jurisdiction:",null,null,null,null,null,null,null,null,null,null,null,"21. Incident Location Ownership"]
[null,null,null,null,null,null,null,null,null,null,null,null,null,null,null,null,null,null,null,null,"(if different than jurisdiction):"]
[null,null,null,null,null,null,null,null,null,null,null,null,null,null,null,null,null,null,null,null,null,null,null,null,null,null,null,null,"TYPE 2-  MOST OR ALL COMMAND STAFF ACTIVATED, RESOURCES MAY INCLUDE REGIONAL AND/OR NATIONAL; OP PERSONNEL MAY EXCEED 200, TOTAL INCIDENT PERSONNEL MAY EXCEED 500; MANY FUNCTIONAL UNITS NEEDED; MULTIPLE OP PERIODS, WRITTEN IAP REQUIRED FOR EA OP PERIOD; REQUIRES WRITTEN DELEGATION OF AUTHORITY TO INCIDENT COMMANDER."]
[null,"22. Longitude (indicate format):",null,null,null,null,null,null,"23. US National Grid Reference:",null,null,null,null,null,null,null,null,null,null,null,"24. Legal Description (township, section, range):"]
[null,"Latitude     (indicate format):"]
[null,"*25. Short Location or Area Description (list all affected areas or a reference point):",null,null,null,null,null,null,null,null,null,null,null,null,null,null,null,null,null,null,"26. UTM Coordinates:"]
[]
[null,"27. Note any electronic geospatial data included or attached (indicate data format, content, and collection time information and labels):",null,null,null,null,null,null,null,null,null,null,null,null,null,null,null,null,null,null,null,null,null,null,null,null,null,null,"TYPE 1-  MOST COMPLEX, REQUIRES NATIONAL RESOURCES; ALL COMMAND & GENERAL STAFF ACTIVATED, MOST ICS FUNCTIONAL UNITS ACTIVATED; OP PERSONNEL MAY EXCEED 500 PER PERIOD, TOTAL INCIDENT PERSONNEL USUALLY EXCEEDS 1000;  INCIDENT COMMAND POST, BASE, CAMPS, STAGING AREAS ESTABLISHED; MULTIPLE OP PERIODS, WRITTEN IAP REQUIRED FOR EA OP PERIOD; REQUIRES WRITTEN DELEGATION OF AUTHORITY TO INCIDENT COMMANDER."]
[]
[null,"Incident Summary"]
[null,"*28. Significant Events for the Time Period Reported (summarize significant progress made, evacuations, incident growth, etc.):"]
[]
[null,"29. Primary Materials or Hazards Involved (hazardous chemicals, fuel types, infectious agents, radiation, etc.):"]
[]
[null,"30. Damage Assessment Information (summarize damage and/or restriction of use or availability to residential or commercial property, natural resources, critical infrastructure and key resources, etc.):",null,null,null,null,null,null,null,null,null,null,null,"A. Structural  Summary",null,null,null,null,null,"B. # Threatened (72 hrs)",null,null,null,"C. # Damaged",null,null,"D. #         Destroyed"]
[null,null,null,null,null,null,null,null,null,null,null,null,null,"E. Single Residences "]
[null,null,null,null,null,null,null,null,null,null,null,null,null,"F. Nonresidential Commercial Property"]
[null,null,null,null,null,null,null,null,null,null,null,null,null,"G. Other Minor Structures"]
[null,"ICS 209, Page 1 of ",null,null,null,null,null,null,null,null,null,null,"* Required when applicable."]
[null,"Incident Status Summary (ICS 209)"]
[null,"*1. Incident Name:",null,{"$f":"D2","v":"Proposed NIMS Update"},null,null,null,null,null,null,null,null,null,null,"2. Incident Number:",null,null,null,null,null,{"$f":"U2","v":"N/A"}]
[null,"Additional Incident Decision Support Information"]
[null,"*31. Public Status Summary:",null,null,null,null,null,null,"A. # This Reporting Period",null,null,"B. Total #   to Date",null,null,"*32. Responder Status Summary:",null,null,null,null,null,null,null,null,"A. # This Reporting Period",null,null,"B. Total # to Date"]
[null,"C. Indicate Number of Civilians (Public) Below:",null,null,null,null,null,null,null,null,null,null,null,null,"C. Indicate Number of Responders Below:"]
[null,"D. Fatalities",null,null,null,null,null,null,null,null,null,null,null,null,"D. Fatalities"]
[null,"E. With Injuries/Illness",null,null,null,null,null,null,null,null,null,null,null,null,"E. With Injuries/Illness"]
[null,"F. Trapped/In Need of Rescue",null,null,null,null,null,null,null,null,null,null,null,null,"F. Trapped/In Need of Rescue"]
[null,"G. Missing (note if estimated)",null,null,null,null,null,null,null,null,null,null,null,null,"G. Missing"]
[null,"H. Evacuated (note if estimated)",null,null,null,null,null,null,null,null,null,null,null,null,"H. Sheltering in Place"]
[null,"I. Sheltering in Place (note if est.)",null,null,null,null,null,null,null,null,null,null,null,null,"I. Have Received Immunizations"]
[null,"J. In Temporary Shelters (note if est.)",null,null,null,null,null,null,null,null,null,null,null,null,"J. Require Immunizations"]
[null,"K. Have Received Mass Immunization",null,null,null,null,null,null,null,null,null,null,null,null,"K. In Quarantine"]
[null,"L. Require Immunizations (note if est.)"]
[null,"M. In Quarantine"]
[null,"N. Total # Civilians (Public) Affected:",null,null,null,null,null,null,null,null,null,null,null,null,"N. Total # Responders Affected:"]
[null,"33. Life, Safety, and Health Status/Threat Remarks:",null,null,null,null,null,null,null,null,null,null,null,null,"*34. Life, Safety, and Health Threat Management:",null,null,null,null,null,null,null,null,"A. Check if Active"]
[null,null,null,null,null,null,null,null,null,null,null,null,null,null,"A. No Likely Threat"]
[null,null,null,null,null,null,null,null,null,null,null,null,null,null,"B. Potential Future Threat"]
[null,null,null,null,null,null,null,null,null,null,null,null,null,null,"C. Mass Notifications in Progress",null,null,null,null,null,null,null,null,null,null,null,null,null,"In Excel to add line break inside a cell, use the keys Alt+Enter.  \n\nUse your Numeric keypad to insert bullets.  Alt+7 or Alt+9.  Use the Numlock on a laptop"]
[null,null,null,null,null,null,null,null,null,null,null,null,null,null,"D. Mass Notifications Completed"]
[null,null,null,null,null,null,null,null,null,null,null,null,null,null,"E. No Evacuation(s) Imminent"]
[null,null,null,null,null,null,null,null,null,null,null,null,null,null,"F. Planning for Evacuation"]
[null,null,null,null,null,null,null,null,null,null,null,null,null,null,"G. Planning for Shelter-in-Place"]
[null,"35. Weather Concerns (synopsis of current and predicted weather; discuss related factors that may cause concern):",null,null,null,null,null,null,null,null,null,null,null,null,"H. Evacuation(s) in Progress"]
[null,null,null,null,null,null,null,null,null,null,null,null,null,null,"I. Shelter-in-Place in Progress"]
[null,null,null,null,null,null,null,null,null,null,null,null,null,null,"J. Repopulation in Progress"]
[null,null,null,null,null,null,null,null,null,null,null,null,null,null,"K. Mass Immunization in Progress"]
[null,null,null,null,null,null,null,null,null,null,null,null,null,null,"L. Mass Immunization Complete"]
[null,null,null,null,null,null,null,null,null,null,null,null,null,null,"M. Quarantine in Progress"]
[null,null,null,null,null,null,null,null,null,null,null,null,null,null,"N. Area Restriction in Effect"]
[]
[]
[]
[]
[null,"36. Projected Incident Activity, Potential, Movement, Escalation, or Spread and influencing factors during the next operational period and in 12-, 24-, 48-, and 72-hour timeframes:"]
[null,"12 hours: "]
[null,"24 hours: "]
[null,"48 hours: "]
[null,"72 hours: "]
[null,"Anticipated after 72 hours:"]
[null,"37. Strategic Objectives (define planned end-state for incident):"]
[]
[null,"ICS 209, Page 2 of",null,null,null,null,null,null,null,null,null,null,"* Required when applicable."]
[]
[null,"Incident Status Summary (ICS 209)"]
[null,"*1. Incident Name:",null,{"$f":"D2","v":"Proposed NIMS Update"},null,null,null,null,null,null,null,null,null,null,"2. Incident Number:",null,null,null,null,null,{"$f":"U2","v":"N/A"}]
[null,"Additional Incident Decision Support Information (continued)"]
[null,"38. Current Incident Threat Summary and Risk Information in 12-, 24-, 48-, and 72-hour timeframes and beyond.  Summarize primary incident threats to life, property, communities and community stability, residences, health care facilities, other critical infrastructure and key resources, commercial facilities, natural and environmental resources, cultural resources, and continuity of operations and/or business.  Identify corresponding incident-related potential economic or cascading impacts."]
[null,"12 hours: "]
[null,"24 hours: "]
[null,"48 hours: "]
[null,"72 hours: "]
[null,"Anticipated after 72 hours:"]
[null,"39. Critical Resource Needs in 12-, 24-, 48-, and 72-hour timeframes and beyond to meet critical incident objectives.  List resource category, kind, and/or type, and amount needed, in priority order:"]
[null,"12 hours: "]
[null,"24 hours: "]
[null,"48 hours: "]
[null,"72 hours: "]
[null,"Anticipated after 72 hours:  "]
[null,"40. Strategic Discussion:  Explain the relation of overall strategy, constraints, and current available information to:  "]
[null,"1) critical resource needs identified above, "]
[null,"2) the Incident Action Plan and management objectives and targets, "]
[null,"3) anticipated results."]
[null,"Explain major problems and concerns such as operational challenges, incident management problems, and social, political, economic, or environmental concerns or impacts."]
[]
[null,"41. Planned Actions for Next Operational Period:"]
[null,null,null,null,null,null,null,null,null,null,null,null,null,null,null,null,null,null,null,null,null,null,null,null,null,null,null,null,"In Excel to add line break inside a cell, use the keys Alt+Enter.  \n\nUse your Numeric keypad to insert bullets.  Alt+7 or Alt+9.  Use the Numlock on a laptop"]
[null,"42. Projected Final Incident Size/Area (use unit label – e.g., “sq mi”):"]
[null,"43. Anticipated Incident Management Completion Date:"]
[null,"44. Projected Significant Resource Demobilization Start Date:"]
[null,"45. Estimated Incident Costs to Date:"]
[null,"46. Projected Final Incident Cost Estimate:"]
[null,"47. Remarks (or continuation of any blocks above – list block number in notation):"]
[]
[null,"ICS 209, Page 3 of",null,null,null,null,null,null,null,null,null,null,"* Required when applicable."]
[]
[null,"Incident Status Summary (ICS 209)"]
[null,"1. Incident Name:  ",null,{"$f":"D2","v":"Proposed NIMS Update"},null,null,null,null,null,null,null,null,null,null,"2. Incident Number: ",null,null,null,null,null,null,{"$f":"U2","v":"N/A"}]
[null,"Incident Resource Commitment Summary"]
[null,"48. Agency or Organization:","49. Resources (summarize resources by category, kind, and/or type; show # of resources on top ½ of box, show # of personnel associated with resource on bottom ½ of box):",null,null,null,null,null,null,null,null,null,null,null,null,null,null,null,null,null,null,null,null,null,null,"50. # of Personnel not assigned to a resource:","51. Total Personnel (includes those associated with resources– e.g., aircraft or engines –and individual overhead):"]
[null,null,"Shelter Mgmt Group"]
[]
[null,null,null,null,null,null,null,null,null,null,null,null,null,null,null,null,null,null,null,null,null,null,null,null,null,null,{"$f":"SUM(C123:Z123)","v":0}]
[]
[null,null,null,null,null,null,null,null,null,null,null,null,null,null,null,null,null,null,null,null,null,null,null,null,null,null,{"$f":"SUM(C125:Y125)","v":0}]
[]
[null,null,null,null,null,null,null,null,null,null,null,null,null,null,null,null,null,null,null,null,null,null,null,null,null,null,{"$f":"SUM(C127:Y127)","v":0}]
[]
[null,null,null,null,null,null,null,null,null,null,null,null,null,null,null,null,null,null,null,null,null,null,null,null,null,null,{"$f":"SUM(C129:Y129)","v":0}]
[]
[null,null,null,null,null,null,null,null,null,null,null,null,null,null,null,null,null,null,null,null,null,null,null,null,null,null,{"$f":"SUM(C131:Y131)","v":0}]
[]
[null,null,null,null,null,null,null,null,null,null,null,null,null,null,null,null,null,null,null,null,null,null,null,null,null,null,{"$f":"SUM(C133:Y133)","v":0}]
[]
[null,null,null,null,null,null,null,null,null,null,null,null,null,null,null,null,null,null,null,null,null,null,null,null,null,null,{"$f":"SUM(C135:Y135)","v":0}]
[]
[null,null,null,null,null,null,null,null,null,null,null,null,null,null,null,null,null,null,null,null,null,null,null,null,null,null,{"$f":"SUM(C137:Y137)","v":0}]
[]
[null,null,null,null,null,null,null,null,null,null,null,null,null,null,null,null,null,null,null,null,null,null,null,null,null,null,{"$f":"SUM(C139:Y139)","v":0}]
[]
[null,null,null,null,null,null,null,null,null,null,null,null,null,null,null,null,null,null,null,null,null,null,null,null,null,null,{"$f":"SUM(C141:Y141)","v":0}]
[]
[null,null,null,null,null,null,null,null,null,null,null,null,null,null,null,null,null,null,null,null,null,null,null,null,null,null,{"$f":"SUM(C143:Y143)","v":0}]
[]
[null,null,null,null,null,null,null,null,null,null,null,null,null,null,null,null,null,null,null,null,null,null,null,null,null,null,{"$f":"SUM(C145:Y145)","v":0}]
[]
[null,null,null,null,null,null,null,null,null,null,null,null,null,null,null,null,null,null,null,null,null,null,null,null,null,null,{"$f":"SUM(C147:Y147)","v":0}]
[]
[null,null,null,null,null,null,null,null,null,null,null,null,null,null,null,null,null,null,null,null,null,null,null,null,null,null,{"$f":"SUM(C149:Y149)","v":0}]
[]
[null,null,null,null,null,null,null,null,null,null,null,null,null,null,null,null,null,null,null,null,null,null,null,null,null,null,{"$f":"SUM(C151:Y151)","v":0}]
[]
[null,null,null,null,null,null,null,null,null,null,null,null,null,null,null,null,null,null,null,null,null,null,null,null,null,null,{"$f":"SUM(C153:Y153)","v":0}]
[]
[null,null,null,null,null,null,null,null,null,null,null,null,null,null,null,null,null,null,null,null,null,null,null,null,null,null,{"$f":"SUM(C155:Y155)","v":0}]
[]
[null,"52. Total Resources",{"$f":"C122+C124+C126+C128+C130+C132+C134+C136+C138+C140+C142+C144+C146+C148+C150+C152+C154","v":0},null,{"$f":"E122+E124+E126+E128+E130+E132+E134+E136+E138+E140+E142+E144+E146+E148+E150+E152+E154","v":0},null,{"$f":"G122+G124+G126+G128+G130+G132+G134+G136+G138+G140+G142+G144+G146+G148+G150+G152+G154","v":0},null,{"$f":"I122+I124+I126+I128+I130+I132+I134+I136+I138+I140+I142+I144+I146+I148+I150+I152+I154","v":0},null,{"$f":"K122+K124+K126+K128+K130+K132+K134+K136+K138+K140+K142+K144+K146+K148+K150+K152+K154","v":0},null,{"$f":"M122+M124+M126+M128+M130+M132+M134+M136+M138+M140+M142+M144+M146+M148+M150+M152+M154","v":0},null,{"$f":"O122+O124+O126+O128+O130+O132+O134+O136+O138+O140+O142+O144+O146+O148+O150+O152+O154","v":0},null,{"$f":"Q122+Q124+Q126+Q128+Q130+Q132+Q134+Q136+Q138+Q140+Q142+Q144+Q146+Q148+Q150+Q152+Q154","v":0},null,{"$f":"S122+S124+S126+S128+S130+S132+S134+S136+S138+S140+S142+S144+S146+S148+S150+S152+S154","v":0},null,{"$f":"U122+U124+U126+U128+U130+U132+U134+U136+U138+U140+U142+U144+U146+U148+U150+U152+U154","v":0},null,{"$f":"W122+W124+W126+W128+W130+W132+W134+W136+W138+W140+W142+W144+W146+W148+W150+W152+W154","v":0},null,{"$f":"Y122+Y124+Y126+Y128+Y130+Y132+Y134+Y136+Y138+Y140+Y142+Y144+Y146+Y148+Y150+Y152+Y154","v":0},null,{"$f":"SUM(AA122:AA155)","v":0}]
[null,"53. Additional Cooperating and Assisting Organizations Not Listed Above: "]
[]
[null,"ICS 209, Page 4 of",null,null,null,null,null,null,null,null,"* Required when applicable."]

{"sheet":"210Inst","index":17,"n_rows":33,"n_cols":3,"rows_kept":33,"cut":false,"hidden":true,"merged":[[4,0,4,2],[28,0,32,0],[28,2,32,2],[11,0,11,2],[6,0,6,2],[8,0,8,2],[12,0,12,2],[16,0,18,0],[16,2,18,2],[20,0,23,0],[20,1,23,1]]}
[]
["ICS 210"]
["Resource Status Change"]
[]
["Purpose.  The Resource Status Change (ICS 210) is used by the Incident Communications Center Manager to record status change information received on resources assigned to the incident.  This information could be transmitted with a General Message (ICS 213).  The form could also be used by Operations as a worksheet to track entry, etc."]
[]
["Preparation.  The ICS 210 is completed by radio/telephone operators who receive status change information from individual resources, Task Forces, Strike Teams, and Division/Group Supervisors.  Status information could also be reported by Staging Area and Helibase Managers and fixed-wing facilities."]
[]
["Distribution.  The ICS 210 is maintained by the Resources Unit, and a second copy is retained by the Communications Unit."]
[]
["Notes:  "]
["·         The ICS 210 is essentially a message form that can be used to update Resource Status Cards or T-Cards (ICS 219) for incident-level resource management."]
["·         If additional pages are needed, use a blank ICS 210 and repaginate as needed."]
[]
["Block Number","Block Title","Instructions"]
[1,"Incident Name","Enter the name assigned to the incident."]
[2,"Operational Period","Enter the start date (month/day/year) and time (using the 24-hour clock) and end date and time for the operational period to which the form applies."]
[null,"·       Date and Time From"]
[null,"·       Date and Time To"]
[3,"Resource Number","Enter the resource identification (ID) number (this may be a letter and number combination) assigned by either the sending unit or the incident."]
[4,"New Status (Available, Assigned, Out of Service)","Indicate the current status of the resource:"]
[null,null,"·       Available – Indicates resource is available for incident use immediately."]
[null,null,"·       Assigned – Indicates resource is checked in and assigned a work task on the incident."]
[null,null,"·       Out of Service – Indicates resource is assigned to the incident but unable to respond for mechanical, rest, or personnel reasons.  If space permits, indicate the estimated time of return (ETR).  It may be useful to indicate the reason a resource is out of service (e.g., “O/S – Mech” (for mechanical issues), “O/S – Rest” (for off shift), or “O/S – Pers” (for personnel issues)."]
[5,"From (Location and Status)","Indicate the current location of the resource (where it came from) and the status.  When more than one Division, Staging Area, or Camp is used, identify the specific location (e.g., Division A, Staging Area, Incident Command Post, Western Camp)."]
[6,"To (Location and Status)","Indicate the assigned incident location of the resource and status.  When more than one Division, Staging Area, or Camp is used, identify the specific location."]
[7,"Time and Date of Location and Resource Status Change","Enter the time and location of the status change (24-hour clock).  Enter the date as well if relevant (e.g., out of service)."]
[8,"Comments","Enter any special information provided by the resource or dispatch center.  This may include details about why a resource is out of service, or individual identifying designators (IDs) of Strike Teams and Task Forces."]
[9,"Prepared by","Enter the name, ICS position/title, and signature of the person preparing the form.  Enter date (month/day/year) and time prepared (24-hour clock)."]
[null,"·       Name"]
[null,"·       Position/Title"]
[null,"·       Signature"]
[null,"·       Date/Time"]

{"sheet":"210","index":18,"n_rows":36,"n_cols":9,"rows_kept":36,"cut":false,"hidden":false,"merged":[[34,6,34,8],[33,1,33,8],[26,3,26,5],[27,3,27,5],[28,3,28,5],[29,3,29,5],[0,1,0,8],[1,1,1,2],[2,1,2,2],[1,3,1,4],[2,3,2,4],[10,3,10,5],[11,3,11,5],[12,3,12,5],[13,3,13,5],[35,1,35,2],[35,3,35,4],[30,3,30,5],[31,3,31,5],[34,2,34,3],[24,3,24,5],[25,3,25,5],[14,3,14,5],[15,3,15,5],[16,3,16,5],[17,3,17,5],[18,3,18,5],[19,3,19,5],[20,3,20,5],[21,3,21,5],[22,3,22,5],[23,3,23,5],[8,3,8,5],[9,3,9,5],[3,3,3,5],[3,7,3,8],[4,3,4,5],[5,3,5,5],[6,3,6,5],[7,3,7,5]]}
[null,"RESOURCE STATUS CHANGE (ICS 210) "]
[null,"1. Incident Name: ",null,"2. Operational Period:   ",null,"Date From:",{"$f":"Cover!D13","v":"2016-04-11"},"Date To: ",{"$f":"Cover!G13","v":"2016-04-11"}]
[null,{"$f":"Cover!B5","v":"Proposed NIMS Update"},null,null,null,"Time From:",{"$f":"Cover!D14","v":"06:00:00"},"Time To: ",{"$f":"Cover!G14","v":"06:00:00"}]
[null,"3. Resource Number ","4. New Status (Available, Assigned, O/S) ","5. From (Assignment and Status): ",null,null,"6. To (Assignment and Status): ","7. Time and Date of Change: "]
[]
[]
[]
[]
[]
[]
[]
[]
[]
[]
[]
[]
[]
[]
[]
[]
[]
[]
[]
[]
[]
[]
[]
[]
[]
[]
[]
[]
[null,"8. Comments: "]
[]
[null,"9. Prepared by:",null,null,"Position/Title: ",null,"Signature: "]
[null,"ICS 210 ",null,null,null,"Date/Time: "]

{"sheet":"211","index":19,"n_rows":21,"n_cols":24,"rows_kept":21,"cut":false,"hidden":false,"merged":[[20,22,20,23],[20,20,20,21],[20,17,20,19],[20,15,20,16],[18,11,18,12],[18,13,18,14],[18,18,18,19],[19,18,19,19],[20,1,20,3],[20,4,20,8],[19,11,19,12],[19,13,19,14],[17,11,17,12],[19,3,19,4],[19,6,19,7],[17,6,17,7],[17,13,17,14],[1,1,1,6],[2,1,3,6],[2,7,3,11],[1,7,1,11],[16,6,16,7],[16,11,16,12],[11,3,11,4],[11,6,11,7],[11,11,11,12],[13,3,13,4],[12,3,12,4],[10,3,10,4],[9,3,9,4],[9,6,9,7],[9,11,9,12],[14,3,14,4],[14,6,14,7],[14,11,14,12],[14,13,14,14],[3,22,3,23],[5,20,7,20],[5,17,7,17],[5,18,7,19],[4,1,4,23],[6,1,6,9],[3,17,3,18],[3,19,3,20],[8,6,8,7],[14,18,14,19],[10,18,10,19],[13,6,13,7],[13,11,13,12],[17,18,17,19],[18,3,18,4],[18,6,18,7],[15,18,15,19],[16,3,16,4],[17,3,17,4],[16,13,16,14],[16,18,16,19],[15,3,15,4],[15,13,15,14],[15,6,15,7],[15,11,15,12],[13,13,13,14],[11,18,11,19],[12,6,12,7],[12,11,12,12],[12,13,12,14],[11,13,11,14],[12,18,12,19],[13,18,13,19],[7,3,7,4],[5,10,7,10],[5,13,7,14],[5,15,7,15],[5,16,7,16],[5,23,7,23],[1,12,2,20],[3,12,3,13],[3,14,3,15],[9,13,9,14],[8,18,8,19],[9,18,9,19],[0,1,0,23],[5,1,5,9],[20,12,20,13],[20,9,20,11],[1,21,1,23],[5,21,7,21],[5,22,7,22],[7,6,7,7],[6,11,7,12],[8,3,8,4],[2,22,2,23],[8,11,8,12],[8,13,8,14],[10,6,10,7],[10,11,10,12],[10,13,10,14]]}
[null,"Incident Check-in List (ICS 211)"]
[null,"1. Incident Name:",null,null,null,null,null,"2. Incident Number:",null,null,null,null,"3. Check-In Location (complete all that apply):",null,null,null,null,null,null,null,null,"4. Start Date/Time:"]
[null,{"$f":"Cover!B5","v":"Proposed NIMS Update"},null,null,null,null,null,{"$f":"'209'!U2","v":"N/A"},null,null,null,null,null,null,null,null,null,null,null,null,null,"Date: "]
[null,null,null,null,null,null,null,null,null,null,null,null,"   Base",null,"   Staging Area",null,"   ICP","   Helibase",null,"   Other",null,"Time:  "]
[null,"Check-In Information (use reverse of form for remarks or comments)"]
[null,"5. List single resource personnel (overhead) by agency and name,",null,null,null,null,null,null,null,null,"6. Order Request #",null,null,"8. Leader’s Name",null,"9. Total Number of Personnel","10. Incident Contact Information","11. Home Unit or Agency","12. Departure Point and Time",null,"13. Method of Travel","14. Incident Assignment","15. Other Qualifications","16. Data Provided to Resources Unit"]
[null,"OR list resources by the following format:",null,null,null,null,null,null,null,null,null,"7. Date/Time   Check-In"]
[null,"State","Agency","Category",null,"Kind","Type",null,"Resource Name or Identifier","ST or TF"]
[]
[]
[]
[]
[]
[]
[]
[]
[]
[]
[]
[]
[null,"ICS 211",null,null,"17. Prepared by:            ",null,null,null,null,null,null,null,"Position/Title: ",null,null,"Signature:  ",null,null,null,null,"Date/Time:  "]

{"sheet":"211Inst","index":20,"n_rows":64,"n_cols":3,"rows_kept":64,"cut":false,"hidden":true,"merged":[[59,0,63,0],[59,2,63,2],[48,0,50,0],[48,1,50,1],[4,0,4,2],[6,0,6,2],[7,0,7,2],[17,0,17,2],[37,0,45,0],[37,1,38,1],[27,0,32,0],[27,2,32,2],[33,0,35,0],[33,2,35,2]]}
[]
["ICS 211"]
["Incident Check-In List"]
[]
["Purpose.  Personnel and equipment arriving at the incident can check in at various incident locations.  Check-in consists of reporting specific information, which is recorded on the Check-In List (ICS 211).  The ICS 211 serves several purposes, as it:  (1) records arrival times at the incident of all overhead personnel and equipment, (2) records the initial location of personnel and equipment to facilitate subsequent assignments, and (3) supports demobilization by recording the home base, method of travel, etc., for resources checked in."]
[]
["Preparation.  The ICS 211 is initiated at a number of incident locations including:  Staging Areas, Base, and Incident Command Post (ICP).  Preparation may be completed by:  (1) overhead at these locations, who record the information and give it to the Resources Unit as soon as possible, (2) the Incident Communications Center Manager located in the Communications Center, who records the information and gives it to the Resources Unit as soon as possible, (3) a recorder from the Resources Unit during check-in to the ICP.  As an option, the ICS 211 can be printed on colored paper to match the designated Resource Status Card (ICS 219) colors.  The purpose of this is to aid the process of completing a large volume of ICS 219s.  The ICS 219 colors are:"]
["·       219-1:  Header Card – Gray (used only as label cards for T-Card racks)"]
["·       219-2:  Crew/Team Card – Green"]
["·       219-3:  Engine Card – Rose"]
["·       219-4:  Helicopter Card – Blue"]
["·       219-5:  Personnel Card – White"]
["·       219-6:  Fixed-Wing Card – Orange"]
["·       219-7:  Equipment Card – Yellow"]
["·       219-8:  Miscellaneous Equipment/Task Force Card – Tan"]
["·       219-10:  Generic Card – Light Purple"]
[]
["Distribution.  ICS 211s, which are completed by personnel at the various check-in locations, are provided to the Resources Unit, Demobilization Unit, and Finance/Administration Section.  The Resources Unit maintains a master list of all equipment and personnel that have reported to the incident."]
[]
["Notes:"]
["·       Also available as 8½ x 14 (legal size) or 11 x 17 chart."]
["·       Use reverse side of form for remarks or comments."]
["·       If additional pages are needed for any form page, use a blank ICS 211 and repaginate as needed."]
[]
["Block Number","Block Title","Instructions"]
[1,"Incident Name","Enter the name assigned to the incident."]
[2,"Incident Number","Enter the number assigned to the incident."]
[3,"Check-In Location","Check appropriate box and enter the check-in location for the incident.  Indicate specific information regarding the locations under each checkbox.  ICP is for Incident Command Post."]
[null,"c Base"]
[null,"c Staging Area"]
[null,"c ICP"]
[null,"c Helibase"]
[null,"c Other"]
[4,"Start Date/Time","Enter the date (month/day/year) and time (using the 24-hour clock) that the form was started."]
[null,"·       Date"]
[null,"·       Time "]
[null,"Check-In Information ","Self explanatory."]
[5,"List single resource personnel (overhead) by agency and name, OR list resources by the following format","Enter the following information for resources:"]
[null,null,"OPTIONAL:  Indicate if resource is a single resource versus part of Strike Team or Task Force.  Fields can be left blank if not necessary."]
[null,"·       State","Use this section to list the home State for the resource."]
[null,"·       Agency","Use this section to list agency name (or designator), and individual names for all single resource personnel (e.g., ORC, ARL, NYPD).  "]
[null,"·       Category","Use this section to list the resource category based on NIMS, discipline, or jurisdiction guidance."]
[null,"·       Kind","Use this section to list the resource kind based on NIMS, discipline, or jurisdiction guidance."]
[null,"·       Type","Use this section to list the resource type based on NIMS, discipline, or jurisdiction guidance."]
[null,"·       Resource Name or Identifier","Use this section to enter the resource name or unique identifier.  If it is a Strike Team or a Task Force, list the unique Strike Team or Task Force identifier (if used) on a single line with the component resources of the Strike Team or Task Force listed on the following lines.  For example, for an Engine Strike Team with the call sign “XLT459” show “XLT459” in this box and then in the next five rows, list the unique identifier for the five engines assigned to the Strike Team."]
[null,"·       ST or TF","Use ST or TF to indicate whether the resource is part of a Strike Team or Task Force.  See above for additional instructions."]
[6,"Order Request #","The order request number will be assigned by the agency dispatching resources or personnel to the incident.  Use existing protocol as appropriate for the jurisdiction and/or discipline, since several incident numbers may be used for the same incident."]
[7,"Date/Time Check-In","Enter date (month/day/year) and time of check-in (24-hour clock) to the incident."]
[8,"Leader’s Name","·       For equipment, enter the operator’s name."]
[null,null,"·       Enter the Strike Team or Task Force leader’s name."]
[null,null,"·       Leave blank for single resource personnel (overhead)."]
[9,"Total Number of Personnel","Enter total number of personnel associated with the resource.  Include leaders."]
[10,"Incident Contact Information","Enter available contact information (e.g., radio frequency, cell phone number, etc.) for the incident."]
[11,"Home Unit or Agency","Enter the home unit or agency to which the resource or individual is normally assigned (may not be departure location)."]
[12,"Departure Point and Time","Enter the location from which the resource or individual departed for this incident.  Enter the departure time using the 24-hour clock."]
[13,"Method of Travel","Enter the means of travel the individual used to bring himself/herself to the incident (e.g., bus, truck, engine, personal vehicle, etc.)."]
[14,"Incident Assignment","Enter the incident assignment at time of dispatch."]
[15,"Other Qualifications","Enter additional duties (ICS positions) pertinent to the incident that the resource/individual is qualified to perform.  Note that resources should not be reassigned on the incident without going through the established ordering process.  This data may be useful when resources are demobilized and remobilized for another incident."]
[16,"Data Provided to Resources Unit","Enter the date and time that the information pertaining to that entry was transmitted to the Resources Unit, and the initials of the person who transmitted the information."]
[17,"Prepared by","Enter the name, ICS position/title, and signature of the person preparing the form.  Enter date (month/day/year) and time prepared (24-hour clock)."]
[null,"·       Name"]
[null,"·       Position/Title"]
[null,"·       Signature"]
[null,"·       Date/Time"]

{"sheet":"213","index":21,"n_rows":13,"n_cols":9,"rows_kept":13,"cut":false,"hidden":false,"merged":[[10,1,10,6],[7,8,15,10],[4,1,4,4],[5,1,5,4],[3,1,3,2],[3,3,3,6],[12,3,12,6],[0,1,0,6],[6,1,6,6],[7,1,7,6],[9,1,9,6],[2,1,2,2],[1,1,1,2],[1,3,1,6],[2,3,2,6]]}
[null,"GENERAL MESSAGE (ICS 213)"]
[null,"1. Incident Name (Optional):"]
[null,"2. To (Name and Position):"]
[null,"3. From (Name and Position):"]
[null,"4. Subject:",null,null,null,"5. Date:","6. Time"]
[]
[null,"7. Message:"]
[null,null,null,null,null,null,null,null,"In Excel to add line break inside a cell, use the keys Alt+Enter.  \n\nUse your Numeric keypad to insert bullets.  Alt+7 or Alt+9.  Use the Numlock on a laptop"]
[null,"8. Approved by:         ",null,"Signature:",null,"Position/Title:"]
[null,"9. Reply:"]
[]
[null,"10. Replied by:      ",null,"Signature:",null,"Position/Title:"]
[null,"ICS 213","Date/Time:   "]

{"sheet":"213Inst","index":22,"n_rows":31,"n_cols":3,"rows_kept":31,"cut":false,"hidden":true,"merged":[[21,0,24,0],[21,2,24,2],[26,0,30,0],[26,2,30,2],[4,0,4,2],[6,0,6,2],[8,0,8,2],[11,0,11,2]]}
[]
["ICS 213"]
["General Message"]
[]
["Purpose.  The General Message (ICS 213) is used by the incident dispatchers to record incoming messages that cannot be orally transmitted to the intended recipients.  The ICS 213 is also used by the Incident Command Post and other incident personnel to transmit messages (e.g., resource order, incident name change, other ICS coordination issues, etc.) to the Incident Communications Center for transmission via radio or telephone to the addressee.  This form is used to send any message or notification to incident personnel that requires hard-copy delivery."]
[]
["Preparation.  The ICS 213 may be initiated by incident dispatchers and any other personnel on an incident."]
[]
["Distribution.  Upon completion, the ICS 213 may be delivered to the addressee and/or delivered to the Incident Communication Center for transmission.  "]
[]
["Notes:"]
["·       The ICS 213 is a three-part form, typically using carbon paper.  The sender will complete Part 1 of the form and send Parts 2 and 3 to the recipient.  The recipient will complete Part 2 and return Part 3 to the sender."]
[]
["Block Number","Block Title","Instructions"]
[1,"Incident Name (Optional)","Enter the name assigned to the incident.  This block is optional."]
[2,"To (Name and Position)","Enter the name and position the General Message is intended for.  For all individuals, use at least the first initial and last name.  For Unified Command, include agency names."]
[3,"From (Name and Position)","Enter the name and position of the individual sending the General Message.  For all individuals, use at least the first initial and last name.  For Unified Command, include agency names."]
[4,"Subject","Enter the subject of the message."]
[5,"Date","Enter the date (month/day/year) of the message."]
[6,"Time","Enter the time (using the 24-hour clock) of the message."]
[7,"Message","Enter the content of the message.  Try to be as concise as possible."]
[8,"Approved by","Enter the name, signature, and ICS position/title of the person approving the message. "]
[null,"·       Name"]
[null,"·       Signature"]
[null,"·       Position/Title"]
[9,"Reply","The intended recipient will enter a reply to the message and return it to the originator."]
[10,"Replied by","Enter the name, ICS position/title, and signature of the person replying to the message.  Enter date (month/day/year) and time prepared (24-hour clock)."]
[null,"·       Name"]
[null,"·       Position/Title"]
[null,"·       Signature"]
[null,"·       Date/Time"]

{"sheet":"214","index":23,"n_rows":100,"n_cols":10,"rows_kept":100,"cut":false,"hidden":false,"merged":[[99,1,99,4],[99,6,99,9],[97,2,97,9],[98,1,98,2],[98,3,98,4],[91,2,91,9],[92,2,92,9],[73,2,73,9],[63,2,63,9],[64,2,64,9],[71,2,71,9],[98,8,98,9],[96,2,96,9],[88,2,88,9],[89,2,89,9],[90,2,90,9],[94,2,94,9],[95,2,95,9],[93,2,93,9],[77,2,77,9],[78,2,78,9],[79,2,79,9],[85,2,85,9],[86,2,86,9],[87,2,87,9],[68,2,68,9],[58,2,58,9],[53,2,53,9],[74,2,74,9],[75,2,75,9],[76,2,76,9],[84,2,84,9],[65,2,65,9],[80,2,80,9],[81,2,81,9],[69,2,69,9],[70,2,70,9],[83,2,83,9],[54,2,54,9],[57,2,57,9],[56,2,56,9],[82,2,82,9],[60,2,60,9],[72,2,72,9],[66,2,66,9],[67,2,67,9],[61,2,61,9],[62,2,62,9],[21,2,21,9],[22,2,22,9],[23,2,23,9],[34,2,34,9],[35,2,35,9],[32,2,32,9],[29,2,29,9],[55,2,55,9],[59,2,59,9],[38,2,38,9],[27,2,27,9],[26,2,26,9],[46,1,47,5],[44,1,44,9],[48,1,48,9],[49,2,49,9],[50,2,50,9],[51,2,51,9],[52,2,52,9],[45,1,45,5],[45,6,45,9],[0,1,0,9],[4,7,4,9],[5,7,5,9],[7,7,7,9],[6,1,6,9],[7,1,7,3],[7,4,7,6],[5,1,5,3],[4,1,4,3],[4,4,4,6],[1,6,1,9],[8,1,8,3],[8,4,8,6],[10,7,10,9],[1,1,1,5],[2,1,3,5],[8,7,8,9],[9,7,9,9],[5,4,5,6],[9,1,9,3],[9,4,9,6],[10,1,10,3],[10,4,10,6],[11,1,11,3],[11,4,11,6],[12,1,12,3],[12,4,12,6],[11,7,11,9],[13,1,13,3],[13,4,13,6],[14,1,14,3],[14,4,14,6],[12,7,12,9],[13,7,13,9],[14,7,14,9],[15,7,15,9],[20,2,20,9],[15,1,15,3],[15,4,15,6],[16,1,16,9],[17,2,17,9],[18,2,18,9],[24,2,24,9],[43,6,43,9],[30,2,30,9],[31,2,31,9],[42,3,42,4],[37,2,37,9],[43,1,43,4],[39,2,39,9],[42,8,42,9],[40,2,40,9],[41,2,41,9],[42,1,42,2],[36,2,36,9],[19,2,19,9],[33,2,33,9],[28,2,28,9],[25,2,25,9]]}
[null,"Activity Log (ICS 214)"]
[null,"1. Incident Name:  ",null,null,null,null,"2. Operational Period:      "]
[null,{"$f":"Cover!B5","v":"Proposed NIMS Update"},null,null,null,null,"Date From:",{"$f":"Cover!D13","v":"2016-04-11"},"Date To:",{"$f":"Cover!G13","v":"2016-04-11"}]
[null,null,null,null,null,null,"Time From:    ",{"$f":"Cover!D14","v":"06:00:00"},"Time To:",{"$f":"Cover!G14","v":"06:00:00"}]
[null,"3. Name:",null,null,"4. ICS Position:",null,null,"5. Home Agency (and Unit):"]
[]
[null,"6. Resources Assigned:"]
[null,"Name",null,null,"ICS Position",null,null,"Home Agency (and Unit)"]
[]
[]
[]
[]
[]
[]
[]
[]
[null,"7. Activity Log:"]
[null,"Date/Time","Notable Activities"]
[]
[]
[]
[]
[]
[]
[]
[]
[]
[]
[]
[]
[]
[]
[]
[]
[]
[]
[]
[]
[]
[]
[]
[]
[null,"8. Prepared by:      ",null,null,null,"Position/Title:",null,"Signature:"]
[null,"ICS 214, Page 1",null,null,null,"Date/Time:   "]
[null,"Activity Log (ICS 214)"]
[null,"1. Incident Name:  ",null,null,null,null,"2. Operational Period:      "]
[null,{"$f":"B3","v":"Proposed NIMS Update"},null,null,null,null,"Date From:",{"$f":"H3","v":"2016-04-11"},"Date To:",{"$f":"J3","v":"2016-04-11"}]
[null,null,null,null,null,null,"Time From:    ",{"$f":"H4","v":"06:00:00"},"Time To:",{"$f":"J4","v":"06:00:00"}]
[null,"7. Activity Log (continuation):"]
[null,"Date/Time","Notable Activities"]
[]
[]
[]
[]
[]
[]
[]
[]
[]
[]
[]
[]
[]
[]
[]
[]
[]
[]
[]
[]
[]
[]
[]
[]
[]
[]
[]
[]
[]
[]
[]
[]
[]
[]
[]
[]
[]
[]
[]
[]
[]
[]
[]
[]
[]
[]
[]
[]
[null,"8. Prepared by:      ",null,null,null,"Position/Title:",null,"Signature:"]
[null,"ICS 214, Page 2",null,null,null,"Date/Time:   "]

{"sheet":"214Inst","index":24,"n_rows":34,"n_cols":3,"rows_kept":34,"cut":false,"hidden":true,"merged":[[29,0,33,0],[29,2,33,2],[4,0,4,2],[6,0,6,2],[8,0,8,2],[16,0,18,0],[16,2,18,2],[22,0,25,0],[26,0,28,0]]}
[]
["ICS 214"]
["Activity Log"]
[]
["Purpose.  The Activity Log (ICS 214) records details of notable activities at any ICS level, including single resources, equipment, Task Forces, etc.  These logs provide basic incident activity documentation, and a reference for any after-action report."]
[]
["Preparation.  An ICS 214 can be initiated and maintained by personnel in various ICS positions as it is needed or appropriate.  Personnel should document how relevant incident activities are occurring and progressing, or any notable events or communications."]
[]
["Distribution.  Completed ICS 214s are submitted to supervisors, who forward them to the Documentation Unit.  All completed original forms must be given to the Documentation Unit, which maintains a file of all ICS 214s.  It is recommended that individuals retain a copy for their own records."]
[]
["Notes: "]
["·       The ICS 214 can be printed as a two-sided form."]
["·       Use additional copies as continuation sheets as needed, and indicate pagination as used."]
[]
["Block Number","Block Title","Instructions"]
[1,"Incident Name","Enter the name assigned to the incident."]
[2,"Operational Period","Enter the start date (month/day/year) and time (using the 24-hour clock) and end date and time for the operational period to which the form applies."]
[null,"·       Date and Time From"]
[null,"·       Date and Time To"]
[3,"Name","Enter the title of the organizational unit or resource designator (e.g., Facilities Unit, Safety Officer, Strike Team)."]
[4,"ICS Position","Enter the name and ICS position of the individual in charge of the Unit. "]
[5,"Home Agency (and Unit)","Enter the home agency of the individual completing the ICS 214.  Enter a unit designator if utilized by the jurisdiction or discipline."]
[6,"Resources Assigned","Enter the following information for resources assigned:"]
[null,"·       Name","Use this section to enter the resource’s name.  For all individuals, use at least the first initial and last name.  Cell phone number for the individual can be added as an option."]
[null,"·       ICS Position","Use this section to enter the resource’s ICS position (e.g., Finance Section Chief)."]
[null,"·       Home Agency (and Unit)","Use this section to enter the resource’s home agency and/or unit (e.g., Des Moines Public Works Department, Water Management Unit)."]
[7,"Activity Log","·       Enter the time (24-hour clock) and briefly describe individual notable activities.  Note the date as well if the operational period covers more than one day."]
[null,"·       Date/Time","·       Activities described may include notable occurrences or events such as task assignments, task completions, injuries, difficulties encountered, etc."]
[null,"·       Notable Activities","·       This block can also be used to track personal work habits by adding columns such as “Action Required,” “Delegated To,” “Status,” etc."]
[8,"Prepared by","Enter the name, ICS position/title, and signature of the person preparing the form.  Enter date (month/day/year) and time prepared (24-hour clock)."]
[null,"·       Name"]
[null,"·       Position/Title"]
[null,"·       Signature"]
[null,"·       Date/Time"]

{"sheet":"214x","index":25,"n_rows":55,"n_cols":10,"rows_kept":55,"cut":false,"hidden":false,"merged":[[54,1,54,4],[54,6,54,9],[49,2,49,9],[50,2,50,9],[51,2,51,9],[52,2,52,9],[53,1,53,2],[53,3,53,4],[53,8,53,9],[0,1,1,9],[38,2,38,9],[39,2,39,9],[40,2,40,9],[41,2,41,9],[37,2,37,9],[29,2,29,9],[30,2,30,9],[31,2,31,9],[23,2,23,9],[24,2,24,9],[25,2,25,9],[26,2,26,9],[27,2,27,9],[28,2,28,9],[17,2,17,9],[44,2,44,9],[45,2,45,9],[46,2,46,9],[47,2,47,9],[48,2,48,9],[42,2,42,9],[43,2,43,9],[32,2,32,9],[33,2,33,9],[34,2,34,9],[35,2,35,9],[36,2,36,9],[18,2,18,9],[19,2,19,9],[20,2,20,9],[21,2,21,9],[22,2,22,9],[16,2,16,9],[12,12,22,15],[2,1,2,5],[2,6,2,9],[3,1,4,5],[5,1,5,9],[6,2,6,9],[7,2,7,9],[8,2,8,9],[9,2,9,9],[10,2,10,9],[11,2,11,9],[12,2,12,9],[13,2,13,9],[14,2,14,9],[15,2,15,9]]}
[null,"Activity Log (ICS 214x)"]
[]
[null,"1. Incident Name:  ",null,null,null,null,"2. Operational Period:      "]
[null,{"$f":"'Start Page'!P10","v":"Proposed NIMS Update"},null,null,null,null,"Date From:",{"$f":"'Start Page'!P11","v":"2016-04-11"},"Date To:",{"$f":"'Start Page'!P12","v":"2016-04-11"}]
[null,null,null,null,null,null,"Time From:    ",{"$f":"'Start Page'!P13","v":"06:00:00"},"Time To:",{"$f":"'Start Page'!P14","v":"06:00:00"}]
[null,"7. Activity Log (continuation):"]
[null,"Date/Time","Notable Activities"]
[]
[]
[]
[]
[]
[]
[]
[]
[]
[]
[]
[]
[]
[]
[]
[]
[]
[]
[]
[]
[]
[]
[]
[]
[]
[]
[]
[]
[]
[]
[]
[]
[]
[]
[]
[]
[]
[]
[]
[]
[]
[]
[]
[]
[]
[]
[null,"8. Prepared by:      ",null,null,null,"Position/Title:",null,"Signature:"]
[null,"ICS 214, Page ____ of _____",null,null,null,"Date/Time:   "]

{"sheet":"215","index":26,"n_rows":27,"n_cols":22,"rows_kept":27,"cut":false,"hidden":false,"merged":[[26,19,26,21],[25,3,25,4],[25,10,25,11],[26,3,26,4],[26,10,26,11],[0,1,0,21],[25,19,25,21],[21,10,21,11],[19,18,21,18],[19,19,21,19],[19,20,21,20],[22,8,24,8],[22,9,24,9],[22,19,22,21],[23,20,23,21],[24,19,24,20],[18,10,18,11],[16,18,18,18],[16,19,18,19],[16,20,18,20],[19,21,21,21],[22,10,24,11],[13,18,15,18],[13,19,15,19],[13,20,15,20],[22,1,26,2],[22,3,24,4],[22,5,24,5],[22,6,24,6],[22,7,24,7],[22,16,24,16],[22,17,24,17],[22,18,24,18],[22,12,24,12],[22,13,24,13],[22,14,24,14],[22,15,24,15],[13,21,15,21],[16,21,18,21],[19,1,21,1],[19,2,21,2],[19,3,21,3],[19,10,19,11],[20,10,20,11],[16,1,18,1],[16,2,18,2],[16,3,18,3],[16,10,16,11],[17,10,17,11],[15,10,15,11],[13,1,15,1],[13,2,15,2],[13,3,15,3],[10,21,12,21],[12,10,12,11],[10,18,12,18],[10,19,12,19],[10,20,12,20],[13,10,13,11],[14,10,14,11],[4,19,6,19],[4,20,6,20],[5,10,5,11],[4,21,6,21],[7,21,9,21],[4,18,6,18],[9,10,9,11],[7,18,9,18],[7,19,9,19],[7,20,9,20],[10,1,12,1],[10,2,12,2],[10,3,12,3],[10,10,10,11],[11,10,11,11],[4,1,6,1],[4,2,6,2],[4,3,6,3],[4,10,4,11],[6,10,6,11],[1,11,1,21],[2,11,2,21],[3,10,3,11],[1,1,1,10],[2,1,2,10],[7,1,9,1],[7,2,9,2],[7,3,9,3],[7,10,7,11],[8,10,8,11]]}
[null,"SUPPORT PLANNING WORKSHEET (ICS 215)"]
[null,"1. Incident Name:",null,null,null,null,null,null,null,null,null,"2. Operational Period: Date From:               Time From: "]
[null,null,null,null,null,null,null,null,null,null,null,"                                    Date To:                   Time To:  "]
[null,"3. Branch","4. Division, Group,        or Other","5. Work Assignment & Special Instructions","6. Resources",null,null,null,null,null,null,null,null,null,null,null,null,null,"7. Overhead Position(s)","8. Special Equipment & Supplies","9. Reporting Location","10. Requested Arrival Time"]
[null,null,null,null,"Req."]
[null,null,null,null,"Have"]
[null,null,null,null,"Need",{"$f":"IF(F5=0,\"\",F5-F6)","v":""},"","","","","",null,{"$f":"IF(M5=0,\"\",M5-M6)","v":""},"","","","",""]
[null,null,null,null,"Req."]
[null,null,null,null,"Have"]
[null,null,null,null,"Need",{"$f":"IF(F8=0,\"\",F8-F9)","v":""},"","","","","",null,{"$f":"IF(M8=0,\"\",M8-M9)","v":""},"","","","",""]
[null,null,null,null,"Req."]
[null,null,null,null,"Have"]
[null,null,null,null,"Need",{"$f":"IF(F11=0,\"\",F11-F12)","v":""},"","","","","",null,{"$f":"IF(M11=0,\"\",M11-M12)","v":""},"","","","",""]
[null,null,null,null,"Req."]
[null,null,null,null,"Have"]
[null,null,null,null,"Need",{"$f":"IF(F14=0,\"\",F14-F15)","v":""},"","","","","",null,{"$f":"IF(M14=0,\"\",M14-M15)","v":""},"","","","",""]
[null,null,null,null,"Req."]
[null,null,null,null,"Have"]
[null,null,null,null,"Need",{"$f":"IF(F17=0,\"\",F17-F18)","v":""},"","","","","",null,{"$f":"IF(M17=0,\"\",M17-M18)","v":""},"","","","",""]
[null,null,null,null,"Req."]
[null,null,null,null,"Have"]
[null,null,null,null,"Need",{"$f":"IF(F20=0,\"\",F20-F21)","v":""},"","","","","",null,{"$f":"IF(M20=0,\"\",M20-M21)","v":""},"","","","",""]
[null,"ICS 215",null,"11. Total Resources Required",null,{"$f":"F5+F8+F11+F14+F17+F20","v":0},{"$f":"G5+G8+G11+G14+G17+G20","v":0},0,0,{"$f":"J5+J8+J11+J14+J17+J20","v":0},{"$f":"K5+K8+K11+K14+K17+K20","v":0},null,{"$f":"M5+M8+M11+M14+M17+M20","v":0},{"$f":"N5+N8+N11+N14+N17+N20","v":0},0,0,0,0,null,"14. Prepared by: "]
[null,null,null,null,null,null,null,null,null,null,null,null,null,null,null,null,null,null,null,"Name:   "]
[null,null,null,null,null,null,null,null,null,null,null,null,null,null,null,null,null,null,null,"Position/Title:   "]
[null,null,null,"12. Total Resources Have on Hand",null,{"$f":"F6+F9+F12+F15+F18+F21","v":0},{"$f":"G6+G9+G12+G15+G18+G21","v":0},0,0,0,{"$f":"K6+K9+K12+K15+K18+K21","v":0},null,{"$f":"M6+M9+M12+M15+M18+M21","v":0},{"$f":"N6+N9+N12+N15+N18+N21","v":0},0,0,0,0,null,"Signature:   "]
[null,null,null,"13. Total Resources Need To Order",null,{"$f":"F23+F26","v":0},{"$f":"G23+G26","v":0},0,0,0,{"$f":"K23+K26","v":0},null,{"$f":"M23+M26","v":0},{"$f":"N23+N26","v":0},0,0,0,{"$f":"R23+R26","v":0},null,"Date/Time:   "]

{"sheet":"215Inst","index":27,"n_rows":39,"n_cols":3,"rows_kept":39,"cut":false,"hidden":true,"merged":[[23,0,26,0],[34,0,38,0],[34,2,38,2],[4,0,4,2],[6,0,6,2],[8,0,8,2],[17,0,19,0],[17,2,19,2]]}
[]
["ICS 215"]
["Operational Planning Worksheet"]
[]
["Purpose.  The Operational Planning Worksheet (ICS 215) communicates the decisions made by the Operations Section Chief during the Tactics Meeting concerning resource assignments and needs for the next operational period.  The ICS 215 is used by the Resources Unit to complete the Assignment Lists (ICS 204) and by the Logistics Section Chief for ordering resources for the incident."]
[]
["Preparation.  The ICS 215 is initiated by the Operations Section Chief and often involves logistics personnel, the Resources Unit, and the Safety Officer.  The form is shared with the rest of the Command and General Staffs during the Planning Meeting.  It may be useful in some disciplines or jurisdictions to prefill ICS 215 copies prior to incidents."]
[]
["Distribution.  When the Branch, Division, or Group work assignments and accompanying resource allocations are agreed upon, the form is distributed to the Resources Unit to assist in the preparation of the ICS 204.  The Logistics Section will use a copy of this worksheet for preparing requests for resources required for the next operational period."]
[]
["Notes:"]
["·       This worksheet can be made into a wall mount."]
["·       Also available as 8½ x 14 (legal size) and 11 x 17 chart."]
["·       If additional pages are needed, use a blank ICS 215 and repaginate as needed."]
[]
["Block Number","Block Title","Instructions"]
[1,"Incident Name","Enter the name assigned to the incident."]
[2,"Operational Period","Enter the start date (month/day/year) and time (using the 24-hour clock) and end date and time for the operational period to which the form applies."]
[null,"·       Date and Time From"]
[null,"·       Date and Time To"]
[3,"Branch","Enter the Branch of the work assignment for the resources. "]
[4,"Division, Group, or Other","Enter the Division, Group, or other location (e.g., Staging Area) of the work assignment for the resources.  "]
[5,"Work Assignment & Special Instructions","Enter the specific work assignments given to each of the Divisions/Groups and any special instructions, as required."]
[6,"Resources","Complete resource headings for category, kind, and type as appropriate for the incident.  The use of a slash indicates a single resource in the upper portion of the slash and a Strike Team or Task Force in the bottom portion of the slash."]
[null,"·       Required","Enter, for the appropriate resources, the number of resources by type (engines, crew, etc.) required to perform the work assignment."]
[null,"·       Have","Enter, for the appropriate resources, the number of resources by type (engines, crew, etc.) available to perform the work assignment."]
[null,"·       Need","Enter the number of resources needed by subtracting the number in the “Have” row from the number in the “Required” row."]
[7,"Overhead Position(s)","List any supervisory and nonsupervisory ICS position(s) not directly assigned to a previously identified resource (e.g., Division/Group Supervisor, Assistant Safety Officer, Technical Specialist, etc.)."]
[8,"Special Equipment & Supplies","List special equipment and supplies, including aviation support, used or needed.  This may be a useful place to monitor span of control."]
[9,"Reporting Location","Enter the specific location where the resources are to report (Staging Area, location at incident, etc.)."]
[10,"Requested Arrival Time","Enter the time (24-hour clock) that resources are requested to arrive at the reporting location. "]
[11,"Total Resources Required","Enter the total number of resources required by category/kind/type as preferred (e.g., engines, crews, dozers, etc.).  A slash can be used again to indicate total single resources in the upper portion of the slash and total Strike Teams in the bottom portion of the slash. "]
[12,"Total Resources Have on Hand","Enter the total number of resources on hand that are assigned to the incident for incident use.  A slash can be used again to indicate total single resources in the upper portion of the slash and total Strike Teams in the bottom portion of the slash."]
[13,"Total Resources Need To Order","Enter the total number of resources needed.  A slash can be used again to indicate total single resources in the upper portion of the slash and total Strike Teams in the bottom portion of the slash."]
[14,"Prepared by","Enter the name, ICS position, and signature of the person preparing the form.  Enter date (month/day/year) and time prepared (24-hour clock)."]
[null,"·       Name"]
[null,"·       Position/Title"]
[null,"·       Signature"]
[null,"·       Date/Time"]

{"sheet":"215A","index":28,"n_rows":23,"n_cols":11,"rows_kept":23,"cut":false,"hidden":false,"merged":[[21,9,21,10],[21,5,21,7],[21,1,21,3],[18,8,18,10],[19,8,19,10],[20,9,20,10],[20,5,20,7],[19,2,19,7],[3,5,4,6],[3,1,3,4],[7,2,7,7],[8,2,8,7],[15,8,15,10],[13,8,13,10],[11,2,11,7],[12,2,12,7],[13,2,13,7],[11,8,11,10],[12,8,12,10],[14,2,14,7],[5,8,5,10],[6,8,6,10],[7,8,7,10],[8,8,8,10],[0,1,0,10],[1,6,1,10],[2,6,2,10],[1,1,1,5],[2,1,2,5],[22,1,22,7],[5,2,5,7],[6,2,6,7],[22,9,22,10],[17,2,17,7],[18,2,18,7],[15,2,15,7],[16,2,16,7],[9,2,9,7],[10,2,10,7],[14,8,14,10],[9,8,9,10],[10,8,10,10],[20,1,20,3],[16,8,16,10],[17,8,17,10]]}
[null,"Incident Action Plan Safety Analysis (ICS 215A)"]
[null,"1. Incident Name:  ",null,null,null,null,"2. Incident Number:"]
[null,{"$f":"Cover!B5","v":"Proposed NIMS Update"},null,null,null,null,{"$f":"'209'!U2","v":"N/A"}]
[null,"3. Date/Time Prepared:",null,null,null,"4. Operational Period: ",null,"Date From:   ",{"$f":"Cover!D13","v":"2016-04-11"},"Date To:  ",{"$f":"Cover!G13","v":"2016-04-11"}]
[null,"Date:     ",null,"Time:",null,null,null,"Time From:     ",{"$f":"Cover!D14","v":"06:00:00"},"Time To:",{"$f":"Cover!G14","v":"06:00:00"}]
[null,"5. Incident Area","6. Hazards/Risks",null,null,null,null,null,"7. Mitigations"]
[]
[]
[]
[]
[]
[]
[]
[]
[]
[]
[]
[]
[]
[]
[null,"8. Prepared by (Safety Officer):         ",null,null,"Name:",null,null,null,"Signature:"]
[null,"Prepared by (Operations Section Chief):        ",null,null,"Name:",null,null,null,"Signature: "]
[null,"ICS 215A",null,null,null,null,null,null,"Date/Time:   "]

{"sheet":"215AInst","index":29,"n_rows":28,"n_cols":3,"rows_kept":28,"cut":false,"hidden":true,"merged":[[24,0,27,0],[24,2,27,2],[4,0,4,2],[6,0,6,2],[8,0,8,2],[18,0,20,0],[18,2,20,2]]}
[]
["ICS 215A"]
["Incident Action Plan Safety Analysis "]
[]
["Purpose.  The purpose of the Incident Action Plan Safety Analysis (ICS 215A) is to aid the Safety Officer in completing an operational risk assessment to prioritize hazards, safety, and health issues, and to develop appropriate controls.  This worksheet addresses communications challenges between planning and operations, and is best utilized in the planning phase and for Operations Section briefings.  "]
[]
["Preparation.  The ICS 215A is typically prepared by the Safety Officer during the incident action planning cycle.  When the Operations Section Chief is preparing for the tactics meeting, the Safety Officer collaborates with the Operations Section Chief to complete the Incident Action Plan Safety Analysis.  This worksheet is closely linked to the Operational Planning Worksheet (ICS 215).  Incident areas or regions are listed along with associated hazards and risks.  For those assignments involving risks and hazards, mitigations or controls should be developed to safeguard responders, and appropriate incident personnel should be briefed on the hazards, mitigations, and related measures.  Use additional sheets as needed."]
[]
["Distribution.  When the safety analysis is completed, the form is distributed to the Resources Unit to help prepare the Operations Section briefing.  All completed original forms must be given to the Documentation Unit."]
[]
["Notes:"]
["·    This worksheet can be made into a wall mount, and can be part of the IAP."]
["·    If additional pages are needed, use a blank ICS 215A and repaginate as needed."]
[]
["Block Number","Block Title","Instructions"]
[1,"Incident Name","Enter the name assigned to the incident."]
[2,"Incident Number","Enter the number assigned to the incident."]
[3,"Date/Time Prepared","Enter date (month/day/year) and time (using the 24-hour clock) prepared."]
[4,"Operational Period","Enter the start date (month/day/year) and time (24-hour clock) and end date and time for the operational period to which the form applies."]
[null,"·       Date and Time From"]
[null,"·       Date and Time To"]
[5,"Incident Area","Enter the incident areas where personnel or resources are likely to encounter risks.  This may be specified as a Branch, Division, or Group."]
[6,"Hazards/Risks","List the types of hazards and/or risks likely to be encountered by personnel or resources at the incident area relevant to the work assignment."]
[7,"Mitigations ","List actions taken to reduce risk for each hazard indicated (e.g., specify personal protective equipment or use of a buddy system or escape routes)."]
[8,"Prepared by (Safety Officer and Operations Section Chief)","Enter the name of both the Safety Officer and the Operations Section Chief, who should collaborate on form preparation.  Enter date (month/day/year) and time (24-hour clock) reviewed."]
[null,"·       Name"]
[null,"·       Signature"]
[null,"·       Date/Time"]

{"sheet":"218","index":30,"n_rows":19,"n_cols":16,"rows_kept":19,"cut":false,"hidden":false,"merged":[[18,9,18,10],[18,12,18,15],[4,12,5,12],[4,13,5,13],[4,10,5,10],[4,11,5,11],[11,3,11,5],[11,7,11,8],[0,1,0,15],[1,1,1,3],[2,1,2,3],[1,4,1,7],[2,4,2,7],[1,12,1,15],[2,12,2,15],[1,8,1,11],[3,1,3,15],[4,1,5,1],[8,7,8,8],[4,9,5,9],[4,14,5,14],[4,15,5,15],[14,3,14,5],[12,7,12,8],[18,1,18,4],[15,3,15,5],[15,7,15,8],[16,3,16,5],[16,7,16,8],[18,5,18,6],[12,3,12,5],[18,7,18,8],[14,7,14,8],[13,3,13,5],[17,7,17,8],[17,3,17,5],[13,7,13,8],[10,3,10,5],[10,7,10,8],[4,2,5,2],[4,3,5,5],[4,6,5,6],[4,7,4,8],[5,7,5,8],[9,3,9,5],[9,7,9,8],[7,3,7,5],[7,7,7,8],[6,3,6,5],[6,7,6,8],[8,3,8,5]]}
[null,"Support Vehicle/Equipment Inventory (ICS 218)"]
[null,"1. Incident Name:",null,null,"2. Incident Number:",null,null,null,"3. Date/Time Prepared:",null,null,null,"4. Vehicle/Equipment Category:"]
[null,{"$f":"Cover!B5","v":"Proposed NIMS Update"},null,null,{"$f":"'209'!U2","v":"N/A"},null,null,null,"Date:",null,"Time: "]
[null,"5. Vehicle/Equipment Information"]
[null,"Order Request Number","Incident ID No.","Vehicle or Equipment Classification",null,null,"Vehicle or Equipment Make","Category/",null,"Vehicle or Equipment Features","Agency or Owner","Operator Name or Contact","Vehicle License or ID No.","Incident Assignment","Incident Start Date and Time","Incident Release Date and Time"]
[null,null,null,null,null,null,null,"Kind/Type, Capacity, or Size"]
[]
[]
[]
[]
[]
[]
[]
[]
[]
[]
[]
[]
[null,"ICS 218",null,null,null,"6. Prepared by:       ",null,null,null,"Position/Title:",null,null,"Signature: "]

{"sheet":"218Inst","index":31,"n_rows":37,"n_cols":3,"rows_kept":37,"cut":false,"hidden":true,"merged":[[31,0,32,0],[33,0,36,0],[33,2,36,2],[4,0,4,2],[6,0,6,2],[8,0,8,2],[19,0,29,0]]}
[]
["ICS 218"]
["Support Vehicle/Equipment Inventory"]
[]
["Purpose.  The Support Vehicle/Equipment Inventory (ICS 218) provides an inventory of all transportation and support vehicles and equipment assigned to the incident.  The information is used by the Ground Support Unit to maintain a record of the types and locations of vehicles and equipment on the incident.  The Resources Unit uses the information to initiate and maintain status/resource information."]
[]
["Preparation.  The ICS 218 is prepared by Ground Support Unit personnel at intervals specified by the Ground Support Unit Leader."]
[]
["Distribution.  Initial inventory information recorded on the form should be given to the Resources Unit.  Subsequent changes to the status or location of transportation and support vehicles and equipment should be provided to the Resources Unit immediately."]
[]
["Notes:"]
["·         If additional pages are needed, use a blank ICS 218 and repaginate as needed."]
["·         Also available as 8½ x 14 (legal size) and 11 x 17 chart."]
[]
["Block Number","Block Title","Instructions"]
[1,"Incident Name","Enter the name assigned to the incident."]
[2,"Incident Number","Enter the number assigned to the incident."]
[3,"Date/Time Prepared","Enter the date (month/day/year) and time (using the 24-hour clock) the form is prepared."]
[4,"Vehicle/Equipment Category","Enter the specific vehicle or equipment category (e.g., buses, generators, dozers, pickups/sedans, rental cars, etc.).  Use a separate sheet for each vehicle or equipment category."]
[5,"Vehicle/Equipment Information","Record the following information:"]
[null,"Order Request Number","Enter the order request number for the resource as used by the jurisdiction or discipline, or the relevant EMAC order request number."]
[null,"Incident Identification Number","Enter any special incident identification numbers or agency radio identifier assigned to the piece of equipment used only during the incident, if this system if used (e.g., “Decontamination Unit 2,” or “Water Tender 14”)."]
[null,"Vehicle or Equipment Classification","Enter the specific vehicle or equipment classification (e.g., bus, backhoe, Type 2 engine, etc.) as relevant."]
[null,"Vehicle or Equipment Make","Enter the vehicle or equipment manufacturer name (e.g., “GMC,” “International”)."]
[null,"Category/Kind/Type, Capacity, or Size","Enter the vehicle or equipment category/kind/type, capacity, or size (e.g., 30-person bus, 3/4-ton truck, 50 kW generator)."]
[null,"Vehicle or Equipment Features","Indicate any vehicle or equipment features such as 2WD, 4WD, towing capability, number of axles, heavy-duty tires, high clearance, automatic vehicle locator (AVL), etc."]
[null,"Agency or Owner","Enter the name of the agency or owner of the vehicle or equipment."]
[null,"Operator Name or Contact","Enter the operator name and/or contact information (cell phone, radio frequency, etc.)."]
[null,"Vehicle License or Identification Number","Enter the license plate number or another identification number (such as a serial or rig number) of the vehicle or equipment."]
[null,"Incident Assignment","Enter where the vehicle or equipment will be located at the incident and its function (use abbreviations per discipline or jurisdiction)."]
["Block Number","Block Title","Instructions"]
["5 (continued)","Incident Start Date and Time","Indicate start date (month/day/year) and time (using the 24-hour clock) for driver or for equipment as may be relevant."]
[null,"Incident Release Date and Time","Enter the date (month/day/year) and time (using the 24-hour clock) the vehicle or equipment is released from the incident."]
[6,"Prepared by","Enter the name, ICS position/title, and signature of the person preparing the form."]
[null,"·       Name"]
[null,"·       Position/Title"]
[null,"·       Signature"]

{"sheet":"220","index":32,"n_rows":60,"n_cols":17,"rows_kept":60,"cut":false,"hidden":false,"merged":[[7,8,7,9],[4,1,4,7],[4,14,4,17],[8,8,8,9],[9,8,10,9],[8,12,8,13],[8,14,8,17],[6,15,6,17],[4,8,4,13],[6,9,6,13],[12,1,12,2],[12,8,12,9],[12,10,12,11],[12,12,12,13],[12,5,12,7],[5,1,5,7],[5,8,5,13],[5,15,5,17],[9,14,10,17],[7,10,7,13],[11,1,11,2],[11,8,11,9],[11,10,11,11],[11,3,11,4],[11,5,11,7],[7,15,7,17],[8,10,8,11],[9,10,10,11],[9,12,10,13],[12,3,12,4],[6,1,10,7],[11,12,11,13],[11,14,11,17],[12,14,12,17],[26,1,26,2],[15,3,15,4],[13,1,13,2],[13,8,13,9],[13,10,13,11],[13,3,13,4],[14,1,14,2],[14,8,14,9],[14,10,14,11],[15,1,15,2],[15,8,15,9],[14,3,14,4],[23,8,23,10],[24,8,24,10],[16,1,16,2],[16,8,16,9],[16,10,16,11],[19,3,19,4],[23,3,23,4],[25,16,25,17],[24,11,24,13],[16,3,16,4],[30,16,31,17],[18,3,18,4],[18,1,18,2],[18,5,18,7],[18,11,18,13],[34,12,34,13],[33,1,33,3],[22,3,22,4],[21,5,21,7],[23,5,23,7],[32,1,32,17],[33,14,34,15],[19,1,19,2],[21,16,21,17],[22,16,22,17],[21,1,21,2],[22,1,22,2],[20,5,20,7],[20,11,20,13],[20,3,20,4],[19,5,19,7],[16,12,16,13],[16,5,16,7],[19,16,19,17],[20,16,20,17],[18,14,18,15],[19,14,19,15],[20,14,20,15],[21,14,21,15],[18,16,18,17],[22,14,22,15],[21,11,21,13],[33,4,33,11],[33,12,33,13],[23,11,23,13],[24,3,24,4],[29,14,29,15],[24,5,24,7],[25,5,25,7],[25,3,25,4],[26,15,26,17],[26,8,26,9],[26,10,26,12],[29,16,29,17],[30,14,31,15],[24,16,24,17],[23,14,23,15],[24,14,24,15],[23,16,23,17],[26,13,26,14],[25,14,25,15],[25,8,25,10],[28,1,28,17],[25,11,25,13],[31,10,31,13],[25,1,25,2],[0,1,0,17],[1,14,1,15],[1,16,1,17],[2,14,3,15],[2,16,3,17],[2,10,2,13],[2,7,2,8],[3,7,3,8],[3,10,3,13],[1,6,1,13],[1,1,1,5],[2,1,3,5],[15,12,15,13],[14,12,14,13],[14,5,14,7],[22,11,22,13],[18,8,18,10],[17,1,17,17],[16,14,16,17],[20,1,20,2],[13,12,13,13],[15,10,15,11],[13,14,13,17],[14,14,14,17],[13,5,13,7],[15,14,15,17],[15,5,15,7],[37,4,37,11],[19,11,19,13],[22,8,22,10],[29,1,29,5],[29,6,29,13],[27,9,27,17],[27,7,27,8],[23,1,23,2],[24,1,24,2],[35,12,35,13],[35,16,35,17],[36,16,36,17],[37,16,37,17],[19,8,19,10],[20,8,20,10],[21,8,21,10],[22,5,22,7],[21,3,21,4],[27,1,27,6],[34,1,34,3],[34,4,34,11],[26,4,26,7],[33,16,34,17],[58,1,58,2],[46,4,46,11],[44,1,44,3],[47,1,47,3],[30,1,31,5],[30,7,30,8],[30,10,30,13],[31,7,31,8],[36,12,36,13],[37,12,37,13],[38,12,38,13],[39,12,39,13],[40,12,40,13],[54,1,54,3],[51,1,51,3],[45,1,45,3],[35,4,35,11],[36,4,36,11],[38,4,38,11],[39,4,39,11],[35,1,35,3],[36,1,36,3],[37,1,37,3],[40,14,40,15],[41,14,41,15],[42,14,42,15],[43,14,43,15],[46,12,46,13],[47,12,47,13],[41,12,41,13],[42,12,42,13],[44,4,44,11],[45,4,45,11],[44,14,44,15],[45,14,45,15],[46,14,46,15],[47,14,47,15],[40,4,40,11],[43,12,43,13],[38,1,38,3],[39,1,39,3],[40,1,40,3],[41,1,41,3],[42,1,42,3],[41,4,41,11],[42,4,42,11],[43,4,43,11],[43,1,43,3],[54,4,54,11],[55,4,55,11],[47,4,47,11],[48,4,48,11],[55,1,55,3],[52,1,52,3],[46,1,46,3],[53,1,53,3],[48,1,48,3],[49,1,49,3],[50,1,50,3],[53,4,53,11],[54,12,54,13],[56,4,56,11],[57,4,57,11],[49,4,49,11],[50,4,50,11],[51,4,51,11],[52,4,52,11],[59,7,59,8],[58,8,58,9],[59,9,59,17],[58,4,58,7],[59,1,59,6],[58,10,58,12],[58,13,58,14],[58,15,58,17],[57,1,57,3],[56,1,56,3],[56,12,56,13],[49,12,49,13],[55,16,55,17],[56,16,56,17],[57,16,57,17],[51,16,51,17],[52,16,52,17],[48,14,48,15],[44,12,44,13],[45,12,45,13],[57,12,57,13],[35,14,35,15],[36,14,36,15],[37,14,37,15],[38,14,38,15],[39,14,39,15],[52,14,52,15],[53,14,53,15],[54,14,54,15],[55,14,55,15],[49,14,49,15],[50,14,50,15],[51,14,51,15],[56,14,56,15],[57,14,57,15],[55,12,55,13],[48,12,48,13],[50,12,50,13],[51,12,51,13],[52,12,52,13],[53,12,53,13],[53,16,53,17],[54,16,54,17],[38,16,38,17],[39,16,39,17],[40,16,40,17],[41,16,41,17],[42,16,42,17],[47,16,47,17],[48,16,48,17],[49,16,49,17],[50,16,50,17],[43,16,43,17],[44,16,44,17],[45,16,45,17],[46,16,46,17]]}
[null,"Air Operations Summary (ICS 220)"]
[null,"1. Incident Name:",null,null,null,null,"2. Operational Period:",null,null,null,null,null,null,null,"3. Sunrise:",null,"Sunset: "]
[null,{"$f":"Cover!B5","v":"Proposed NIMS Update"},null,null,null,null,"Date From:     ",{"$f":"Cover!D13","v":"2016-04-11"},null,"Date To:",{"$f":"Cover!G13","v":"2016-04-11"}]
[null,null,null,null,null,null,"Time From:     ",{"$f":"Cover!D14","v":"06:00:00"},null,"Time To:",{"$f":"Cover!G14","v":"06:00:00"}]
[null,"4. Remarks (safety notes, hazards, air operations special ",null,null,null,null,null,null,"5. Ready Alert Aircraft:",null,null,null,null,null,"6. Temporary Flight Restriction  "]
[null,"equipment, etc.):",null,null,null,null,null,null,null,null,null,null,null,null,"Number:"]
[null,null,null,null,null,null,null,null,"Medivac:",null,null,null,null,null,"Altitude:  ",6850]
[null,null,null,null,null,null,null,null,"New Incident:  ",null,null,null,null,null,"Center Point:  ","N34 19.77   W112 52.52"]
[null,null,null,null,null,null,null,null,"8. Frequencies:",null,"AM",null,"FM",null,"9. Fixed-Wing (category/kind/type, make/model, N#, base):"]
[null,null,null,null,null,null,null,null,"Air/Air Fixed-Wing",null,null,null,null,null,"Air Tactical Group Supervisor Aircraft:"]
[]
[null,"7. Personnel:",null,"Name:",null,"Phone Number:",null,null,"Air/Air Rotary-Wing – Flight Following"]
[null,"Air Operations Branch Director",null,null,null,null,null,null,"Air/Ground"]
[null,"Air Support Group Supervisor",null,null,null,null,null,null,"Command",null,null,null,null,null,"Other Fixed-Wing Aircraft:"]
[null,"Air Tactical Group Supervisor",null,null,null,null,null,null,"Deck Coordinator"]
[null,"Helicopter Coordinator",null,null,null,null,null,null,"Take-Off & Landing Coordinator"]
[null,"Helibase Manager",null,null,null,null,null,null,"Air Guard"]
[null,"10. Helicopters (use additional sheets as necessary):"]
[null,"FAA N#",null,"Category/Kind/Type",null,"Make/Model",null,null,"Base",null,null,"Available",null,null,"Start",null,"Remarks"]
[]
[]
[]
[]
[]
[]
[]
[null,"11. Prepared by:             ",null,"Name:",null,null,null,null,"Position/Title:",null,null,null,null,"Signature:"]
[null,"ICS 220, Page 1",null,null,null,null,null,"Date/Time:   "]
[null,"Air Operations Summary (ICS 220)"]
[null,"1. Incident Name:",null,null,null,null,"2. Operational Period:",null,null,null,null,null,null,null,"3. Sunrise:",null,"Sunset: "]
[null,{"$f":"B3","v":"Proposed NIMS Update"},null,null,null,null,"Date From:     ",{"$f":"H3","v":"2016-04-11"},null,"Date To:",{"$f":"K3","v":"2016-04-11"},null,null,null,{"$f":"O3","v":"00:00:00"},null,{"$f":"Q3","v":"00:00:00"}]
[null,null,null,null,null,null,"Time From:     ",{"$f":"H4","v":"06:00:00"},null,"Time To:",{"$f":"K4","v":"06:00:00"}]
[null,"12. Task/Mission/Assignment (category/kind/type and function includes:  air tactical, reconnaissance, personnel transport, search and rescue, etc.):"]
[null,"Category/Kind/Type               ",null,null,"Name of Personnel or Cargo (if applicable)                                             ",null,null,null,null,null,null,null,"Mission         ",null,"Fly From",null,"Fly To"]
[null,"and Function",null,null,"or Instructions for Tactical Aircraft",null,null,null,null,null,null,null,"Start"]
[]
[]
[]
[]
[]
[]
[]
[]
[]
[]
[]
[]
[]
[]
[]
[]
[]
[]
[]
[]
[]
[]
[]
[null,"11. Prepared by:             ",null,"Name:",{"$f":"E27","v":0},null,null,null,"Position/Title:",null,{"$f":"K27","v":0},null,null,"Signature:"]
[null,"ICS 220, Page 2",null,null,null,null,null,"Date/Time:   "]

{"sheet":"220Inst","index":33,"n_rows":68,"n_cols":3,"rows_kept":68,"cut":false,"hidden":true,"merged":[[15,0,17,0],[15,2,17,2],[20,0,22,0],[20,2,22,2],[4,0,4,2],[6,0,6,2],[8,0,8,2],[49,0,52,0],[46,0,48,0],[36,0,45,0],[23,0,25,0],[23,2,25,2],[26,0,33,0],[26,2,28,2]]}
[]
["ICS 220"]
["Air Operations Summary"]
[]
["Purpose.  The Air Operations Summary (ICS 220) provides the Air Operations Branch with the number, type, location, and specific assignments of helicopters and air resources."]
[]
["Preparation.  The ICS 220 is completed by the Operations Section Chief or the Air Operations Branch Director during each Planning Meeting.  General air resources assignment information is obtained from the Operational Planning Worksheet (ICS 215), which also is completed during each Planning Meeting.  Specific designators of the air resources assigned to the incident are provided by the Air and Fixed-Wing Support Groups.  If aviation assets would be utilized for rescue or are referenced on the Medical Plan (ICS 206), coordinate with the Medical Unit Leader and indicate on the ICS 206."]
[]
["Distribution.  After the ICS 220 is completed by Air Operations personnel, the form is given to the Air Support Group Supervisor and Fixed-Wing Coordinator personnel.  These personnel complete the form by indicating the designators of the helicopters and fixed-wing aircraft assigned missions during the specified operational period.  This information is provided to Air Operations personnel who, in turn, give the information to the Resources Unit."]
[]
["Notes:"]
["·       If additional pages are needed for any form page, use a blank ICS 220 and repaginate as needed."]
[]
["Block Number","Block Title","Instructions"]
[1,"Incident Name","Enter the name assigned to the incident."]
[2,"Operational Period","Enter the start date (month/day/year) and time (using the 24-hour clock) and end date and time for the operational period to which the form applies."]
[null,"·       Date and Time From"]
[null,"·       Date and Time To"]
[3,"Sunrise/Sunset","Enter the sunrise and sunset times."]
[4,"Remarks (safety notes, hazards, air operations special equipment, etc.)","Enter special instructions or information, including safety notes, hazards, and priorities for Air Operations personnel. "]
[5,"Ready Alert Aircraft","Identify ready alert aircraft that will be used as Medivac for incident assigned personnel and indicate on the Medical Plan (ICS 206).  Identify aircraft to be used for new incidents within the area or new incident(s) within an incident."]
[null,"·       Medivac"]
[null,"·       New Incident"]
[6,"Temporary Flight Restriction Number","Enter Temporary Flight Restriction Number, altitude (from the center point), and center point (latitude and longitude).  This number is provided by the Federal Aviation Administration (FAA) or is the order request number for the Temporary Flight Restriction."]
[null,"·       Altitude"]
[null,"·       Center Point"]
[7,"Personnel","Enter the name and phone number of the individuals in Air Operations."]
[null,"·       Name"]
[null,"·       Phone Number"]
[null,"Air Operations Branch Director"]
[null,"Air Support Group Supervisor"]
[null,"Air Tactical Group Supervisor"]
[null,"Helicopter Coordinator"]
[null,"Helibase Manager "]
[]
["Block Number","Block Title","Instructions"]
[8,"Frequencies","Enter primary air/air, air/ground (if applicable), command, deck coordinator, take-off and landing coordinator, and other radio frequencies to be used during the incident."]
[null,"·       AM"]
[null,"·       FM"]
[null,"Air/Air Fixed-Wing"]
[null,"Air/Air Rotary-Wing – Flight Following"]
[null,"Air/Ground"]
[null,"Command"]
[null,"Deck Coordinator"]
[null,"Take-Off & Landing Coordinator"]
[null,"Air Guard"]
[9,"Fixed-Wing (category/kind/type, make/model, N#, base)"]
[null,"Air Tactical Group Supervisor Aircraft"]
[null,"Other Fixed-Wing Aircraft"]
[10,"Helicopters"]
[null,"FAA N#","Enter the FAA N#."]
[null,"Category/Kind/Type"]
[null,"Make/Model"]
[null,"Base"]
[null,"Available"]
[null,"Start","Enter the time the aircraft becomes operational."]
[null,"Remarks"]
[11,"Prepared by","Enter the name, ICS position, and signature of the person preparing the form.  Enter date (month/day/year) and time prepared (24-hour clock).  "]
[null,"·       Name"]
[null,"·       Position/Title"]
[null,"·       Signature"]
[null,"·       Date/Time"]
[12,"Task/Mission/Assignment (category/kind/type and function includes:  air tactical, reconnaissance, personnel transport, search and rescue, etc.)"]
[null,"Category/Kind/Type and Function"]
[null,"Name of Personnel or Cargo (if applicable) or Instructions for Tactical Aircraft"]
[null,"Mission Start"]
[null,"Fly From"]
[null,"Fly To"]

{"sheet":"221","index":34,"n_rows":45,"n_cols":10,"rows_kept":45,"cut":false,"hidden":false,"merged":[[10,2,10,3],[11,2,11,3],[12,4,12,6],[12,7,12,8],[8,4,8,6],[9,4,9,6],[9,2,9,3],[33,1,33,10],[10,9,10,10],[18,2,18,3],[19,2,19,3],[19,4,19,6],[26,1,26,10],[22,1,22,10],[23,2,23,3],[24,2,24,3],[23,7,23,8],[24,9,24,10],[23,4,23,6],[24,4,24,6],[25,4,25,6],[19,7,19,8],[19,9,19,10],[20,7,20,8],[7,1,7,10],[11,9,11,10],[12,9,12,10],[12,2,12,3],[10,4,10,6],[35,1,35,3],[35,7,35,8],[35,9,35,10],[35,4,35,6],[34,1,34,6],[34,7,34,10],[14,9,14,10],[16,1,16,10],[14,2,14,3],[15,1,15,10],[14,7,14,8],[14,4,14,6],[17,2,17,3],[17,7,17,8],[18,7,18,8],[18,9,18,10],[17,4,17,6],[18,4,18,6],[17,9,17,10],[0,1,0,10],[3,1,3,3],[1,6,1,10],[3,8,3,10],[3,5,3,7],[2,1,2,5],[2,6,2,10],[1,1,1,5],[13,9,13,10],[13,2,13,3],[13,7,13,8],[13,4,13,6],[4,5,4,7],[8,2,8,3],[4,8,4,10],[8,7,8,8],[9,7,9,8],[10,7,10,8],[8,9,8,10],[9,9,9,10],[5,1,5,10],[6,1,6,10],[11,4,11,6],[11,7,11,8],[25,7,25,8],[25,9,25,10],[20,9,20,10],[21,1,21,10],[25,2,25,3],[20,2,20,3],[20,4,20,6],[23,9,23,10],[24,7,24,8],[28,2,28,3],[29,2,29,3],[27,1,27,10],[28,9,28,10],[29,9,29,10],[28,4,28,6],[28,7,28,8],[29,4,29,6],[29,7,29,8],[41,1,41,2],[41,9,41,10],[41,7,41,8],[39,4,39,6],[41,3,41,6],[40,1,40,10],[39,1,39,3],[39,9,39,10],[39,7,39,8],[38,1,38,3],[36,1,36,3],[37,1,37,3],[36,4,36,6],[36,7,36,8],[36,9,36,10],[37,4,37,6],[38,4,38,6],[37,9,37,10],[37,7,37,8],[38,7,38,8],[38,9,38,10],[32,1,32,10],[30,9,30,10],[31,4,31,6],[31,7,31,8],[31,9,31,10],[30,2,30,3],[31,2,31,3],[30,4,30,6],[30,7,30,8],[43,1,43,2],[43,3,43,4],[44,2,44,4],[42,3,42,6],[42,1,42,2],[44,6,44,10],[43,8,43,10],[42,7,42,8],[42,9,42,10]]}
[null,"Demobilization Check-Out (ICS 221)"]
[null,"1. Incident Name:",null,null,null,null,"2. Incident Number:"]
[null,{"$f":"Cover!B5","v":"Proposed NIMS Update"},null,null,null,null,{"$f":"'209'!U2","v":"N/A"}]
[null,"3. Planned Release Date/Time:",null,null,null,"4. Resource or Personnel Released:",null,null,"5. Order Request Number:"]
[null,"Date:     ",null,"Time:"]
[null,"6. Resource or Personnel:"]
[null,"You and your resources are in the process of being released.  Resources are not released until the checked boxes below have been signed off by the appropriate overhead and the Demobilization Unit Leader (or Planning Section representative)."]
[null,"Logistics Section"]
[null,null,"Unit/Manager",null,"Remarks",null,null,"Name ",null,"Signature"]
[null,null,"Supply Unit"]
[null,null,"Communications Unit"]
[null,null,"Facilities Unit"]
[null,null,"Ground Support Unit"]
[null,null,"Security Manager"]
[]
[]
[null,"Finance/Administration Section"]
[null,null,"Unit/Leader",null,"Remarks",null,null,"Name ",null,"Signature"]
[null,null,"Time Unit"]
[]
[]
[]
[null,"Other Section/STAFF"]
[null,null,"Unit/Other",null,"Remarks",null,null,"Name ",null,"Signature"]
[]
[]
[]
[null,"Planning Section"]
[null,null,"Unit/Leader",null,"Remarks",null,null,"Name ",null,"Signature"]
[]
[null,null,"Documentation Leader"]
[null,null,"Demobilization Leader"]
[null,"7. Remarks:"]
[]
[null,"8. Travel Information:",null,null,null,null,null,"Room Overnight:     Yes       No"]
[null,"Estimated Time of Departure:",null,null,null,null,null,"Actual Release Date/Time:   "]
[null,"Destination:   ",null,null,null,null,null,"Estimated Time of Arrival:   "]
[null,"Travel Method:   ",null,null,null,null,null,"Contact Information While Traveling:   "]
[null,"Manifest:      Yes        No",null,null,null,null,null,"Area/Agency/Region Notified:  "]
[null,"Number:   "]
[null,"9.  Reassignment Information:         Yes          No"]
[null,"Incident Name:   ",null,null,null,null,null,"Incident Number:   "]
[null,"Location:   ",null,null,null,null,null,"Order Request Number:   "]
[null,"10. Prepared by:          ",null,null,null,"Position/Title: ",null,"Signature:"]
[null,"ICS 221",null,null,null,"Date / Time"]

{"sheet":"221Inst","index":35,"n_rows":65,"n_cols":3,"rows_kept":65,"cut":false,"hidden":true,"merged":[[4,0,4,2],[6,0,6,2],[8,0,8,2],[20,0,31,0],[20,2,25,2],[43,0,53,0],[54,0,59,0],[54,2,55,2],[60,0,64,0],[60,2,64,2],[51,2,52,2]]}
[]
["ICS 221"]
["Demobilization Check-Out"]
[]
["Purpose.  The Demobilization Check-Out (ICS 221) ensures that resources checking out of the incident have completed all appropriate incident business, and provides the Planning Section information on resources released from the incident.  Demobilization is a planned process and this form assists with that planning."]
[]
["Preparation.  The ICS 221 is initiated by the Planning Section, or a Demobilization Unit Leader if designated.  The Demobilization Unit Leader completes the top portion of the form and checks the appropriate boxes in Block 6 that may need attention after the Resources Unit Leader has given written notification that the resource is no longer needed.  The individual resource will have the appropriate overhead personnel sign off on any checked box(es) in Block 6 prior to release from the incident."]
[]
["Distribution.  After completion, the ICS 221 is returned to the Demobilization Unit Leader or the Planning Section.  All completed original forms must be given to the Documentation Unit.  Personnel may request to retain a copy of the ICS 221."]
[]
["Notes:"]
["·       Members are not released until form is complete when all of the items checked in Block 6 have been signed off."]
["·       If additional pages are needed for any form page, use a blank ICS 221 and repaginate as needed."]
[]
["Block Number","Block Title","Instructions"]
[1,"Incident Name","Enter the name assigned to the incident."]
[2,"Incident Number","Enter the number assigned to the incident."]
[3,"Planned Release Date/Time","Enter the date (month/day/year) and time (using the 24-hour clock) of the planned release from the incident."]
[4,"Resource or Personnel Released","Enter name of the individual or resource being released. "]
[5,"Order Request Number","Enter order request number (or agency demobilization number) of the individual or resource being released. "]
[6,"Resource or Personnel","Resources are not released until the checked boxes below have been signed off by the appropriate overhead.  Blank boxes are provided for any additional unit requirements as needed (e.g., Safety Officer, Agency Representative, etc.).  "]
[null,"You and your resources are in the process of being released.  Resources are not released until the checked boxes below have been signed off by the appropriate overhead and the Demobilization Unit Leader (or Planning Section representative)."]
[null,"·       Unit/Leader/Manager/Other"]
[null,"·       Remarks"]
[null,"·       Name"]
[null,"·       Signature"]
[null,"Logistics Section","The Demobilization Unit Leader will enter an \"X\" in the box to the left of those Units requiring the resource to check out.  "]
[null,"c  Supply Unit","Identified Unit Leaders or other overhead are to sign the appropriate line to indicate release."]
[null,"c  Communications Unit"]
[null,"c  Facilities Unit"]
[null,"c  Ground Support Unit"]
[null,"c  Security Manager"]
[]
[]
["Block Number","Block Title","Instructions"]
[6,"Finance/Administration Section","The Demobilization Unit Leader will enter an \"X\" in the box to the left of those Units requiring the resource to check out.  "]
["(continued)","c  Time Unit","Identified Unit Leaders or other overhead are to sign the appropriate line to indicate release."]
[null,"Other Section/Staff","The Demobilization Unit Leader will enter an \"X\" in the box to the left of those Units requiring the resource to check out.    "]
[null,"c  ","Identified Unit Leaders or other overhead are to sign the appropriate line to indicate release."]
[null,"Planning Section","The Demobilization Unit Leader will enter an \"X\" in the box to the left of those Units requiring the resource to check out.  "]
[null,"c  Documentation Leader","Identified Unit Leaders or other overhead are to sign the appropriate line to indicate release."]
[null,"c  Demobilization Leader"]
[7,"Remarks","Enter any additional information pertaining to demobilization or release (e.g., transportation needed, destination, etc.).  This section may also be used to indicate if a performance rating has been completed as required by the discipline or jurisdiction."]
[8,"Travel Information","Enter the following travel information:"]
[null,"Room Overnight","Use this section to enter whether or not the resource or personnel will be staying in a hotel overnight prior to returning home base and/or unit."]
[null,"Estimated Time of Departure","Use this section to enter the resource’s or personnel’s estimated time of departure (using the 24-hour clock)."]
[null,"Actual Release Date/Time","Use this section to enter the resource’s or personnel’s actual release date (month/day/year) and time (using the 24-hour clock)."]
[null,"Destination","Use this section to enter the resource’s or personnel’s destination."]
[null,"Estimated Time of Arrival","Use this section to enter the resource’s or personnel’s estimated time of arrival (using the 24-hour clock) at the destination."]
[null,"Travel Method","Use this section to enter the resource’s or personnel’s travel method (e.g., POV, air, etc.)."]
[null,"Contact Information While Traveling","Use this section to enter the resource’s or personnel’s contact information while traveling (e.g., cell phone, radio frequency, etc.)."]
[null,"Manifest c Yes  c No","Use this section to enter whether or not the resource or personnel has a manifest.  If they do, indicate the manifest number."]
[null,"Number"]
[null,"Area/Agency/Region Notified","Use this section to enter the area, agency, and/or region that was notified of the resource’s travel.  List the name (first initial and last name) of the individual notified and the date (month/day/year) he or she was notified."]
[9,"Reassignment Information","Enter whether or not the resource or personnel was reassigned to another incident.  If the resource or personnel was reassigned, complete the section below."]
[null,"c Yes  c No"]
[null,"Incident Name","Use this section to enter the name of the new incident to which the resource was reassigned."]
[null,"Incident Number","Use this section to enter the number of the new incident to which the resource was reassigned."]
[null,"Location","Use this section to enter the location (city and State) of the new incident to which the resource was reassigned."]
[null,"Order Request Number","Use this section to enter the new order request number assigned to the resource or personnel."]
[10,"Prepared by","Enter the name, ICS position, and signature of the person preparing the form.  Enter date (month/day/year) and time prepared (using the 24-hour clock)."]
[null,"·       Name"]
[null,"·       Position/Title"]
[null,"·       Signature"]
[null,"·       Date/Time"]

{"sheet":"225","index":36,"n_rows":44,"n_cols":11,"rows_kept":44,"cut":false,"hidden":false,"merged":[[7,1,7,12],[8,3,8,5],[8,7,8,8],[8,10,8,12],[5,8,5,9],[6,8,6,9],[5,10,6,12],[4,1,6,3],[9,3,9,5],[9,7,9,8],[9,10,9,12],[10,3,10,5],[10,7,10,8],[10,10,10,12],[11,3,11,5],[11,7,11,8],[11,10,11,12],[12,3,12,5],[12,7,12,8],[12,10,12,12],[15,10,15,12],[16,3,16,5],[16,7,16,8],[16,10,16,12],[13,3,13,5],[13,7,13,8],[13,10,13,12],[14,3,14,5],[14,7,14,8],[14,10,14,12],[43,9,43,12],[43,1,43,7],[19,3,19,5],[19,7,19,8],[19,10,19,12],[20,3,20,5],[20,7,20,8],[20,10,20,12],[37,3,37,5],[37,7,37,8],[38,1,38,12],[39,1,39,12],[35,3,35,5],[36,3,36,5],[35,7,35,8],[36,7,36,8],[37,10,37,12],[35,10,35,12],[36,10,36,12],[32,7,32,8],[33,3,33,5],[34,3,34,5],[33,7,33,8],[34,7,34,8],[30,3,30,5],[23,10,23,12],[25,3,25,5],[26,3,26,5],[24,10,24,12],[25,10,25,12],[26,10,26,12],[24,3,24,5],[23,3,23,5],[23,7,23,8],[30,10,30,12],[30,7,30,8],[0,1,0,12],[2,10,2,12],[2,5,2,9],[4,10,4,12],[4,8,4,9],[3,1,3,7],[3,8,3,12],[4,4,4,7],[5,4,5,7],[1,1,1,12],[2,1,2,4],[17,3,17,5],[17,7,17,8],[17,10,17,12],[18,3,18,5],[18,7,18,8],[18,10,18,12],[15,3,15,5],[15,7,15,8],[29,10,29,12],[21,1,21,4],[21,5,21,9],[21,10,21,12],[22,1,22,12],[27,10,27,12],[28,10,28,12],[24,7,24,8],[25,7,25,8],[26,7,26,8],[27,7,27,8],[28,7,28,8],[29,7,29,8],[27,3,27,5],[28,3,28,5],[29,3,29,5],[42,11,42,12],[40,9,40,12],[41,9,41,12],[40,2,40,7],[41,2,41,7],[42,2,42,7],[33,10,33,12],[34,10,34,12],[31,7,31,8],[31,3,31,5],[32,3,32,5],[31,10,31,12],[32,10,32,12]]}
[null,"INCIDENT PERSONNEL PERFORMANCE RATING (ICS 225)"]
[null,"THIS RATING IS TO BE USED ONLY FOR DETERMINING AN INDIVIDUAL’S PERFORMANCE ON AN INCIDENT/EVENT"]
[null,"1. Name:",null,null,null,"2. Incident Name:",null,null,null,null,"3. Incident Number:"]
[null,"4. Home Unit Name and Address:",null,null,null,null,null,null,"5. Incident Agency and Address:"]
[null,"6. Position Held on Incident:",null,null,"7. Date(s) of Assignment:",null,null,null,"8. Incident Complexity Level:",null,"9. Incident Definition: "]
[]
[null,null,null,null,"From: ",null,"To:",null,"c 1 c 2 c 3 c 4 c  5"]
[null,"10. Evaluation"]
[null,"Rating Factors","N/A","1 – Unacceptable",null,null,2,"3 – Met Standards",null,4,"5 – Exceeded Expectations"]
[null,"11. Knowledge of the Job/ Professional Competence:  Ability to acquire, apply, and share technical and administrative knowledge and skills associated with description of duties. (Includes operational aspects such as marine safety, seamanship, airmanship, SAR, etc., as appropriate.)",null,"Questionable competence and credibility. Operational or specialty expertise inadequate or lacking in key areas. Made little effort to grow professionally. Used knowledge as power against others or bluffed rather than acknowledging ignorance. Effectiveness reduced due to limited knowledge of own organizational role and customer needs. ",null,null,null,"Competent and credible authority on specialty or operational issues. Acquired and applied excellent operational or specialty expertise for assigned duties. Showed professional growth through education, training, and professional reading. Shared knowledge and information with others clearly and simply. Understood own organizational role and customer needs.",null,null,"Superior expertise; advice and actions showed great breadth and depth of knowledge. Remarkable grasp of complex issues, concepts, and situations. Rapidly developed professional growth beyond expectations. Vigorously conveyed knowledge, directly resulting in increased workplace productivity. Insightful knowledge of own role, customer needs, and value of work."]
[null,null,"c","c",null,null,"c","c",null,"c","c"]
[null,"12. Ability To Obtain Performance/Results:  Quality, quantity, timeliness, and impact of work.",null,"Routine tasks accomplished with difficulty. Results often late or of poor quality. Work had a negative impact on department or unit. Maintained the status quo despite opportunities to improve.",null,null,null,"Got the job done in all routine situations and in many unusual ones. Work was timely and of high quality; required same of subordinates. Results had a positive impact on IMT. Continuously improved services and organizational effectiveness. ",null,null,"Maintained optimal balance among quality, quantity, and timeliness of work. Quality of own and subordinates' work surpassed expectations. Results had a significant positive impact on the IMT. Established clearly effective systems of continuous improvement."]
[null,null,"c","c",null,null,"c","c",null,"c","c"]
[null,"13. Planning/ Preparedness:  Ability to anticipate, determine goals, identify relevant information, set priorities and deadlines, and create a shared vision of the Incident Management Team (IMT).",null,"Got caught by the unexpected; appeared to be controlled by events. Set vague or unrealistic goals. Used unreasonable criteria to set priorities and deadlines. Rarely had plan of action. Failed to focus on relevant information.",null,null,null,"Consistently prepared. Set high but realistic goals. Used sound criteria to set priorities and deadlines. Used quality tools and processes to develop action plans. Identified key information. Kept supervisors and stakeholders informed.",null,null,"Exceptional preparation. Always looked beyond immediate events or problems. Skillfully balanced competing demands. Developed strategies with contingency plans. Assessed all aspects of problems, including underlying issues and impact."]
[null,null,"c","c",null,null,"c","c",null,"c","c"]
[null,"14. Using Resources:  Ability to manage time, materials, information, money, and people (i.e., all IMT components as well as external publics).",null,"Concentrated on unproductive activities or often overlooked critical demands. Failed to use people productively. Did not follow up. Mismanaged information, money, or time. Used ineffective tools or left subordinates without means to accomplish tasks. Employed wasteful methods.",null,null,null,"Effectively managed a variety of activities with available resources. Delegated, empowered, and followed up. Skilled time manager, budgeted own and subordinates' time productively. Ensured subordinates had adequate tools, materials, time, and direction. Cost conscious, sought ways to cut waste. ",null,null,"Unusually skilled at bringing scarce resources to bear on the most critical of competing demands. Optimized productivity through effective delegation, empowerment, and follow-up control. Found ways to systematically reduce cost, eliminate waste, and improve efficiency."]
[null,null,"c","c",null,null,"c","c",null,"c","c"]
[null,"15. Adaptability/Attitude:  Ability to maintain a positive attitude and modify work methods and priorities in response to new information, changing conditions, political realities, or unexpected obstacles.",null,"Unable to gauge effectiveness of work, recognize political realities, or make adjustments when needed. Maintained a poor outlook. Overlooked or screened out new information. Ineffective in ambiguous, complex, or pressured situations.",null,null,null,"Receptive to change, new information, and technology. Effectively used benchmarks to improve performance and service. Monitored progress and changed course as required. Maintained a positive approach. Effectively dealt with pressure and ambiguity. Facilitated smooth transitions. Adjusted direction to accommodate political realities. ",null,null,"Rapidly assessed and confidently adjusted to changing conditions, political realities, new information, and technology. Very skilled at using and responding to measurement indicators. Championed organizational improvements. Effectively dealt with extremely complex situations. Turned pressure and ambiguity into constructive forces for change."]
[null,null,"c","c",null,null,"c","c",null,"c","c"]
[null,"16. Communication Skills:  Ability to speak effectively and listen to understand. Ability to express facts and ideas clearly and convincingly.",null,"Unable to effectively articulate ideas and facts; lacked preparation, confidence, or logic. Used inappropriate language or rambled. Nervous or distracting mannerisms detracted from message. Failed to listen carefully or was too argumentative. Written material frequently unclear, verbose, or poorly organized. Seldom proofread.",null,null,null,"Effectively expressed ideas and facts in individual and group situations; nonverbal actions consistent with spoken message. Communicated to people at all levels to ensure understanding. Listened carefully for intended message as well as spoken words. Written material clear, concise, and logically organized. Proofread conscientiously. ",null,null,"Clearly articulated and promoted ideas before a wide range of audiences; accomplished speaker in both formal and extemporaneous situations. Adept at presenting complex or sensitive issues. Active listener; remarkable ability to listen with open mind and identify key issues. Clearly and persuasively expressed complex or controversial material, directly contributing to stated objectives."]
[null,null,"c","c",null,null,"c","c",null,"c","c"]
[null,"1. Name:",null,null,null,"2. Incident Name:",null,null,null,null,"3. Incident Number:"]
[null,"10. Evaluation"]
[null,"Rating Factors","N/A","1 – Unacceptable",null,null,2,"3 – Met Standards",null,4,"5 – Exceeded Expectations"]
[null,"17. Ability To Work on a Team:  Ability to manage, lead and participate in teams, encourage cooperation, and develop esprit de corps.",null,"Used teams ineffectively or at wrong times. Conflicts mismanaged or often left unresolved, resulting in decreased team effectiveness. Excluded team members from vital information. Stifled group discussions or did not contribute productively. Inhibited cross functional cooperation to the detriment of unit or service goals.",null,null,null,"Skillfully used teams to increase unit effectiveness, quality, and service. Resolved or managed group conflict, enhanced cooperation, and involved team members in decision process. Valued team participation. Effectively negotiated work across functional boundaries to enhance support of broader mutual goals. ",null,null,"Insightful use of teams raised unit productivity beyond expectations. Inspired high level of esprit de corps, even in difficult situations. Major contributor to team effort. Established relationships and networks across a broad range of people and groups, raising accomplishments of mutual goals to a remarkable level."]
[null,null,"c",null,null,null,"c",null,null,"c"]
[null,"18. Consideration for Personnel/Team Welfare:  Ability to consider and respond to others’ personal needs, capabilities, and achievements; support for and application of worklife concepts and skills.",null,"Seldom recognized or responded to needs of people; left outside resources untapped despite apparent need. Ignorance of individuals’ capabilities increased chance of failure. Seldom recognized or rewarded deserving subordinates or other IMT members.",null,null,null,"Cared for people. Recognized and responded to their needs; referred to outside resources as appropriate. Considered individuals' capabilities to maximize opportunities for success. Consistently recognized and rewarded deserving subordinates or other IMT members. ",null,null,"Always accessible. Enhanced overall quality of life. Actively contributed to achieving balance among IMT requirements and professional and personal responsibilities. Strong advocate for subordinates; ensured appropriate and timely recognition, both formal and informal."]
[null,null,"c",null,null,null,"c",null,null,"c"]
[null,"19. Directing Others:  Ability to influence or direct others in accomplishing tasks or missions.",null,"Showed difficulty in directing or influencing others. Low or unclear work standards reduced productivity. Failed to hold subordinates accountable for shoddy work or irresponsible actions. Unwilling to delegate authority to increase efficiency of task accomplishment.",null,null,null,"A leader who earned others' support and commitment. Set high work standards; clearly articulated job requirements, expectations, and measurement criteria; held subordinates accountable. When appropriate, delegated authority to those directly responsible for the task.",null,null,"An inspirational leader who motivated others to achieve results not normally attainable. Won people over rather than imposing will. Clearly articulated vision; empowered subordinates to set goals and objectives to accomplish tasks. Modified leadership style to best meet challenging situations."]
[null,null,"c",null,null,null,"c",null,null,"c"]
[null,"20. Judgment/Decisions Under Stress:  Ability to make sound decisions and provide valid recommendations by using facts, experience, political acumen, common sense, risk assessment, and ",null,"Decisions often displayed poor analysis. Failed to make necessary decisions, or jumped to conclusions without considering facts, alternatives, and impact. Did not effectively weigh risk, cost, and time considerations. Unconcerned with political drivers on organization.",null,null,null,"Demonstrated analytical thought and common sense in making decisions. Used facts, data, and experience, and considered the impact of alternatives and political realities. Weighed risk, cost, and time considerations. Made sound decisions promptly with the best available information.",null,null,"Combined keen analytical thought, an understanding of political processes, and insight to make appropriate decisions. Focused on the key issues and the most relevant information. Did the right thing at the right time. Actions indicated awareness of impact of decisions on others. Not afraid to take reasonable risks to achieve positive results. "]
[null,"analytical thought.","c",null,null,null,"c",null,null,"c"]
[null,"21. Initiative:  Ability to originate and act on new ideas, pursue opportunities to learn and develop, and seek responsibility without guidance and supervision. ",null,"Postponed needed action. Implemented or supported improvements only when directed to do so. Showed little interest in career development. Feasible improvements in methods, services, or products went unexplored.",null,null,null,"Championed improvement through new ideas, methods, and practices. Anticipated problems and took prompt action to avoid or resolve them. Pursued productivity gains and enhanced mission performance by applying new ideas and methods. ",null,null,"Aggressively sought out additional responsibility. A self-learner. Made worthwhile ideas and practices work when others might have given up. Extremely innovative. Optimized use of new ideas and methods to improve work processes and decisionmaking. "]
[null,null,"c",null,null,null,"c",null,null,"c"]
[null,"22. Physical Ability for the Job:  Ability to invest in the IMT’s future by caring for the physical health and emotional well-being of self and others.",null,"Failed to meet minimum standards of sobriety. Tolerated or condoned others' alcohol abuse. Seldom considered subordinates' health and well-being. Unwilling or unable to recognize and manage stress despite apparent need.",null,null,null,"Committed to health and well-being of self and subordinates. Enhanced personal performance through activities supporting physical and emotional well-being. Recognized and managed stress effectively.",null,null,"Remarkable vitality, enthusiasm, alertness, and energy. Consistently contributed at high levels of activity. Optimized personal performance through involvement in activities that supported physical and emotional well-being. Monitored and helped others deal with stress and enhance health and well-being. "]
[null,null,"c",null,null,null,"c",null,null,"c"]
[null,"23. Adherence to Safety:  Ability to invest in the IMT’s future by caring for the ",null,"Failed to adequately identify and protect personnel from safety hazards.",null,null,null,"Ensured that safe operating procedures were followed.",null,null,"Demonstrated a significant commitment toward safety of personnel."]
[null,"safety of self and others.","c",null,null,null,"c",null,null,"c"]
[null,"24. Remarks: "]
[null,"25. Rated Individual (This rating has been discussed with me):"]
[null,"Signature:       ",null,null,null,null,null,null,"Date/Time:"]
[null,"26. Rated by:  Name:       ",null,null,null,null,null,null,"Signature:"]
[null,"Home Unit:       ",null,null,null,null,null,null,"Position Held on This Incident:"]
[null,"ICS 225",null,null,null,null,null,null,"Date/Time:"]

{"sheet":"225Inst","index":37,"n_rows":68,"n_cols":3,"rows_kept":68,"cut":false,"hidden":true,"merged":[[57,0,67,0],[57,2,67,2],[53,0,56,0],[53,2,56,2],[4,0,4,2],[6,0,6,2],[8,0,8,2],[31,0,36,0],[37,1,38,1],[37,2,38,2],[20,0,23,0],[20,2,23,2],[24,0,29,0],[24,2,29,2]]}
[]
["ICS 225"]
["Incident Personnel Performance Rating"]
[]
["Purpose.  The Incident Personnel Performance Rating (ICS 225) gives supervisors the opportunity to evaluate subordinates on incident assignments.  THIS RATING IS TO BE USED ONLY FOR DETERMINING AN INDIVIDUAL’S PERFORMANCE ON AN INCIDENT/EVENT."]
[]
["Preparation.  The ICS 225 is normally prepared by the supervisor for each subordinate, using the evaluation standard given in the form.  It will be delivered to the Planning Section before the rater leaves the incident.  The ICS 225 will be reviewed with the subordinate, who will sign at the bottom."]
[]
["Distribution.  The ICS 225 is provided to the Planning Section Chief before the rater leaves the incident."]
[]
["Notes:"]
["·       Use a blank ICS 225 for each individual."]
[]
["Block Number","Block Title","Instructions"]
[1,"Name","Enter the name of the individual being rated."]
[2,"Incident Name","Enter the name assigned to the incident."]
[3,"Incident Number","Enter the number assigned to the incident."]
[4,"Home Unit Address","Enter the physical address of the home unit for the individual being rated."]
[5,"Incident Agency and Address","Enter the name and address of the authority having jurisdiction for the incident."]
[6,"Position Held on Incident","Enter the position held (e.g., Resources Unit Leader, Safety Officer, etc.) by the individual being rated."]
[7,"Date(s) of Assignment","Enter the date(s) (month/day/year) the individual was assigned to the incident."]
[]
[null,"·      From"]
[null,"·      To"]
[8,"Incident Complexity Level","Indicate the level of complexity for the incident."]
[null,"c  1"]
[null,"c  2"]
[null,"c  3"]
[null,"c  4"]
[null,"c  5"]
[9,"Incident Definition","Enter a general definition of the incident in this block.  This may be a general incident category or kind description, such as “tornado,” “wildfire,”, “bridge collapse,”, “civil unrest,” “parade,” “vehicle fire,” “mass casualty,” etc."]
[10,"Evaluation","Enter “X” under the appropriate column indicating the individual’s level of performance for each duty listed."]
[null,"N/A","The duty did not apply to this incident."]
[null,"1 – Unacceptable","Does not meet minimum requirements of the individual element.  Deficiencies/Improvements needed must be identified in Remarks."]
[null,"2 – Needs Improvement","Meets some or most of the requirements of the individual element.   IDENTIFY IMPROVEMENT NEEDED IN REMARKS."]
[null,"3 – Met Standards","Satisfactory.  Employee meets all requirements of the individual element. "]
[null,"4 – Fully Successful","Employee meets all requirements and exceeds one or several of the requirements of the individual element."]
[10,"5 – Exceeded Expectations","Superior.  Employee consistently exceeds the performance requirements."]
["(continued)"]
[11,"Knowledge of the Job/ Professional Competence:","Ability to acquire, apply, and share technical and administrative knowledge and skills associated with description of duties.  (Includes operational aspects such as marine safety, seamanship, airmanship, SAR, etc., as appropriate.)"]
[12,"Ability To Obtain Performance/Results:","Quality, quantity, timeliness, and impact of work."]
[13,"Planning/Preparedness:","Ability to anticipate, determine goals, identify relevant information, set priorities and deadlines, and create a shared vision of the Incident Management Team (IMT)."]
[14,"Using Resources:","Ability to manage time, materials, information, money, and people (i.e., all IMT components as well as external publics)."]
[15,"Adaptability/Attitude:","Ability to maintain a positive attitude and modify work methods and priorities in response to new information, changing conditions, political realities, or unexpected obstacles."]
[16,"Communication Skills:","Ability to speak effectively and listen to understand.  Ability to express facts and ideas clearly and convincingly."]
[17,"Ability To Work on a Team:","Ability to manage, lead and participate in teams, encourage cooperation, and develop esprit de corps."]
[18,"Consideration for Personnel/Team Welfare:","Ability to consider and respond to others’ personal needs, capabilities, and achievements; support for and application of worklife concepts and skills."]
[19,"Directing Others:","Ability to influence or direct others in accomplishing tasks or missions."]
[20,"Judgment/Decisions Under Stress:","Ability to make sound decisions and provide valid recommendations by using facts, experience, political acumen, common sense, risk assessment, and analytical thought."]
[21,"Initiative","Ability to originate and act on new ideas, pursue opportunities to learn and develop, and seek responsibility without guidance and supervision."]
[22,"Physical Ability for the Job:","Ability to invest in the IMT’s future by caring for the physical health and emotional well-being of self and others."]
[23,"Adherence to Safety:","Ability to invest in the IMT’s future by caring for the safety of self and others."]
[24,"Remarks","Enter specific information on why the individual received performance levels."]
[25,"Rated Individual (This rating has been discussed with me)","Enter the signature of the individual being rated.  Enter the date (month/day/year) and the time (24-hour clock) signed."]
[]
[null,"·      Signature"]
[null,"·      Date/Time"]
[26,"Rated by","Enter the name, signature, home unit, and position held on the incident of the person preparing the form and rating the individual.  Enter the date (month/day/year) and the time (24-hour clock) prepared."]
[]
[null,"·       Name"]
[]
[null,"·       Signature"]
[]
[null,"·       Home Unit"]
[]
[null,"·       Position Held on This Incident"]
[]
[null,"·       Date/Time"]

{"sheet":"ResourceTracking","index":38,"n_rows":3,"n_cols":13,"rows_kept":3,"cut":false,"hidden":false,"merged":[[0,0,1,1],[0,2,0,4],[0,5,0,6],[0,7,0,11],[1,2,1,4],[1,5,1,6],[1,7,1,11]]}
["Resource Order Tracking Worksheet",null,"Incident name:",null,null,"Date:",null,"Time Started:"]
[null,null,{"$f":"Cover!B5","v":"Proposed NIMS Update"}]
["Request No.","Requested By","Approved By","Date of Request","Time Requested","Item Requested","Priority","Time Processed","ETA","Actual Arrival Time/Date","Location of Use","Estimated Time of Use","Cost"]

{"sheet":"EOCMeetings","index":39,"n_rows":19,"n_cols":13,"rows_kept":19,"cut":false,"hidden":false,"merged":[[18,12,18,13],[11,6,13,11],[12,3,12,4],[14,6,16,11],[15,3,15,4],[1,2,1,8],[5,6,7,11],[6,3,6,4],[8,6,10,11],[9,3,9,4]]}
[]
[null,null,"Operational Period Meeting Schedule"]
[null,null,"Time"]
[null,null,null,"Extended Support Meeting Schedule"]
[]
[null,null,null,"EOC Operational Briefing",null,null,"Just before the start of the work shift.  Attended by current and oncoming Support personnel that will be working during the operational period."]
[]
[]
[null,null,null,"Objectives Meeting",null,null,"Attended by the major support personnel to establish or adjust the objectives and voice concerns for the upcoming operational period."]
[]
[]
[null,null,null,"Strategy Meeting",null,null,"Attended by the EOC Manager, Support OSC, PSC, LSC, FSC to develop a Unified EOC Strategy to support on-scene operations."]
[]
[]
[null,null,null,"Planning Meeting",null,null,"Attended by EOC Management Group and Management Staff to solicit final input and commitment to the proposed plan."]
[]
[]
[]
[null,null,null,null,null,null,null,null,null,null,null,null,"Used Courtesy of David Thyne, IC Maui AHIMT3"]

{"sheet":"IAP Order","index":40,"n_rows":29,"n_cols":1,"rows_kept":29,"cut":false,"hidden":false,"merged":[]}
["Incident IAP Order"]
["1.  Cover"]
["2.  202 – Support Objectives"]
["3.  203 – Support Organizational Assignment List"]
["4.  204's – Support Assignment List"]
["5.  205 – Support Communications Plan"]
["6.  206 – Support Medical PlanSafety Message"]
["7.  Weather"]
["8.  208 - Support Safety Plan"]
["9.  H. R. Message"]
["10.  Maps"]
["11.  Traffic Plan"]
["12.  Misc. - Phone List, Press Releases, etc."]
["13.  214 – Unit Log"]
[]
["Planned Event or Conference IAP Order"]
["1.  Cover"]
["2.  202 – Support Objectives"]
["3.  203 – Support Organizational Assignment List"]
["4.  204's – Support Assignments"]
["5.  205 – Support Communications Plan"]
["6.  206 – Support Medical PlanSafety Message"]
["7.  Weather"]
["8.  208 - Support Safety Plan"]
["9.  H. R. Message"]
["10.  Facilities Map"]
["11.  Classes and Classroom Assignments"]
["12.  Misc. - Phone List, Press Releases, etc."]
["13.  214 – Unit Log"]

{"sheet":"Prob and Issues","index":41,"n_rows":1,"n_cols":2,"rows_kept":1,"cut":false,"hidden":false,"merged":[]}
["Problems and Issues","Priority"]

{"sheet":"PlanningP","index":42,"n_rows":0,"n_cols":0,"rows_kept":0,"cut":false,"hidden":false,"merged":[]}

{"sheet":"VersionInfo","index":43,"n_rows":7,"n_cols":2,"rows_kept":7,"cut":false,"hidden":false,"merged":[]}
["Version","Information"]
[null,"NOTE:  All of the instructions pages have not been modified from the original ICS instructions.  Use the Comments boxes in the cells themselves to guide you."]
["Version 1.0","This is a new ICS Forms Workbook that is designed for use in an EOC environment.  I know that it will not match exactly with anyone's needs but it should provide a starting point for those that don't already have a Support Plan Template to use.  I looked everywhere that I knew for some \"National Standard\" but was unable to find one.  This is not supposed to be a \"standard\" that you should follow, just a template that you can use to guide you.      ***As always, your input is appreciated.  ME"]
["Version 1.1","Changes in many area such as: Comments boxes, column titles, informational things."]
["Version 1.1.2","Many Updates and fixes.  Added EOC Meeting Guidance Document courtesy of David Thyne, IC of the Maui IMT3."]
["Version 1.1.3","Various corrections and updates"]
["Version 1.1.4","Added the 201 back in the workbook for those that may need initial documentation.  Updated the Meeting Schedule to match the agendas that are below it."]

{"sheet":"Tips","index":44,"n_rows":23,"n_cols":2,"rows_kept":23,"cut":false,"hidden":false,"merged":[[0,0,1,8],[10,1,11,8],[10,0,11,0],[12,0,13,0],[12,1,13,8],[3,0,4,0],[3,1,4,8],[6,1,8,8],[6,0,8,0],[18,0,19,0],[20,0,21,0],[22,0,23,0],[14,0,16,0],[18,1,19,8],[20,1,21,8],[22,1,23,8],[14,1,16,8]]}
["Tips and Instructions"]
[]
[]
["General","Macros are used for navigation only.  The completed 203 fills ot the 207 automatically and the completed 205 places the information on the bottom of the 204's."]
[]
[]
["Printing","To print an entire IAP, once you have saved your work, CTRL-click the tab for each form you wish to print, then press CTRL-P (or FILE - PRINT) and select the checkbox for \"ACTIVE SHEETS\". Note that pages will print in tab order, left to right, not the order in which you select them."]
[]
[]
[]
["Main Menu","Start by inserting your incident name, date, etc.  This information will automatically be inserted into the other forms."]
[]
[203,"Make sure that the names under the Operations Section match exactly what you enter on the 204's and the 205.  This will allow the information to populate correctly."]
[]
[204,"Do not rename the original 204 because the macro that duplicates the 204 needs the original.  Make sure that the names in box #3 match exactly what you enter on the 203 and the 205.  This will allow the information to populate correctly."]
[]
[]
[]
[205,"Make sure that the names in the ASSIGNMENT, Divisions and Groups column match exactly what you enter on the 204's and the 203.  This will allow the information to populate correctly."]
[]
[207]
[]
[209]

{"sheet":"209Inst","index":45,"n_rows":376,"n_cols":3,"rows_kept":376,"cut":false,"hidden":true,"merged":[[63,0,70,0],[63,1,65,1],[68,1,69,1],[71,0,76,0],[71,1,76,1],[45,0,50,0],[45,1,50,1],[51,0,62,0],[51,1,62,1],[89,0,90,0],[89,1,90,1],[91,0,92,0],[91,1,92,1],[78,0,82,0],[78,1,79,1],[83,0,88,0],[83,1,88,1],[101,0,101,2],[102,0,106,0],[102,1,103,1],[107,0,109,0],[107,1,108,1],[94,0,100,0],[94,1,96,1],[97,1,98,1],[99,1,100,1],[117,0,117,2],[118,0,118,2],[119,0,119,2],[120,0,120,2],[110,0,114,0],[110,1,111,1],[115,0,116,0],[115,1,116,1],[128,0,130,0],[128,1,130,1],[132,0,133,0],[132,1,133,1],[121,0,121,2],[122,0,124,0],[122,1,124,1],[125,0,127,0],[125,1,127,1],[141,0,142,0],[141,1,142,1],[143,0,146,0],[143,1,146,1],[134,0,135,0],[134,1,135,1],[136,0,138,0],[139,0,140,0],[139,1,140,1],[167,0,168,0],[167,1,168,1],[169,0,179,0],[169,1,172,1],[148,0,154,0],[148,1,154,1],[155,0,155,2],[156,0,166,0],[156,1,166,1],[212,0,222,0],[212,1,222,1],[307,1,312,1],[313,0,315,0],[313,1,315,1],[224,1,225,1],[226,1,227,1],[180,0,180,2],[181,0,202,0],[181,1,193,1],[195,1,196,1],[197,1,199,1],[200,1,201,1],[245,0,263,0],[250,1,252,1],[316,0,317,0],[316,1,317,1],[276,0,281,0],[283,0,283,2],[284,0,289,0],[284,2,289,2],[356,0,365,0],[356,1,365,1],[24,0,24,2],[26,0,26,2],[37,0,37,2],[38,0,38,2],[39,0,39,2],[42,0,42,2],[319,0,323,0],[319,1,323,1],[345,0,345,2],[346,0,355,0],[264,0,275,0],[264,1,275,1],[228,1,229,1],[230,1,231,1],[240,0,244,0],[240,1,244,1],[16,0,16,2],[18,0,18,2],[324,0,326,0],[324,1,326,1],[342,0,342,2],[327,0,336,0],[327,1,336,1],[337,0,337,2],[4,0,4,2],[6,0,6,2],[8,0,8,2],[10,0,10,2],[12,0,12,2],[14,0,14,2],[20,0,20,2],[22,0,22,2],[28,0,28,2],[30,0,30,2],[32,0,32,2],[34,0,34,2],[338,0,338,2],[290,0,301,0],[302,0,306,0],[307,0,312,0],[373,0,375,0],[373,1,375,1],[346,1,355,1],[339,0,339,2],[340,0,340,2],[341,0,341,2],[367,0,371,0],[367,1,371,1],[343,0,343,2],[344,0,344,2]]}
[]
["ICS 209"]
["Incident Status Summary"]
[]
["Purpose.  To support the needs of the incident, the Incident Status Summary (ICS 209) collects basic incident decision support information at the incident level.  It is the primary mechanism for reporting incident decision support information above the incident level to incident coordination and support organizations, including agency/organizational managers and executives.  As such, the ICS 209 contains basic information elements needed to support decisionmaking at all levels above the incident to support the incident.  Decisionmakers may include the agency having jurisdiction, but also all multiagency coordination system (MACS) elements and parties, such as cooperating and assisting agencies/organizations, dispatch centers, emergency operations centers, administrators, elected officials, and local, tribal, county, State, and Federal agencies.  Once ICS 209 information has been submitted from the incident, decisionmakers and others at all incident support and coordination points may transmit and share the information (based on its sensitivity and appropriateness) for access and use at local, regional, State, and national levels as it is needed to facilitate support. "]
[]
["Accurate and timely completion of the ICS 209 is necessary to identify appropriate resource needs, determine allocation of limited resources when multiple incidents occur, and secure additional capability when there are limited resources due to constraints of time, distance, or other factors.  The information included on the ICS 209 influences the priority of the incident, and thus its share of available resources and incident support."]
[]
["The ICS 209 is used for reporting information on significant incidents.  It is not intended for every incident, as most incidents are of short duration and do not require scarce resources, significant mutual aid, or additional support and attention. "]
[]
["The ICS 209 is designed to provide a “snapshot in time” to effectively move incident decision support information where it is needed.  It should contain the most accurate and up-to-date information available at the time it is prepared.  However, readers of the ICS 209 may have access to more up-to-date or real-time information in reference to certain information elements on the ICS 209.  Coordination among communications and information management elements within ICS and among MACS should delineate authoritative sources for more up-to-date and/or real-time information when ICS 209 information becomes outdated in a quickly evolving incident."]
[]
["Reporting Requirements.  The ICS 209 is intended to be used when an incident reaches a certain threshold where it becomes significant enough to merit special attention, require additional resource support needs, or cause media attention, increased public safety threat, etc.  Agencies or organizations may set reporting requirements and, therefore, ICS 209s should be completed according to each jurisdiction or discipline’s policies, mobilization guide, or preparedness plans.  It is recommended that consistent ICS 209 reporting parameters be adopted and used by jurisdictions or disciplines for consistency over time, documentation, efficiency, trend monitoring, incident tracking, etc."]
[]
["For example, an agency or MAC (Multiagency Coordination) Group may require the submission of an initial ICS 209 when a new incident has reached a certain predesignated level of significance, such as when a given number of resources are committed to the incident, when a new incident is not completed within a certain timeframe, or when impacts/threats to life and safety reach a given level. "]
[]
["Typically, ICS 209 forms are completed either once daily or for each operational period – in addition to the initial submission.  Jurisdictional or organizational guidance may indicate frequency of ICS 209 submission for particular definitions of incidents or for all incidents.  This specific guidance may help determine submission timelines when operational periods are extremely short (e.g., 2 hours) and it is not necessary to submit new ICS 209 forms for all operational periods.  "]
[]
["Any plans or guidelines should also indicate parameters for when it is appropriate to stop submitting ICS 209s for an incident, based upon incident activity and support levels.  "]
[]
["Preparation.  When an Incident Management Organization (such as an Incident Management Team) is in place, the Situation Unit Leader or Planning Section Chief prepares the ICS 209 at the incident.  On other incidents, the ICS 209 may be completed by a dispatcher in the local communications center, or by another staff person or manager.  This form should be completed at the incident or at the closest level to the incident."]
[]
["The ICS 209 should be completed with the best possible, currently available, and verifiable information at the time it is completed and signed.  "]
[]
["This form is designed to serve incidents impacting specific geographic areas that can easily be defined.  It also has the flexibility for use on ubiquitous events, or those events that cover extremely large areas and that may involve many jurisdictions and ICS organizations.  For these incidents, it will be useful to clarify on the form exactly which portion of the larger incident the ICS 209 is meant to address.  For example, a particular ICS 209 submitted during a statewide outbreak of mumps may be relevant only to mumps-related activities in Story County, Iowa.  This can be indicated in both the incident name, Block 1, and in the Incident Location Information section in Blocks 16–26."]
[]
["While most of the “Incident Location Information” in Blocks 16–26 is optional, the more information that can be submitted, the better.  Submission of multiple location indicators increases accuracy, improves interoperability, and increases information sharing between disparate systems.  Preparers should be certain to follow accepted protocols or standards when entering location information, and clearly label all location information.  As with other ICS 209 data, geospatial information may be widely shared and utilized, so accuracy is essential."]
[]
["If electronic data is submitted with the ICS 209, do not attach or send extremely large data files.  Incident geospatial data that is distributed with the ICS 209 should be in simple incident geospatial basics, such as the incident perimeter, point of origin, etc.  Data file sizes should be small enough to be easily transmitted through dial-up connections or other limited communications capabilities when ICS 209 information is transmitted electronically.  Any attached data should be clearly labeled as to format content and collection time, and should follow existing naming conventions and standards."]
[]
["Distribution.  ICS 209 information is meant to be completed at the level as close to the incident as possible, preferably at the incident.  Once the ICS 209 has been submitted outside the incident to a dispatch center or MACS element, it may subsequently be transmitted to various incident support and coordination entities based on the support needs and the decisions made within the MACS in which the incident occurs."]
[]
["Coordination with public information system elements and investigative/intelligence information organizations at the incident and within MACS is essential to protect information security and to ensure optimal information sharing and coordination.  There may be times in which particular ICS 209s contain sensitive information that should not be released to the public (such as information regarding active investigations, fatalities, etc.).  When this occurs, the ICS 209 (or relevant sections of it) should be labeled appropriately, and care should be taken in distributing the information within MACS.  "]
[]
["All completed and signed original ICS 209 forms MUST be given to the incident’s Documentation Unit and/or maintained as part of the official incident record. "]
[]
["Notes:"]
["·       To promote flexibility, only a limited number of ICS 209 blocks are typically required, and most of those are required only when applicable.  "]
["·       Most fields are optional, to allow responders to use the form as best fits their needs and protocols for information collection.  "]
["·       For the purposes of the ICS 209, responders are those personnel who are assigned to an incident or who are a part of the response community as defined by NIMS.  This may include critical infrastructure owners and operators, nongovernmental and nonprofit organizational personnel, and contract employees (such as caterers), depending on local/jurisdictional/discipline practices."]
["·       For additional flexibility only pages 1–3 are numbered, for two reasons:  "]
["o      Possible submission of additional pages for the Remarks Section (Block 47), and "]
["    o      Possible submission of additional copies of the fourth/last page (the “Incident Resource Commitment Summary”) to provide a more detailed resource summary."]
[]
["Block Number","Block Title","Instructions"]
["*1","Incident Name","REQUIRED BLOCK.  "]
[null,null,"·       Enter the full name assigned to the incident.  "]
[null,null,"·       Check spelling of the full incident name.  "]
[null,null,"·       For an incident that is a Complex, use the word “Complex” at the end of the incident name."]
[null,null,"·       If the name changes, explain comments in Remarks, Block 47.  "]
[null,null,"·       Do not use the same incident name for different incidents in the same calendar year.  "]
[2,"Incident Number","·       Enter the appropriate number based on current guidance.  The incident number may vary by jurisdiction and discipline.  "]
[null,null,"·       Examples include:"]
[null,null,"o      A computer-aided dispatch (CAD) number."]
[null,null,"o      An accounting number."]
[null,null,"o      A county number."]
[null,null,"o      A disaster declaration number. "]
[null,null,"o      A combination of the State, unit/agency ID, and a dispatch system number."]
[null,null,"o      A mission number."]
[null,null,"o      Any other unique number assigned to the incident and derived by means other than those above."]
[null,null,"·       Make sure the number entered is correct. "]
[null,null,"·       Do not use the same incident number for two different incidents in the same calendar year."]
[null,null,"·       Incident numbers associated with host jurisdictions or agencies and incident numbers assigned by agencies represented in Unified Command should be listed, or indicated in Remarks, Block 47."]
["*3","Report Version (check one box on left)","REQUIRED BLOCK."]
[null,null,"·       This indicates the current version of the ICS 209 form being submitted."]
[null,null,"·       If only one ICS 209 will be submitted, check BOTH “Initial” and “Final” (or check only “Final”)."]
[null,"c  Initial","Check “Initial” if this is the first ICS 209 for this incident."]
[null,"c  Update","Check “Update” if this is a subsequent report for the same incident.  These can be submitted at various time intervals (see “Reporting Requirements” above)."]
[null,"c  Final","·       Check “Final” if this is the last ICS 209 to be submitted for this incident (usually when the incident requires only minor support that can be supplied by the organization having jurisdiction)."]
[null,null,"·       Incidents may also be marked as “Final” if they become part of a new Complex (when this occurs, it can be indicated in Remarks, Block 47)."]
[null,"Report # (if used)","Use this optional field if your agency or organization requires the tracking of ICS 209 report numbers.  Agencies may also track the ICS 209 by the date/time submitted."]
["*4","Incident Commander(s) & Agency or Organization","REQUIRED BLOCK."]
[null,null,"·       Enter both the first and last name of the Incident Commander. "]
[null,null,"·       If the incident is under a Unified Command, list all Incident Commanders by first initial and last name separated by a comma, including their organization.  For example:"]
[null,null,"L. Burnett – Minneapolis FD, R. Domanski – Minneapolis PD,"]
[null,null,"C. Taylor – St. Paul PD, Y. Martin – St. Paul FD,"]
[null,null,"S. McIntyre – U.S. Army Corps, J. Hartl – NTSB"]
[5,"Incident Management Organization","Indicate the incident management organization for the incident, which may be a Type 1, 2, or 3 Incident Management Team (IMT), a Unified Command, a Unified Command with an IMT, etc.  This block should not be completed unless a recognized incident management organization is assigned to the incident."]
["*6","Incident Start Date/Time","REQUIRED."]
[null,null,"This is always the start date and time of the incident (not the report date and time or operational period)."]
[null,"Date","Enter the start date (month/day/year)."]
[null,"Time","Enter the start time (using the 24-hour clock)."]
[null,"Time Zone","Enter the time zone of the incident (e.g., EDT, PST)."]
[7,"Current Incident Size or Area Involved (use unit label – e.g., “sq mi,” “city block”)","·       Enter the appropriate incident descriptive size or area involved (acres, number of buildings, square miles, hectares, square kilometers, etc.). "]
[null,null,"·       Enter the total area involved for incident Complexes in this block, and list each sub-incident and size in Remarks (Block 47).  "]
[null,null,"·       Indicate that the size is an estimate, if a more specific figure is not available."]
[null,null,"·       Incident size may be a population figure rather than a geographic figure, depending on the incident definition and objectives."]
[null,null,"·       If the incident involves more than one jurisdiction or mixed ownership, agencies/organizations may require listing a size breakdown by organization, or including this information in Remarks (Block 47).  "]
[null,null,"·       The incident may be one part of a much larger event (refer to introductory instructions under “Preparation).  Incident size/area depends on the area actively managed within the incident objectives and incident operations, and may also be defined by a delegation of authority or letter of expectation outlining management bounds.  "]
[8,"Percent (%) Contained or Completed (circle one)","·       Enter the percent that this incident is completed or contained (e.g., 50%), with a % label."]
[null,null,"·       For example, a spill may be 65% contained, or flood response objectives may be 50% met."]
["*9","Incident Definition","REQUIRED BLOCK."]
[null,null,"Enter a general definition of the incident in this block.  This may be a general incident category or kind description, such as “tornado,” “wildfire,” “bridge collapse,” “civil unrest,” “parade,” “vehicle fire,” “mass casualty,” etc. "]
[10,"Incident Complexity Level","Identify the incident complexity level as determined by Unified/Incident Commanders, if available or used."]
["*11","For Time Period ","REQUIRED BLOCK."]
[null,null,"·       Enter the time interval for which the form applies.  This period should include all of the time since the last ICS 209 was submitted, or if it is the initial ICS 209, it should cover the time lapsed since the incident started."]
[null,null,"·       The time period may include one or more operational periods, based on agency/organizational reporting requirements."]
[null,"From Date/Time","·       Enter the start date (month/day/year)."]
[null,null,"·       Enter the start time (using the 24-hour clock)."]
[null,"To Date/Time","·       Enter the end date (month/day/year)."]
[null,null,"·       Enter the end time (using the 24-hour clock)."]
["APPROVAL & ROUTING INFORMATION"]
["*12","Prepared By","REQUIRED BLOCK."]
[null,null,"When an incident management organization is in place, this would be the Situation Unit Leader or Planning Section Chief at the incident.  On other incidents, it could be a dispatcher in the local emergency communications center, or another staff person or manager."]
[null,"Print Name","Print the name of the person preparing the form."]
[null,"ICS Position","The ICS title of the person preparing the form (e.g., “Situation Unit Leader”)."]
[null,"Date/Time Prepared","Enter the date (month/day/year) and time (using the 24-hour clock) the form was prepared.  Enter the time zone if appropriate."]
["*13","Date/Time Submitted","REQUIRED."]
[null,null,"Enter the submission date (month/day/year) and time (using the 24-hour clock)."]
[null,"Time Zone","Enter the time zone from which the ICS 209 was submitted (e.g., EDT, PST)."]
["*14","Approved By","REQUIRED."]
[null,null,"When an incident management organization is in place, this would be the Planning Section Chief or Incident Commander at the incident.  On other incidents, it could be the jurisdiction’s dispatch center manager, organizational administrator, or other manager."]
[null,"Print Name","Print the name of the person approving the form."]
[null,"ICS Position","The position of the person signing the ICS 209 should be entered (e.g., “Incident Commander”)."]
[null,"Signature","Signature of the person approving the ICS 209, typically the Incident Commander.  The original signed ICS 209 should be maintained with other incident documents."]
["*15","Primary Location, Organization, or Agency Sent To","REQUIRED BLOCK."]
[null,null,"Enter the appropriate primary location or office the ICS 209 was sent to apart from the incident.  This most likely is the entity or office that ordered the incident management organization that is managing the incident.  This may be a dispatch center or a MACS element such as an emergency operations center.  If a dispatch center or other emergency center prepared the ICS 209 for the incident, indicate where it was submitted initially."]
["INCIDENT LOCATION INFORMATION"]
["·       Much of the “Incident Location Information” in Blocks 16–26 is optional, but completing as many fields as possible increases accuracy, and improves interoperability and information sharing between disparate systems."]
["·       As with all ICS 209 information, accuracy is essential because the information may be widely distributed and used in a variety of systems.  Location and/or geospatial data may be used for maps, reports, and analysis by multiple parties outside the incident."]
["·       Be certain to follow accepted protocols, conventions, or standards where appropriate when submitting location information, and clearly label all location information."]
["·       Incident location information is usually based on the point of origin of the incident, and the majority of the area where the incident jurisdiction is."]
["*16","State","REQUIRED BLOCK WHEN APPLICABLE."]
[null,null,"·       Enter the State where the incident originated.  "]
[null,null,"·       If other States or jurisdictions are involved, enter them in Block 25 or Block 44."]
["*17","County / Parish / Borough","REQUIRED BLOCK WHEN APPLICABLE."]
[null,null,"·       Enter the county, parish, or borough where the incident originated.  "]
[null,null,"·       If other counties or jurisdictions are involved, enter them in Block 25 or Block 47. "]
["*18","City","REQUIRED BLOCK WHEN APPLICABLE."]
[null,null,"·       Enter the city where the incident originated.  "]
[null,null,"·       If other cities or jurisdictions are involved, enter them in Block 25 or Block 47."]
[19,"Unit or Other","Enter the unit, sub-unit, unit identification (ID) number or code (if used), or other information about where the incident originated.  This may be a local identifier that indicates primary incident jurisdiction or responsibility (e.g., police, fire, public works, etc.) or another type of organization.  Enter specifics in Block 25."]
["*20","Incident Jurisdiction","REQUIRED BLOCK WHEN APPLICABLE."]
[null,null,"Enter the jurisdiction where the incident originated (the entry may be general, such as Federal, city, or State, or may specifically identify agency names such as Warren County, U.S. Coast Guard, Panama City, NYPD)."]
[21,"Incident Location Ownership (if different than jurisdiction)","·       When relevant, indicate the ownership of the area where the incident originated, especially if it is different than the agency having jurisdiction."]
[null,null,"·       This may include situations where jurisdictions contract for emergency services, or where it is relevant to include ownership by private entities, such as a large industrial site."]
[22,"22. Longitude (indicate format):","·       Enter the longitude and latitude where the incident originated, if available and normally used by the authority having jurisdiction for the incident. "]
[null,null,"·       Clearly label the data, as longitude and latitude can be derived from various sources.  For example, if degrees, minutes, and seconds are used, label as “33 degrees, 45 minutes, 01 seconds.”"]
[null,"Latitude (indicate format):"]
[23,"US National Grid Reference","·       Enter the US National Grid (USNG) reference where the incident originated, if available and commonly used by the agencies/jurisdictions with primary responsibility for the incident. "]
[null,null,"·       Clearly label the data."]
[24,"Legal Description (township, section, range)","·       Enter the legal description where the incident originated, if available and commonly used by the agencies/jurisdictions with primary responsibility for the incident. "]
[null,null,"·       Clearly label the data (e.g., N 1/2 SE 1/4, SW 1/4, S24, T32N, R18E)."]
["*25","Short Location or Area Description (list all affected areas or a reference point)","REQUIRED BLOCK."]
[null,null,"·       List all affected areas as described in instructions for Blocks 16–24 above, OR summarize a general location, OR list a reference point for the incident (e.g., “the southern third of Florida,” “in ocean 20 miles west of Catalina Island, CA,” or “within a 5 mile radius of Walden, CO”). "]
[null,null,"·       This information is important for readers unfamiliar with the area (or with other location identification systems) to be able to quickly identify the general location of the incident on a map. "]
[null,null,"·       Other location information may also be listed here if needed or relevant for incident support (e.g., base meridian)."]
[26,"UTM Coordinates","Indicate Universal Transverse Mercator reference coordinates if used by the discipline or jurisdiction."]
[27,"Note any electronic geospatial data included or attached (indicate data format, content, and collection time information and labels)","·       Indicate whether and how geospatial data is included or attached."]
[null,null,"·       Utilize common and open geospatial data standards."]
[null,null,"·       WARNING:  Do not attach or send extremely large data files with the ICS 209.  Incident geospatial data that is distributed with the ICS 209 should be simple incident geospatial basics, such as the incident perimeter, origin, etc.  Data file sizes should be small enough to be easily transmitted through dial-up connections or other limited communications capabilities when ICS 209 information is transmitted electronically."]
[null,null,"·       NOTE:  Clearly indicate data content.  For example, data may be about an incident perimeter (such as a shape file), the incident origin (a point), a point and radius (such as an evacuation zone), or a line or lines (such as a pipeline)."]
[null,null,"·       NOTE:  Indicate the data format (e.g., .shp, .kml, .kmz, or .gml file) and any relevant information about projection, etc.  "]
[null,null,"·       NOTE:  Include a hyperlink or other access information if incident map data is posted online or on an FTP (file transfer protocol) site to facilitate downloading and minimize information requests."]
[null,null,"·       NOTE:  Include a point of contact for getting geospatial incident information, if included in the ICS 209 or available and supporting the incident."]
["INCIDENT SUMMARY"]
["*28","Significant Events for the Time Period Reported (summarize significant progress made, evacuations, incident growth, etc.)","REQUIRED BLOCK."]
[null,null,"·       Describe significant events that occurred during the period being reported in Block 6.  Examples include:"]
[null,null,"o      Road closures."]
[null,null,"o      Evacuations. "]
[null,null,"o      Progress made and accomplishments. "]
[null,null,"o      Incident command transitions."]
[null,null,"o      Repopulation of formerly evacuated areas and specifics."]
[null,null,"o      Containment."]
[null,null,"·       Refer to other blocks in the ICS 209 when relevant for additional information (e.g., “Details on evacuations may be found in Block 33”), or in Remarks, Block 47. "]
[null,null,"·       Be specific and detailed in reference to events.  For example, references to road closures should include road number and duration of closure (or include further detail in Block 33).  Use specific metrics if needed, such as the number of people or animals evacuated, or the amount of a material spilled and/or recovered. "]
[null,null,"·       This block may be used for a single-paragraph synopsis of overall incident status."]
[29,"Primary Materials or Hazards Involved (hazardous chemicals, fuel types, infectious agents, radiation, etc.)","·       When relevant, enter the appropriate primary materials, fuels, or other hazards involved in the incident that are leaking, burning, infecting, or otherwise influencing the incident.  "]
[null,null,"·       Examples include hazardous chemicals, wildland fuel models, biohazards, explosive materials, oil, gas, structural collapse, avalanche activity, criminal activity, etc."]
[30,"Damage Assessment Information (summarize damage and/or restriction of use or availability to residential or commercial property, natural resources, critical infrastructure and key resources, etc.) ","·       Include a short summary of damage or use/access restrictions/ limitations caused by the incident for the reporting period, and cumulatively."]
[null,null,"·       Include if needed any information on the facility status, such as operational status, if it is evacuated, etc. when needed."]
[null,null,"·       Include any critical infrastructure or key resources damaged/destroyed/ impacted by the incident, the kind of infrastructure, and the extent of damage and/or impact and any known cascading impacts."]
[null,null,"·       Refer to more specific or detailed damage assessment forms and packages when they are used and/or relevant."]
[null,"A. Structural Summary","Complete this table as needed based on the definitions for 30B–G below.  Note in table or in text block if numbers entered are estimates or are confirmed."]
[null,"B. # Threatened (72 hrs)","Enter the number of structures potentially threatened by the incident within the next 72 hours, based on currently available information."]
[null,"C. # Damaged","Enter the number of structures damaged by the incident."]
[null,"D. # Destroyed","Enter the number of structures destroyed beyond repair by the incident."]
[null,"E. Single Residences","Enter the number of single dwellings/homes/units impacted in Columns 30B–D.  Note any specifics in the text block if needed, such as type of residence (apartments, condominiums, single-family homes, etc.)."]
[null,"F. Nonresidential Commercial Properties","Enter the number of buildings or units impacted in Columns 30B–D.  This includes any primary structure used for nonresidential purposes, excluding Other Minor Structures (Block 30G).  Note any specifics regarding building or unit types in the text block.  "]
[null,"G. Other Minor Structures","Enter any miscellaneous structures impacted in Columns 30B–D not covered in 30E–F above, including any minor structures such as booths, sheds, or outbuildings."]
["ADDITIONAL INCIDENT DECISION SUPPORT INFORMATION (PAGE 2)"]
["*31","Public Status Summary","·       This section is for summary information regarding incident-related injuries, illness, and fatalities for civilians (or members of the public); see 31C–N below."]
[null,null,"·       Explain or describe the nature of any reported injuries, illness, or other activities in Life, Safety, and Health Status/Threat Remarks (Block 33)."]
[null,null,"·       Illnesses include those that may be caused through a biological event such as an epidemic or an exposure to toxic or radiological substances."]
[null,null,"·       NOTE:  Do not estimate any fatality information."]
[null,null,"·       NOTE:  Please use caution when reporting information in this section that may be on the periphery of the incident or change frequently.  This information should be reported as accurately as possible as a snapshot in time, as much of the information is subject to frequent change."]
[null,null,"·       NOTE:  Do not complete this block if the incident covered by the ICS 209 is not directly responsible for these actions (such as evacuations, sheltering, immunizations, etc.) even if they are related to the incident.  "]
[null,null,"o      Only the authority having jurisdiction should submit reports for these actions, to mitigate multiple/conflicting reports. "]
[null,null,"o      For example, if managing evacuation shelters is part of the incident operation itself, do include these numbers in Block 31J with any notes in Block 33."]
[]
[null,null,"Handling Sensitive Information"]
[null,null,"·       Release of information in this section should be carefully coordinated within the incident management organization to ensure synchronization with public information and investigative/intelligence actions."]
[null,null,"·       Thoroughly review the “Distribution” section in the introductory ICS 209 instructions for details on handling sensitive information.  Use caution when providing information in any situation involving fatalities, and verify that appropriate notifications have been made prior to release of this information.  Electronic transmission of any ICS 209 may make information available to many people and networks at once."]
[null,null,"·       Information regarding fatalities should be cleared with the Incident Commander and/or an organizational administrator prior to submission of the ICS 209.  "]
[null,"A. # This Reporting Period","Enter the total number of individuals impacted in each category for this reporting period (since the previous ICS 209 was submitted).  "]
[null,"B. Total # to Date","·       Enter the total number of individuals impacted in each category for the entire duration of the incident. "]
[null,null,"·       This is a cumulative total number that should be adjusted each reporting period."]
[null,"C. Indicate Number of Civilians (Public) Below","·       For lines 31D–M below, enter the number of civilians affected for each category."]
[null,null,"·       Indicate if numbers are estimates, for those blocks where this is an option."]
[null,null,"·       Civilians are those members of the public who are affected by the incident, but who are not included as part of the response effort through Unified Command partnerships and those organizations and agencies assisting and cooperating with response efforts."]
[null,"D. Fatalities","·       Enter the number of confirmed civilian/public fatalities."]
[null,null,"·       See information in introductory instructions (“Distribution”) and in Block 31 instructions regarding sensitive handling of fatality information."]
[null,"E. With Injuries/Illness","Enter the number of civilian/public injuries or illnesses directly related to the incident.  Injury or illness is defined by the incident or jurisdiction(s)."]
["*31","F. Trapped/In Need of Rescue","Enter the number of civilians who are trapped or in need of rescue due to the incident."]
["(continued)","G. Missing (note if estimated)","Enter the number of civilians who are missing due to the incident.  Indicate if an estimate is used."]
[null,"H. Evacuated (note if estimated)","Enter the number of civilians who are evacuated due to the incident.  These are likely to be best estimates, but indicate if they are estimated."]
[null,"I. Sheltering-in-Place (note if estimated)","Enter the number of civilians who are sheltering in place due to the incident.  Indicate if estimates are used."]
[null,"J. In Temporary Shelters (note if estimated)","Enter the number of civilians who are in temporary shelters as a direct result of the incident, noting if the number is an estimate."]
[null,"K. Have Received Mass Immunizations","Enter the number of civilians who have received mass immunizations due to the incident and/or as part of incident operations.  Do not estimate."]
[null,"L. Require Mass Immunizations (note if estimated)","Enter the number of civilians who require mass immunizations due to the incident and/or as part of incident operations.  Indicate if it is an estimate."]
[null,"M. In Quarantine","Enter the number of civilians who are in quarantine due to the incident and/or as part of incident operations.  Do not estimate."]
[null,"N. Total # Civilians (Public) Affected","Enter sum totals for Columns 31A and 31B for Rows 31D–M. "]
["*32","Responder Status Summary","·       This section is for summary information regarding incident-related injuries, illness, and fatalities for responders; see 32C–N."]
[null,null,"·       Illnesses include those that may be related to a biological event such as an epidemic or an exposure to toxic or radiological substances directly in relation to the incident."]
[null,null,"·       Explain or describe the nature of any reported injuries, illness, or other activities in Block 33."]
[null,null,"·       NOTE:  Do not estimate any fatality information or responder status information."]
[null,null,"·       NOTE:  Please use caution when reporting information in this section that may be on the periphery of the incident or change frequently.  This information should be reported as accurately as possible as a snapshot in time, as much of the information is subject to frequent change."]
[null,null,"·       NOTE:  Do not complete this block if the incident covered by the ICS 209 is not directly responsible for these actions (such as evacuations, sheltering, immunizations, etc.) even if they are related to the incident.  Only the authority having jurisdiction should submit reports for these actions, to mitigate multiple/conflicting reports.  "]
[]
[null,null,"Handling Sensitive Information"]
[null,null,"·       Release of information in this section should be carefully coordinated within the incident management organization to ensure synchronization with public information and investigative/intelligence actions."]
[null,null,"·       Thoroughly review the “Distribution” section in the introductory ICS 209 instructions for details on handling sensitive information.  Use caution when providing information in any situation involving fatalities, and verify that appropriate notifications have been made prior to release of this information.  Electronic transmission of any ICS 209 may make information available to many people and networks at once."]
[null,null,"·       Information regarding fatalities should be cleared with the Incident Commander and/or an organizational administrator prior to submission of the ICS 209.  "]
["*32","A. # This Reporting Period","Enter the total number of responders impacted in each category for this reporting period (since the previous ICS 209 was submitted).  "]
["(continued)","B. Total # to Date","·       Enter the total number of individuals impacted in each category for the entire duration of the incident. "]
[null,null,"·       This is a cumulative total number that should be adjusted each reporting period."]
[null,"C. Indicate Number of Responders Below","·       For lines 32D–M below, enter the number of responders relevant for each category."]
[null,null,"·       Responders are those personnel included as part of Unified Command partnerships and those organizations and agencies assisting and cooperating with response efforts."]
[null,"D. Fatalities","·       Enter the number of confirmed responder fatalities."]
[null,null,"·       See information in introductory instructions (“Distribution”) and for Block 32 regarding sensitive handling of fatality information."]
[null,"E. With Injuries/Illness","·       Enter the number of incident responders with serious injuries or illnesses due to the incident."]
[null,null,"·       For responders, serious injuries or illness are typically those in which the person is unable to continue to perform in his or her incident assignment, but the authority having jurisdiction may have additional guidelines on reporting requirements in this area."]
[null,"F. Trapped/In Need Of Rescue","Enter the number of incident responders who are in trapped or in need of rescue due to the incident."]
[null,"G. Missing","Enter the number of incident responders who are missing due to incident conditions."]
[null,"H.","(BLANK; use however is appropriate.)"]
[null,"I. Sheltering in Place","Enter the number of responders who are sheltering in place due to the incident.  Once responders become the victims, this needs to be noted in Block 33 or Block 47 and handled accordingly."]
[null,"J.","(BLANK; use however is appropriate.)"]
[null,"L. Require Immunizations","Enter the number of responders who require immunizations due to the incident and/or as part of incident operations."]
[null,"M. In Quarantine","Enter the number of responders who are in quarantine as a direct result of the incident and/or related to incident operations."]
[null,"N. Total # Responders Affected","Enter sum totals for Columns 32A and 32B for Rows 32D–M."]
[33,"Life, Safety, and Health Status/Threat Remarks","·       Enter any details needed for Blocks 31, 32, and 34.  Enter any specific comments regarding illness, injuries, fatalities, and threat management for this incident, such as whether estimates were used for numbers given in Block 31."]
[null,null,"·       This information should be reported as accurately as possible as a snapshot in time, as much of the information is subject to frequent change."]
[null,null,"·       Evacuation information can be very sensitive to local residents and officials.  Be accurate in the assessment. "]
[null,null,"·       Clearly note primary responsibility and contacts for any activities or information in Blocks 31, 32, and 34 that may be caused by the incident, but that are being managed and/or reported by other parties."]
[null,null,"·       Provide additional explanation or information as relevant in Blocks 28, 36, 38, 40, 41, or in Remarks (Block 47)."]
["*34","Life, Safety, and Health Threat Management","Note any details in Life, Safety, and Health Status/Threat Remarks (Block 33), and provide additional explanation or information as relevant in Blocks 28, 36, 38, 40, 41, or in Remarks (Block 47)."]
[null,"A. Check if Active","Check any applicable blocks in 34C–P based on currently available information regarding incident activity and potential. "]
[null,"B. Notes","Note any specific details, or include in Block 33."]
[null,"C. No Likely Threat","Check if there is no likely threat to life, health, and safety."]
[null,"D. Potential Future Threat","Check if there is a potential future threat to life, health, and safety.  "]
[null,"E. Mass Notifications In Progress","·       Check if there are any mass notifications in progress regarding emergency situations, evacuations, shelter in place, or other public safety advisories related to this incident."]
[null,null,"·       These may include use of threat and alert systems such as the Emergency Alert System or a “reverse 911” system."]
[null,null,"·       Please indicate the areas where mass notifications have been completed (e.g., “mass notifications to ZIP codes 50201, 50014, 50010, 50011,” or “notified all residents within a 5-mile radius of Gatlinburg”)."]
[null,"F. Mass Notifications Completed","Check if actions referred to in Block 34E above have been completed."]
[null,"G. No Evacuation(s) Imminent","Check if evacuations are not anticipated in the near future based on current information."]
[null,"H. Planning for Evacuation","Check if evacuation planning is underway in relation to this incident."]
[null,"I. Planning for Shelter-in-Place","Check if planning is underway for shelter-in-place activities related to this incident."]
[null,"J. Evacuation(s) in Progress","Check if there are active evacuations in progress in relation to this incident."]
[null,"K. Shelter-In-Place in Progress","Check if there are active shelter-in-place actions in progress in relation to this incident."]
[null,"L. Repopulation in Progress","Check if there is an active repopulation in progress related to this incident."]
[null,"M. Mass Immunization in Progress","Check if there is an active mass immunization in progress related to this incident."]
[null,"N. Mass Immunization Complete","Check if a mass immunization effort has been completed in relation to this incident."]
[null,"O. Quarantine in Progress","Check if there is an active quarantine in progress related to this incident."]
[null,"P. Area Restriction in Effect","Check if there are any restrictions in effect, such as road or area closures, especially those noted in Block 28."]
[35,"Weather Concerns (synopsis of current and predicted weather; discuss related factors that may cause concern)","·       Complete a short synopsis/discussion on significant weather factors that could cause concerns for the incident when relevant."]
[null,null,"·       Include current and/or predicted weather factors, and the timeframe for predictions."]
[null,null,"·       Include relevant factors such as:"]
[null,null,"o      Wind speed (label units, such as mph)."]
[null,null,"o      Wind direction (clarify and label where wind is coming from and going to in plain language – e.g., “from NNW,” “from E,” or “from SW”)."]
[null,null,"o      Temperature (label units, such as F)."]
[null,null,"o      Relative humidity (label %)."]
[null,null,"o      Watches."]
[null,null,"o      Warnings."]
[null,null,"o      Tides."]
[null,null,"o      Currents."]
[null,null,"·       Any other weather information relative to the incident, such as flooding, hurricanes, etc."]
[36,"Projected Incident Activity, Potential, Movement, Escalation, or Spread and influencing factors during the next operational period and in 12-, 24-, 48-, and 72-hour timeframes","·       Provide an estimate (when it is possible to do so) of the direction/scope in which the incident is expected to spread, migrate, or expand during the next indicated operational period, or other factors that may cause activity changes.  "]
[null,"12 hours","·       Discuss incident potential relative to values at risk, or values to be protected (such as human life), and the potential changes to those as the incident changes."]
[null,"24 hours","·       Include an estimate of the acreage or area that will likely be affected. "]
[null,"48 hours","·       If known, provide the above information in 12-, 24-, 48- and 72-hour timeframes, and any activity anticipated after 72 hours."]
[null,"72 hours "]
[null,"Anticipated after 72 hours"]
[37,"Strategic Objectives (define planned end-state for incident)","Briefly discuss the desired outcome for the incident based on currently available information.  Note any high-level objectives and any possible strategic benefits as well (especially for planned events)."]
["ADDITIONAL INCIDENT DECISION SUPPORT INFORMATION (continued) (PAGE 3)"]
[38,"Current Incident Threat Summary and Risk Information in 12-, 24-, 48-, and 72-hour timeframes and beyond.  Summarize primary incident threats to life, property, communities and community stability, residences, health care facilities, other critical infrastructure and key resources, commercial facilities, natural and environmental resources, cultural resources, and continuity of operations and/or business.  Identify corresponding incident-related potential economic or cascading impacts.","Summarize major or significant threats due to incident activity based on currently available information.  Include a breakdown of threats in terms of 12-, 24-, 48-, and 72-hour timeframes."]
[null,"12 hours"]
[null,"24 hours"]
[null,"48 hours"]
[null,"72 hours "]
[null,"Anticipated after 72 hours"]
[39,"Critical Resource Needs in 12-, 24-, 48-, and 72-hour timeframes and beyond to meet critical incident objectives.  List resource category, kind, and/or type, and amount needed, in priority order: ","·       List the specific critical resources and numbers needed, in order of priority.  Be specific as to the need."]
[null,"12 hours","·       Use plain language and common terminology for resources, and indicate resource category, kind, and type (if available or known) to facilitate incident support. "]
[null,"24 hours","·       If critical resources are listed in this block, there should be corresponding orders placed for them through appropriate resource ordering channels.  "]
[null,"48 hours","·       Provide critical resource needs in 12-, 24-, 48- and 72-hour increments.  List the most critical resources needed for each timeframe, if needs have been identified for each timeframe.  Listing critical resources by the time they are needed gives incident support personnel a “heads up” for short-range planning, and assists the ordering process to ensure these resources will be in place when they are needed."]
[null,"72 hours ","·       More than one resource need may be listed for each timeframe.  For example, a list could include:  "]
[null,"Anticipated after 72 hours","o      24 hrs:  3 Type 2 firefighting helicopters, 2 Type I Disaster Medical Assistance Teams"]
[null,null,"o      48 hrs:  Mobile Communications Unit (Law/Fire)"]
[null,null,"o      After 72 hrs:  1 Type 2 Incident Management Team"]
[null,null,"·       Documentation in the ICS 209 can help the incident obtain critical regional or national resources through outside support mechanisms including multiagency coordination systems and mutual aid.  "]
[null,null,"o      Information provided in other blocks on the ICS 209 can help to support the need for resources, including Blocks 28, 29, 31–38, and 40–42. "]
[null,null,"o      Additional comments in the Remarks section (Block 47) can also help explain what the incident is requesting and why it is critical (for example, “Type 2 Incident Management Team is needed in three days to transition command when the current Type 2 Team times out”). "]
[null,null,"·       Do not use this block for noncritical resources.  "]
[40,"Strategic Discussion:  Explain the relation of overall strategy, constraints, and current available information to:  ","·       Wording should be consistent with Block 39 to justify critical resource needs, which should relate to planned actions in the Incident Action Plan."]
[null,"1) critical resource needs identified above, ","·       Give a short assessment of the likelihood of meeting the incident management targets, given the current management strategy and currently known constraints."]
[null,"2) the Incident Action Plan and management objectives and targets, ","·       Identify when the chosen management strategy will succeed given the current constraints.  Adjust the anticipated incident management completion target in Block 43 as needed based on this discussion."]
[null,"3) anticipated results.","·       Explain major problems and concerns as indicated."]
[null,"Explain major problems and concerns such as operational challenges, incident management problems, and social, political, economic, or environmental concerns or impacts."]
[41,"Planned Actions for Next Operational Period","·       Provide a short summary of actions planned for the next operational period."]
[null,null,"·       Examples:  "]
[null,null,"o      “The current Incident Management Team will transition out to a replacement IMT.”"]
[null,null,"o      “Continue to review operational/ engineering plan to facilitate removal of the partially collapsed west bridge supports.” "]
[null,null,"o      “Continue refining mapping of the recovery operations and damaged assets using GPS.” "]
[null,null,"o      “Initiate removal of unauthorized food vendors.”"]
[42,"Projected Final Incident Size/Area (use unit label – e.g., “sq mi”)","·       Enter an estimate of the total area likely to be involved or affected over the course of the incident. "]
[null,null,"·       Label the estimate of the total area or population involved, affected, or impacted with the relevant units such as acres, hectares, square miles, etc."]
[null,null,"·       Note that total area involved may not be limited to geographic area (see previous discussions regarding incident definition, scope, operations, and objectives).  Projected final size may involve a population rather than a geographic area."]
[43,"Anticipated Incident Management Completion Date","·       Enter the date (month/day/year) at which time it is expected that incident objectives will be met.  This is often explained similar to incident containment or control, or the time at which the incident is expected to be closed or when significant incident support will be discontinued.  "]
[null,null,"·       Avoid leaving this block blank if possible, as this is important information for managers."]
[44,"Projected Significant Resource Demobilization Start Date","Enter the date (month/day/year) when initiation of significant resource demobilization is anticipated."]
[45,"Estimated Incident Costs to Date","·       Enter the estimated total incident costs to date for the entire incident based on currently available information."]
[null,null,"·       Incident costs include estimates of all costs for the response, including all management and support activities per discipline, agency, or organizational guidance and policy."]
[null,null,"·       This does not include damage assessment figures, as they are impacts from the incident and not response costs.  "]
[null,null,"·       If costs decrease, explain in Remarks (Block 47)."]
[null,null,"·       If additional space is required, please add as an attachment."]
[46,"Projected Final Incident Cost Estimate","·       Enter an estimate of the total costs for the incident once all costs have been processed based on current spending and projected incident potential, per discipline, agency, or organizational guidance and policy.  This is often an estimate of daily costs combined with incident potential information."]
[null,null,"·       This does not include damage assessment figures, as they are impacts from the incident and not response costs.  "]
[null,null,"·       If additional space is required, please add as an attachment."]
[47,"Remarks (or continuation of any blocks above – list block number in notation)","·       Use this block to expand on information that has been entered in previous blocks, or to include other pertinent information that has not been previously addressed.  "]
[null,null,"·       List the block number for any information continued from a previous block."]
[null,null,"·       Additional information may include more detailed weather information, specifics on injuries or fatalities, threats to critical infrastructure or other resources, more detailed evacuation site locations and number of evacuated, information or details regarding incident cause, etc."]
[null,null,"·       For Complexes that include multiple incidents, list all sub-incidents included in the Complex."]
[null,null,"·       List jurisdictional or ownership breakdowns if needed when an incident is in more than one jurisdiction and/or ownership area.  Breakdown may be:"]
[null,null,"o      By size (e.g., 35 acres in City of Gatlinburg, 250 acres in Great Smoky Mountains), and/or"]
[null,null,"o      By geography (e.g., incident area on the west side of the river is in jurisdiction of City of Minneapolis; area on east side of river is City of St. Paul jurisdiction; river is joint jurisdiction with USACE)."]
[null,null,"·       Explain any reasons for incident size reductions or adjustments (e.g., reduction in acreage due to more accurate mapping)."]
[null,null,"·       This section can also be used to list any additional information about the incident that may be needed by incident support mechanisms outside the incident itself.  This may be basic information needed through multiagency coordination systems or public information systems (e.g., a public information phone number for the incident, or the incident Web site address)."]
[null,null,"·       Attach additional pages if it is necessary to include additional comments in the Remarks section.  "]
["INCIDENT RESOURCE COMMITMENT SUMMARY (PAGE 4)"]
["·       This last/fourth page of the ICS 209 can be copied and used if needed to accommodate additional resources, agencies, or organizations.  Write the actual page number on the pages as they are used."]
["·       Include only resources that have been assigned to the incident and that have arrived and/or been checked in to the incident.  Do not include resources that have been ordered but have not yet arrived."]
[]
["For summarizing:"]
["·       When there are large numbers of responders, it may be helpful to group agencies or organizations together.  Use the approach that works best for the multiagency coordination system applicable to the incident.  For example,"]
["o      Group State, local, county, city, or Federal responders together under such headings, or"]
["o      Group resources from one jurisdiction together and list only individual jurisdictions (e.g., list the public works, police, and fire department resources for a city under that city’s name)."]
["·       On a large incident, it may also be helpful to group similar categories, kinds, or types of resources together for this summary."]
[48,"Agency or Organization","·       List the agencies or organizations contributing resources to the incident as responders, through mutual aid agreements, etc."]
[null,null,"·       List agencies or organizations using clear language so readers who may not be from the discipline or host jurisdiction can understand the information."]
[null,null,"·       Agencies or organizations may be listed individually or in groups."]
[null,null,"·       When resources are grouped together, individual agencies or organizations may be listed below in Block 53."]
[null,null,"·       Indicate in the rows under Block 49 how many resources are assigned to the incident under each resource identified.  "]
[null,null,"o      These can listed with the number of resources on the top of the box, and the number of personnel associated with the resources on the bottom half of the box."]
[null,null,"o      For example:"]
[null,null,"§       Resource:  Type 2 Helicopters… 3/8 (indicates 3 aircraft, 8 personnel)."]
[null,null,"§       Resource:  Type 1 Decontamination Unit… 1/3 (indicates 1 unit, 3 personnel)."]
[null,null,"·       Indicate in the rows under Block 51 the total number of personnel assigned for each agency listed under Block 48, including both individual overhead and those associated with other resources such as fire engines, decontamination units, etc."]
[49,"Resources (summarize resources by category, kind, and/or type; show # of resources on top ½ of box, show # of personnel associated with resource on bottom ½ of box)","·       List resources using clear language when possible – so ICS 209 readers who may not be from the discipline or host jurisdiction can understand the information."]
[null,null,"o      Examples:  Type 1 Fire Engines, Type 4 Helicopters"]
[null,null,"·       Enter total numbers in columns for each resource by agency, organization, or grouping in the proper blocks."]
[null,null,"o      These can listed with the number of resources on the top of the box, and the number of personnel associated with the resources on the bottom half of the box."]
[null,null,"o      For example:"]
[null,null,"§       Resource:  Type 2 Helicopters… 3/8 (indicates 3 aircraft, 8 personnel)."]
[null,null,"§       Resource:  Type 1 Decontamination Unit… 1/3 (indicates 1 unit, 3 personnel)."]
[null,null,"·       NOTE:  One option is to group similar resources together when it is sensible to do so for the summary.  "]
[null,null,"o      For example, do not list every type of fire engine – rather, it may be advisable to list two generalized types of engines, such as “structure fire engines” and “wildland fire engines” in separate columns with totals for each."]
[null,null,"·       NOTE:  It is not advisable to list individual overhead personnel individually in the resource section, especially as this form is intended as a summary.  These personnel should be included in the Total Personnel sums in Block 51."]
[50,"# of Personnel not assigned to a resource","List the number of additional individuals (or overhead) that are not assigned to a specific resource by agency or organization."]
[51,"Total Personnel (includes those associated with resources – e.g., aircraft or engines – and individual overhead)","·       Enter the total personnel for each agency, organization, or grouping in the Total Personnel column."]
[null,null,"·       WARNING:  Do not simply add the numbers across!   "]
[null,null,"·       The number of Total Personnel for each row should include both: "]
[null,null,"o      The total number of personnel assigned to each of the resources listed in Block 49, and"]
[null,null,"o      The total number of additional individual overhead personnel from each agency, organization, or group listed in Block 50."]
[52,"Total Resources","Include the sum total of resources for each column, including the total for the column under Blocks 49, 50, and 51.  This should include the total number of resources in Block 49, as personnel totals will be counted under Block 51."]
[53,"Additional Cooperating and Assisting Organizations Not Listed Above","·       List all agencies and organizations that are not directly involved in the incident, but are providing support. "]
[null,null,"·       Examples may include ambulance services, Red Cross, DHS, utility companies, etc. "]
[null,null,"·       Do not repeat any resources counted in Blocks 48–52, unless explanations are needed for groupings created under Block 48 (Agency or Organization)."]

{"sheet":"208Inst","index":46,"n_rows":28,"n_cols":3,"rows_kept":28,"cut":false,"hidden":true,"merged":[[23,0,27,0],[23,2,27,2],[4,0,4,2],[6,0,6,2],[8,0,8,2],[16,0,18,0],[16,2,18,2],[20,0,22,0],[20,2,21,2]]}
[]
["ICS 208"]
["Safety Message/Plan"]
[]
["Purpose.  The Safety Message/Plan (ICS 208) expands on the Safety Message and Site Safety Plan."]
[]
["Preparation.  The ICS 208 is an optional form that may be completed by the Safety Officer for the Incident Action Plan (IAP)."]
[]
["Distribution.  The ICS 208, if developed, will be reproduced with the IAP and given to all recipients as part of the IAP.  All completed original forms must be given to the Documentation Unit."]
[]
["Notes:"]
["·       The ICS 208 may serve (optionally) as part of the IAP."]
["·       Use additional copies for continuation sheets as needed, and indicate pagination as used."]
[]
["Block Number","Block Title","Instructions"]
[1,"Incident Name","Enter the name assigned to the incident."]
[2,"Operational Period","Enter the start date (month/day/year) and time (using the 24-hour clock) and end date and time for the operational period to which the form applies."]
[null,"·       Date and Time From"]
[null,"·       Date and Time To"]
[3,"Safety Message/Expanded Safety Message, Safety Plan, Site Safety Plan","Enter clear, concise statements for safety message(s), priorities, and key command emphasis/decisions/directions.  Enter information such as known safety hazards and specific precautions to be observed during this operational period.  If needed, additional safety message(s) should be referenced and attached."]
[4,"Site Safety Plan Required?","Check whether or not a site safety plan is required for this incident."]
[null,"Yes c  No c"]
[null,"Approved Site Safety Plan(s) Located At","Enter where the approved Site Safety Plan(s) is located."]
[5,"Prepared by","Enter the name, ICS position, and signature of the person preparing the form.  Enter date (month/day/year) and time prepared (24-hour clock).  "]
[null,"·       Name"]
[null,"·       Position/Title"]
[null,"·       Signature"]
[null,"·       Date/Time"]

{"sheet":"206Inst","index":47,"n_rows":53,"n_cols":3,"rows_kept":53,"cut":false,"hidden":true,"merged":[[44,0,45,0],[46,0,48,0],[46,2,48,2],[49,0,52,0],[49,2,52,2],[25,0,30,0],[29,2,30,2],[31,0,43,0],[35,2,37,2],[38,2,39,2],[40,2,41,2],[42,2,43,2],[19,0,24,0],[23,2,24,2],[4,0,4,2],[6,0,6,2],[8,0,8,2],[16,0,18,0],[16,2,18,2]]}
[]
["ICS 206"]
["Medical Plan"]
[]
["Purpose.  The Medical Plan (ICS 206) provides information on incident medical aid stations, transportation services, hospitals, and medical emergency procedures."]
[]
["Preparation.  The ICS 206 is prepared by the Medical Unit Leader and reviewed by the Safety Officer to ensure ICS coordination.  If aviation assets are utilized for rescue, coordinate with Air Operations."]
[]
["Distribution.  The ICS 206 is duplicated and attached to the Incident Objectives (ICS 202) and given to all recipients as part of the Incident Action Plan (IAP).  Information from the plan pertaining to incident medical aid stations and medical emergency procedures may be noted on the Assignment List (ICS 204).  All completed original forms must be given to the Documentation Unit."]
[]
["Notes:"]
["·       The ICS 206 serves as part of the IAP."]
["·       This form can include multiple pages."]
[]
["Block Number","Block Title","Instructions"]
[1,"Incident Name","Enter the name assigned to the incident."]
[2,"Operational Period","Enter the start date (month/day/year) and time (using the 24-hour clock) and end date and time for the operational period to which the form applies."]
[null,"·       Date and Time From"]
[null,"·       Date and Time To"]
[3,"Medical Aid Stations","Enter the following information on the incident medical aid station(s):"]
[null,"·       Name","Enter name of the medical aid station."]
[null,"·       Location","Enter the location of the medical aid station (e.g., Staging Area, Camp Ground)."]
[null,"·       Contact Number(s)","Enter the contact number(s) for the medical aid station(s)."]
[null,"·       Paramedics on Site?","Indicate (yes or no) if paramedics are at the site indicated."]
[null,"c Yes  c No"]
[4,"Transportation (indicate air or ground)","Enter the following information for ambulance services available to the incident:"]
[null,"·       Ambulance Service","Enter name of ambulance service."]
[null,"·       Location","Enter the location of the ambulance service."]
[null,"·       Contact Number(s)","Enter the contact number(s) for the ambulance service."]
[null,"·       Level of Service","Indicate the level of service available for each ambulance, either ALS (Advanced Life Support) or BLS (Basic Life Support)."]
[null,"c ALS  c BLS"]
[5,"Hospitals","Enter the following information for hospital(s) that could serve this incident:"]
[null,"·       Hospital Name","Enter hospital name and identify any predesignated medivac aircraft by name a frequency."]
[null,"·       Address, Latitude & Longitude if Helipad","Enter the physical address of the hospital and the latitude and longitude if the hospital has a helipad."]
[null,"·       Contact Number(s)/ Frequency","Enter the contact number(s) and/or communications frequency(s) for the hospital."]
[null,"·       Travel Time","Enter the travel time by air and ground from the incident to the hospital."]
[null,"·       Air"]
[null,"·       Ground"]
[null,"·       Trauma Center","Indicate (yes or no) if the hospital has a trauma center."]
[null,"c Yes  c No"]
[null,"·       Burn Center","Indicate (yes or no) if the hospital has a burn center."]
[null,"c Yes  c No"]
[null,"·       Helipad","Indicate (yes or no) if the hospital has a helipad."]
[null,"c Yes  c No"]
[6,"Special Medical Emergency Procedures","Note any special emergency instructions for use by incident personnel, including (1) who should be contacted, (2) how should they be contacted; and (3) who manages an incident within an incident due to a rescue, accident, etc.  Include procedures for how to report medical emergencies."]
[null,"c  Check box if aviation assets are utilized for rescue.  If assets are used, coordinate with Air Operations.","Self explanatory."]
[7,"Prepared by (Medical Unit Leader)","Enter the name and signature of the person preparing the form, typically the Medical Unit Leader.  Enter date (month/day/year) and time prepared (24-hour clock)."]
[null,"·       Name"]
[null,"·       Signature"]
[8,"Approved by (Safety Officer)","Enter the name of the person who approved the plan, typically the Safety Officer.  Enter date (month/day/year) and time reviewed (24-hour clock)."]
[null,"·       Name"]
[null,"·       Signature"]
[null,"·       Date/Time"]

{"sheet":"202Inst","index":48,"n_rows":44,"n_cols":3,"rows_kept":44,"cut":false,"hidden":true,"merged":[[3,0,3,2],[5,0,5,2],[7,0,7,2],[10,0,10,2],[24,0,35,0],[15,0,17,0],[15,2,17,2],[19,0,20,0],[21,0,23,0],[21,2,22,2],[36,0,39,0],[36,2,39,2],[40,0,43,0],[40,2,43,2],[11,0,11,2]]}
["ICS 202"]
["Incident Objectives"]
[]
["Purpose.  The Incident Objectives (ICS 202) describes the basic incident strategy, incident objectives, command emphasis/priorities, and safety considerations for use during the next operational period. "]
[]
["Preparation.  The ICS 202 is completed by the Planning Section following each Command and General Staff meeting conducted to prepare the Incident Action Plan (IAP).  In case of a Unified Command, one Incident Commander (IC) may approve the ICS 202.  If additional IC signatures are used, attach a blank page."]
[]
["Distribution.  The ICS 202 will be reproduced with the IAP and given to all supervisory personnel at the Section, Branch, Division/Group, and Unit levels.  All completed original forms must be given to the Documentation Unit."]
[]
["Notes:"]
["·       The ICS 202 is part of the IAP and can be used as the opening or cover page. "]
["·       If additional pages are needed, use a blank ICS 202 and repaginate as needed."]
[]
["Block Number","Block Title","Instructions"]
[1,"Incident Name","Enter the name assigned to the incident.  If needed, an incident number can be added."]
[2,"Operational Period","Enter the start date (month/day/year) and time (using the 24-hour clock) and end date and time for the operational period to which the form applies."]
[null,"·       Date and Time From"]
[null,"·       Date and Time To"]
[3,"Objective(s)","Enter clear, concise statements of the objectives for managing the response.  Ideally, these objectives will be listed in priority order.  These objectives are for the incident response for this operational period as well as for the duration of the incident.  Include alternative and/or specific tactical objectives as applicable."]
[4,"Operational Period Command Emphasis","Enter command emphasis for the operational period, which may include tactical priorities or a general weather forecast for the operational period.  It may be a sequence of events or order of events to address.  This is not a narrative on the objectives, but a discussion about where to place emphasis if there are needs to prioritize based on the Incident Commander’s or Unified Command’s direction.  Examples:  Be aware of falling debris, secondary explosions, etc."]
[null,"General Situational Awareness","General situational awareness may include a weather forecast, incident conditions, and/or a general safety message.  If a safety message is included here, it should be reviewed by the Safety Officer to ensure it is in alignment with the Safety Message/Plan (ICS 208)."]
[5,"Site Safety Plan Required?","Safety Officer should check whether or not a site safety plan is required for this incident."]
[null,"Yes c  No c"]
[null,"Approved Site Safety Plan(s) Located At","Enter the location of the approved Site Safety Plan(s)."]
[6,"Incident Action Plan (the items checked below are included in this Incident Action Plan):","Check appropriate forms and list other relevant documents that are included in the IAP."]
[null,"c ICS 202","c ICS 202 – Incident Objectives"]
[null,"c ICS 203","c ICS 203 – Organization Assignment List"]
[null,"c ICS 204","c ICS 204 – Assignment List"]
[null,"c ICS 205","c ICS 205 – Incident Radio Communications Plan"]
[null,"c ICS 205A","c ICS 205A – Communications List"]
[null,"c ICS 206","c ICS 206 – Medical Plan"]
[null,"c ICS 207","c ICS 207 – Incident Organization Chart"]
[null,"c ICS 208","c ICS 208 – Safety Message/Plan"]
[null,"c Map/Chart"]
[null,"c Weather Forecast/ Tides/Currents"]
[null,"Other Attachments:"]
[7,"Prepared by","Enter the name, ICS position, and signature of the person preparing the form.  Enter date (month/day/year) and time prepared (24-hour clock).  "]
[null,"·       Name"]
[null,"·       Position/Title"]
[null,"·       Signature"]
[8,"Approved by Incident Commander","In the case of a Unified Command, one IC may approve the ICS 202.  If additional IC signatures are used, attach a blank page."]
[null,"·       Name"]
[null,"·       Signature"]
[null,"·       Date/Time"]

{"sheet":"203Inst","index":49,"n_rows":73,"n_cols":3,"rows_kept":73,"cut":false,"hidden":true,"merged":[[12,0,12,2],[13,0,13,2],[14,0,14,2],[68,0,72,0],[68,2,72,2],[51,0,60,0],[61,0,67,0],[18,0,20,0],[18,2,20,2],[21,0,26,0],[38,0,50,0],[27,0,29,0],[27,2,29,2],[30,0,37,0],[4,0,4,2],[6,0,6,2],[8,0,8,2],[10,0,10,2],[11,0,11,2]]}
[]
["ICS 203"]
["Organization Assignment List"]
[]
["Purpose.  The Organization Assignment List (ICS 203) provides ICS personnel with information on the units that are currently activated and the names of personnel staffing each position/unit.  It is used to complete the Incident Organization Chart (ICS 207) which is posted on the Incident Command Post display.  An actual organization will be incident or event-specific.  Not all positions need to be filled.  Some blocks may contain more than one name.  The size of the organization is dependent on the magnitude of the incident, and can be expanded or contracted as necessary."]
[]
["Preparation.  The Resources Unit prepares and maintains this list under the direction of the Planning Section Chief.  Complete only the blocks for the positions that are being used for the incident.  If a trainee is assigned to a position, indicate this with a “T” in parentheses behind the name (e.g., “A. Smith (T)”). "]
[]
["Distribution.  The ICS 203 is duplicated and attached to the Incident Objectives (ICS 202) and given to all recipients as part of the Incident Action Plan (IAP).  All completed original forms must be given to the Documentation Unit."]
[]
["Notes:"]
["·       The ICS 203 serves as part of the IAP."]
["·       If needed, more than one name can be put in each block by inserting a slash."]
["·       If additional pages are needed, use a blank ICS 203 and repaginate as needed."]
["·       ICS allows for organizational flexibility, so the Intelligence/Investigations Function can be embedded in several different places within the organizational structure."]
[]
["Block Number","Block Title","Instructions"]
[1,"Incident Name","Enter the name assigned to the incident."]
[2,"Operational Period","Enter the start date (month/day/year) and time (using the 24-hour clock) and end date and time for the operational period to which the form applies."]
[null,"·       Date and Time From"]
[null,"·       Date and Time To"]
[3,"Incident Commander(s) and Command Staff","Enter the names of the Incident Commander(s) and Command Staff.  Label Assistants to Command Staff as such (for example, “Assistant Safety Officer”)."]
[null,"·       IC/UCs","For all individuals, use at least the first initial and last name."]
[null,"·       Deputy","For Unified Command, also include agency names."]
[null,"·       Safety Officer"]
[null,"·       Public Information Officer"]
[null,"·       Liaison Officer"]
[4,"Agency/Organization Representatives","Enter the agency/organization names and the names of their representatives.  For all individuals, use at least the first initial and last name."]
[null,"·       Agency/Organization"]
[null,"·       Name"]
[5,"Planning Section","Enter the name of the Planning Section Chief, Deputy, and Unit Leaders after each position title.  List Technical Specialists with an indication of specialty."]
[null,"·       Chief","If there is a shift change during the specified operational period, list both names, separated by a slash. "]
[null,"·       Deputy","For all individuals, use at least the first initial and last name."]
[null,"·       Resources Unit"]
[null,"·       Situation Unit"]
[null,"·       Documentation Unit"]
[null,"·       Demobilization Unit"]
[null,"·       Technical Specialists"]
[6,"Logistics Section","Enter the name of the Logistics Section Chief, Deputy, Branch Directors, and Unit Leaders after each position title."]
[null,"·       Chief","If there is a shift change during the specified operational period, list both names, separated by a slash."]
[null,"·       Deputy","For all individuals, use at least the first initial and last name."]
[null,"Support Branch"]
[null,"·       Director"]
[null,"·       Supply Unit"]
[null,"·       Facilities Unit"]
[null,"·       Ground Support Unit"]
[null,"Service Branch"]
[null,"·       Director"]
[null,"·       Communications Unit"]
[null,"·       Medical Unit"]
[null,"·       Food Unit"]
[7,"Operations Section","Enter the name of the Operations Section Chief, Deputy, Branch Director(s), Deputies, and personnel staffing each of the listed positions.  For Divisions/Groups, enter the Division/Group identifier in the left column and the individual’s name in the right column."]
[null,"·       Chief","Branches and Divisions/Groups may be named for functionality or by geography.  For Divisions/Groups, indicate Division/Group Supervisor.  Use an additional page if more than three Branches are activated."]
[null,"·       Deputy","If there is a shift change during the specified operational period, list both names, separated by a slash."]
[null,"·       Staging Area","For all individuals, use at least the first initial and last name."]
[null,"Branch"]
[null,"·       Branch Director"]
[null,"·       Deputy"]
[null,"·       Division/Group"]
[null,"Air Operations Branch"]
[null,"·       Air Operations Branch Director"]
[8,"Finance/Administration Section","Enter the name of the Finance/Administration Section Chief, Deputy, and Unit Leaders after each position title."]
[null,"·       Chief","If there is a shift change during the specified operational period, list both names, separated by a slash."]
[null,"·       Deputy","For all individuals, use at least the first initial and last name."]
[null,"·       Time Unit"]
[null,"·       Procurement Unit"]
[null,"·       Compensation/Claims Unit"]
[null,"·       Cost Unit"]
[9,"Prepared by","Enter the name, ICS position, and signature of the person preparing the form.  Enter date (month/day/year) and time prepared (24-hour clock).  "]
[null,"·       Name"]
[null,"·       Position/Title"]
[null,"·       Signature"]
[null,"·       Date/Time"]

{"sheet":"205AInst","index":50,"n_rows":30,"n_cols":3,"rows_kept":30,"cut":false,"hidden":true,"merged":[[25,0,29,0],[25,2,29,2],[3,0,3,2],[5,0,5,2],[7,0,7,2],[16,0,18,0],[16,2,18,2],[19,0,24,0],[23,2,24,2]]}
["ICS 205A"]
["Communications List"]
[]
["Purpose.  The Communications List (ICS 205A) records methods of contact for incident personnel.  While the Incident Radio Communications Plan (ICS 205) is used to provide information on all radio frequencies down to the Division/Group level, the ICS 205A indicates all methods of contact for personnel assigned to the incident (radio frequencies, phone numbers, pager numbers, etc.), and functions as an incident directory."]
[]
["Preparation.  The ICS 205A can be filled out during check-in and is maintained and distributed by Communications Unit personnel.  This form should be updated each operational period."]
[]
["Distribution.  The ICS 205A is distributed within the ICS organization by the Communications Unit, and posted as necessary.  All completed original forms must be given to the Documentation Unit.  If this form contains sensitive information such as cell phone numbers, it should be clearly marked in the header that it contains sensitive information and is not for public release.  "]
[]
["Notes:"]
["·       The ICS 205A is an optional part of the Incident Action Plan (IAP)."]
["·       This optional form is used in conjunction with the ICS 205."]
["·       If additional pages are needed, use a blank ICS 205A and repaginate as needed."]
[]
["Block Number","Block Title","Instructions"]
[1,"Incident Name","Enter the name assigned to the incident."]
[2,"Operational Period","Enter the start date (month/day/year) and time (using the 24-hour clock) and end date and time for the operational period to which the form applies."]
[null,"·       Date and Time From"]
[null,"·       Date and Time To"]
[3,"Basic Local Communications Information","Enter the communications methods assigned and used for personnel by their assigned ICS position."]
[null,"·       Section/Division/Group","Enter the relevant ICS Section or indicate Command Staff."]
[null,"·       Position Assigned","Enter the ICS organizational assignment."]
[null,"·       Name","Enter the name of the assigned person."]
[null,"·       Method(s) of Contact (radio frequency, phone, pager, cell, etc.)","For each assignment, enter the radio frequency and contact number(s) to include area code, etc.  If applicable, include the vehicle license or ID number assigned to the vehicle for the incident (e.g., HAZMAT 1, etc.)."]
[]
[4,"Prepared by","Enter the name, ICS position, and signature of the person preparing the form.  Enter date (month/day/year) and time prepared (24-hour clock).  "]
[null,"·       Name"]
[null,"·       Position/Title"]
[null,"·       Signature"]
[null,"·       Date/Time"]

{"sheet":"Master Resource List","index":51,"n_rows":6,"n_cols":19,"rows_kept":6,"cut":false,"hidden":false,"merged":[[0,0,1,12],[3,10,5,11],[3,16,5,16],[3,17,5,17],[5,2,5,3],[5,5,5,6],[3,9,5,9],[3,12,5,13],[3,14,5,14],[3,15,5,15],[6,12,6,13],[7,12,7,13],[8,12,8,13],[9,12,9,13],[10,12,10,13],[11,12,11,13],[12,12,12,13],[13,12,13,13],[14,12,14,13],[15,12,15,13],[16,12,16,13],[17,12,17,13],[18,12,18,13],[19,12,19,13],[20,12,20,13],[21,12,21,13],[22,12,22,13],[23,12,23,13],[24,12,24,13],[25,12,25,13],[26,12,26,13],[27,12,27,13],[28,12,28,13],[29,12,29,13],[30,12,30,13],[31,12,31,13],[32,12,32,13],[33,12,33,13],[34,12,34,13],[35,12,35,13],[36,12,36,13],[37,12,37,13],[38,12,38,13],[39,12,39,13],[40,12,40,13],[41,12,41,13],[42,12,42,13],[43,12,43,13],[44,12,44,13],[45,12,45,13],[46,12,46,13],[47,12,47,13],[48,12,48,13],[49,12,49,13],[50,12,50,13],[51,12,51,13],[52,12,52,13],[53,12,53,13],[54,12,54,13],[55,12,55,13],[56,12,56,13],[57,12,57,13],[58,12,58,13],[59,12,59,13],[60,12,60,13],[61,12,61,13],[62,12,62,13],[63,12,63,13],[64,12,64,13],[65,12,65,13],[66,12,66,13],[67,12,67,13],[68,12,68,13],[69,12,69,13],[70,12,70,13],[71,12,71,13],[72,12,72,13],[73,12,73,13],[74,12,74,13],[75,12,75,13],[76,12,76,13],[77,12,77,13],[78,12,78,13],[79,12,79,13],[80,12,80,13],[81,12,81,13],[82,12,82,13],[83,12,83,13],[84,12,84,13],[85,12,85,13],[86,12,86,13],[87,12,87,13],[88,12,88,13],[89,12,89,13],[96,12,96,13],[97,12,97,13],[98,12,98,13],[99,12,99,13],[90,12,90,13],[91,12,91,13],[92,12,92,13],[93,12,93,13],[94,12,94,13],[95,12,95,13],[3,18,5,18],[3,0,3,8],[4,0,4,8],[100,12,100,13],[101,12,101,13],[102,12,102,13],[15,2,15,3],[16,2,16,3],[17,2,17,3],[18,2,18,3],[30,2,30,3],[31,2,31,3],[32,2,32,3],[33,2,33,3],[34,2,34,3],[35,2,35,3],[36,2,36,3],[37,2,37,3],[38,2,38,3],[39,2,39,3],[40,2,40,3],[41,2,41,3],[42,2,42,3],[43,2,43,3],[103,12,103,13],[104,12,104,13],[105,12,105,13],[106,12,106,13],[107,12,107,13],[108,12,108,13],[109,12,109,13],[110,12,110,13],[111,12,111,13],[112,12,112,13],[113,12,113,13],[114,12,114,13],[115,12,115,13],[116,12,116,13],[117,12,117,13],[118,12,118,13],[119,12,119,13],[120,12,120,13],[121,12,121,13],[122,12,122,13],[123,12,123,13],[124,12,124,13],[125,12,125,13],[126,12,126,13],[127,12,127,13],[128,12,128,13],[129,12,129,13],[130,12,130,13],[131,12,131,13],[132,12,132,13],[133,12,133,13],[134,12,134,13],[135,12,135,13],[136,12,136,13],[137,12,137,13],[138,12,138,13],[139,12,139,13],[140,12,140,13],[141,12,141,13],[142,12,142,13],[143,12,143,13],[144,12,144,13],[145,12,145,13],[146,12,146,13],[147,12,147,13],[148,12,148,13],[149,12,149,13],[150,12,150,13],[151,12,151,13],[152,12,152,13],[153,12,153,13],[154,12,154,13],[155,12,155,13],[156,12,156,13],[157,12,157,13],[158,12,158,13],[159,12,159,13],[160,12,160,13],[161,12,161,13],[162,12,162,13],[163,12,163,13],[164,12,164,13],[165,12,165,13],[166,12,166,13],[167,12,167,13],[168,12,168,13],[169,12,169,13],[170,12,170,13],[171,12,171,13],[172,12,172,13],[173,12,173,13],[174,12,174,13],[175,12,175,13],[176,12,176,13],[177,12,177,13],[178,12,178,13],[179,12,179,13],[180,12,180,13],[181,12,181,13],[182,12,182,13],[183,12,183,13],[184,12,184,13],[185,12,185,13],[186,12,186,13],[187,12,187,13],[188,12,188,13],[189,12,189,13],[190,12,190,13],[191,12,191,13],[192,12,192,13],[193,12,193,13],[194,12,194,13],[195,12,195,13],[196,12,196,13],[197,12,197,13],[198,12,198,13],[199,12,199,13],[200,12,200,13],[201,12,201,13],[202,12,202,13],[203,12,203,13],[204,12,204,13],[205,12,205,13],[6,2,6,3],[7,2,7,3],[8,2,8,3],[9,2,9,3],[10,2,10,3],[11,2,11,3],[12,2,12,3],[13,2,13,3],[14,2,14,3],[19,2,19,3],[20,2,20,3],[21,2,21,3],[22,2,22,3],[23,2,23,3],[24,2,24,3],[25,2,25,3],[26,2,26,3],[27,2,27,3],[28,2,28,3],[29,2,29,3],[44,2,44,3],[45,2,45,3],[46,2,46,3],[47,2,47,3],[48,2,48,3],[49,2,49,3],[50,2,50,3],[51,2,51,3],[52,2,52,3],[53,2,53,3],[54,2,54,3],[55,2,55,3],[56,2,56,3],[57,2,57,3],[58,2,58,3],[59,2,59,3],[60,2,60,3],[61,2,61,3],[62,2,62,3],[63,2,63,3],[64,2,64,3],[65,2,65,3],[66,2,66,3],[67,2,67,3],[68,2,68,3],[69,2,69,3],[70,2,70,3],[71,2,71,3],[72,2,72,3],[73,2,73,3],[74,2,74,3],[75,2,75,3],[76,2,76,3],[77,2,77,3],[78,2,78,3],[79,2,79,3],[80,2,80,3],[81,2,81,3],[82,2,82,3],[83,2,83,3],[84,2,84,3],[85,2,85,3],[86,2,86,3],[87,2,87,3],[88,2,88,3],[89,2,89,3],[90,2,90,3],[91,2,91,3],[92,2,92,3],[93,2,93,3],[94,2,94,3],[95,2,95,3],[96,2,96,3],[97,2,97,3],[98,2,98,3],[99,2,99,3],[100,2,100,3],[101,2,101,3],[102,2,102,3],[103,2,103,3],[104,2,104,3],[105,2,105,3],[106,2,106,3],[107,2,107,3],[108,2,108,3],[109,2,109,3],[110,2,110,3],[111,2,111,3],[112,2,112,3],[113,2,113,3],[114,2,114,3],[115,2,115,3],[116,2,116,3],[117,2,117,3],[118,2,118,3],[119,2,119,3],[120,2,120,3],[121,2,121,3],[122,2,122,3],[123,2,123,3],[124,2,124,3],[125,2,125,3],[126,2,126,3],[127,2,127,3],[128,2,128,3],[129,2,129,3],[130,2,130,3],[131,2,131,3],[132,2,132,3],[133,2,133,3],[134,2,134,3],[135,2,135,3],[136,2,136,3],[137,2,137,3],[138,2,138,3],[139,2,139,3],[140,2,140,3],[141,2,141,3],[142,2,142,3],[143,2,143,3],[144,2,144,3],[145,2,145,3],[146,2,146,3],[147,2,147,3],[148,2,148,3],[149,2,149,3],[150,2,150,3],[151,2,151,3],[152,2,152,3],[153,2,153,3],[154,2,154,3],[155,2,155,3],[156,2,156,3],[157,2,157,3],[158,2,158,3],[159,2,159,3],[160,2,160,3],[176,2,176,3],[177,2,177,3],[178,2,178,3],[161,2,161,3],[162,2,162,3],[163,2,163,3],[164,2,164,3],[165,2,165,3],[166,2,166,3],[167,2,167,3],[168,2,168,3],[169,2,169,3],[202,2,202,3],[203,2,203,3],[204,2,204,3],[205,2,205,3],[188,2,188,3],[189,2,189,3],[190,2,190,3],[191,2,191,3],[192,2,192,3],[193,2,193,3],[194,2,194,3],[195,2,195,3],[196,2,196,3],[24,5,24,6],[25,5,25,6],[26,5,26,6],[27,5,27,6],[197,2,197,3],[198,2,198,3],[199,2,199,3],[200,2,200,3],[201,2,201,3],[179,2,179,3],[180,2,180,3],[181,2,181,3],[182,2,182,3],[183,2,183,3],[184,2,184,3],[185,2,185,3],[186,2,186,3],[187,2,187,3],[170,2,170,3],[171,2,171,3],[172,2,172,3],[173,2,173,3],[174,2,174,3],[175,2,175,3],[15,5,15,6],[16,5,16,6],[17,5,17,6],[18,5,18,6],[19,5,19,6],[20,5,20,6],[21,5,21,6],[22,5,22,6],[23,5,23,6],[6,5,6,6],[7,5,7,6],[8,5,8,6],[9,5,9,6],[10,5,10,6],[11,5,11,6],[12,5,12,6],[13,5,13,6],[14,5,14,6],[28,5,28,6],[29,5,29,6],[30,5,30,6],[31,5,31,6],[32,5,32,6],[33,5,33,6],[34,5,34,6],[35,5,35,6],[36,5,36,6],[37,5,37,6],[38,5,38,6],[39,5,39,6],[40,5,40,6],[41,5,41,6],[42,5,42,6],[43,5,43,6],[44,5,44,6],[45,5,45,6],[46,5,46,6],[47,5,47,6],[48,5,48,6],[49,5,49,6],[50,5,50,6],[51,5,51,6],[52,5,52,6],[53,5,53,6],[54,5,54,6],[55,5,55,6],[56,5,56,6],[57,5,57,6],[58,5,58,6],[59,5,59,6],[60,5,60,6],[61,5,61,6],[62,5,62,6],[63,5,63,6],[64,5,64,6],[65,5,65,6],[66,5,66,6],[67,5,67,6],[68,5,68,6],[69,5,69,6],[70,5,70,6],[71,5,71,6],[72,5,72,6],[73,5,73,6],[74,5,74,6],[75,5,75,6],[76,5,76,6],[77,5,77,6],[78,5,78,6],[79,5,79,6],[80,5,80,6],[81,5,81,6],[82,5,82,6],[83,5,83,6],[84,5,84,6],[85,5,85,6],[86,5,86,6],[87,5,87,6],[88,5,88,6],[89,5,89,6],[90,5,90,6],[91,5,91,6],[92,5,92,6],[93,5,93,6],[94,5,94,6],[95,5,95,6],[96,5,96,6],[97,5,97,6],[98,5,98,6],[99,5,99,6],[100,5,100,6],[101,5,101,6],[102,5,102,6],[103,5,103,6],[104,5,104,6],[105,5,105,6],[106,5,106,6],[107,5,107,6],[108,5,108,6],[109,5,109,6],[110,5,110,6],[111,5,111,6],[112,5,112,6],[113,5,113,6],[114,5,114,6],[115,5,115,6],[116,5,116,6],[117,5,117,6],[118,5,118,6],[119,5,119,6],[120,5,120,6],[121,5,121,6],[122,5,122,6],[123,5,123,6],[124,5,124,6],[125,5,125,6],[126,5,126,6],[127,5,127,6],[128,5,128,6],[129,5,129,6],[130,5,130,6],[131,5,131,6],[132,5,132,6],[133,5,133,6],[134,5,134,6],[135,5,135,6],[136,5,136,6],[137,5,137,6],[138,5,138,6],[139,5,139,6],[140,5,140,6],[141,5,141,6],[142,5,142,6],[143,5,143,6],[144,5,144,6],[145,5,145,6],[146,5,146,6],[147,5,147,6],[148,5,148,6],[149,5,149,6],[150,5,150,6],[151,5,151,6],[152,5,152,6],[153,5,153,6],[154,5,154,6],[155,5,155,6],[156,5,156,6],[157,5,157,6],[158,5,158,6],[159,5,159,6],[160,5,160,6],[161,5,161,6],[162,5,162,6],[163,5,163,6],[164,5,164,6],[165,5,165,6],[166,5,166,6],[167,5,167,6],[168,5,168,6],[169,5,169,6],[170,5,170,6],[171,5,171,6],[172,5,172,6],[173,5,173,6],[174,5,174,6],[175,5,175,6],[176,5,176,6],[177,5,177,6],[178,5,178,6],[179,5,179,6],[180,5,180,6],[181,5,181,6],[182,5,182,6],[183,5,183,6],[184,5,184,6],[185,5,185,6],[186,5,186,6],[200,5,200,6],[187,5,187,6],[188,5,188,6],[191,5,191,6],[192,5,192,6],[193,5,193,6],[194,5,194,6],[189,5,189,6],[190,5,190,6],[201,5,201,6],[202,5,202,6],[203,5,203,6],[204,5,204,6],[205,5,205,6],[195,5,195,6],[196,5,196,6],[197,5,197,6],[198,5,198,6],[199,5,199,6]]}
["Master Resource List"]
[]
[]
[null,null,null,null,null,null,null,null,null,"Order Request #","Check-In             Date      Time ",null,"Leader’s Name",null,"Total Number of Personnel","Incident Contact Information","Incident Assignment","Other Qualifications","Last Day Off"]
[]
["State","Agency","Category              (General Resource Type or Function)",null,"Kind","Type",null,"Resource Name or Identifier","ST or TF  "]